Inv Transaction,Supplier Name,Headserv Name,Stratdir Name,Account Description,Paid Date,Sum of Inv Amount
460462,CAPSTONE CARE LTD T/A WALSHAW HALL,Adult Social Care,Adults,Nursing Home Long Stay Fees,24-Oct,"5,600.57"
460462,THE ROYAL ELMS CARE HOME,Adult Social Care,Adults,Nursing Home Long Stay Fees,03-Oct,"2,396.52"
460463,Anchor,Adult Social Care,Adults,Nursing Home Long Stay Fees,18-Oct,"18,299.80"
460464,BROWNLOW HOUSE RESIDENTIAL CARE,Adult Social Care,Adults,Nursing Home Long Stay Fees,05-Oct,"18,112.82"
460464,DOMAIN CARE NORTH WEST LTD,Adult Social Care,Adults,Nursing Home Long Stay Fees,05-Oct,"11,467.16"
460464,Genesis Care Home,Adult Social Care,Adults,Nursing Home Long Stay Fees,05-Oct,"10,699.26"
460464,MOSS COTTAGE NURSING HOME,Adult Social Care,Adults,Nursing Home Long Stay Fees,05-Oct,"79,815.52"
460464,Pendlebury Care Homes Ltd tas Regency Hall Care Home,Adult Social Care,Adults,Nursing Home Long Stay Fees,05-Oct,"50,906.75"
460464,Thames House t/a Exemplar Health Care Partnerships LTD,Adult Social Care,Adults,Nursing Home Long Stay Fees,05-Oct,"15,634.58"
460465,Abbey Healthcare Ltd t/a Farnworth Care Home,Adult Social Care,Adults,Nursing Home Long Stay Fees,27-Oct,"1,699.80"
460465,Advinia Care Homes Ltd,Adult Social Care,Adults,Nursing Home Long Stay Fees,27-Oct,"7,196.20"
460465,ANCHOR HANOVER GROUP TAS HATTON GRANGE CARE HOME,Adult Social Care,Adults,Nursing Home Long Stay Fees,27-Oct,"61,542.83"
460465,ASHGROVE HOUSE CARE LTD,Adult Social Care,Adults,Nursing Home Long Stay Fees,27-Oct,"1,812.34"
460465,AUDEN HOUSE RESIDENTIAL HOME,Adult Social Care,Adults,Nursing Home Long Stay Fees,27-Oct,"29,235.92"
460465,Barchester Healthcare t/a Glenroyd Care Home,Adult Social Care,Adults,Nursing Home Long Stay Fees,27-Oct,"3,887.09"
460465,Beeches t/a Meridian Healthcare LTD,Adult Social Care,Adults,Nursing Home Long Stay Fees,27-Oct,"79,178.38"
460465,BELMONT PARKHILL LTD,Adult Social Care,Adults,Nursing Home Long Stay Fees,27-Oct,"55,859.96"
460465,BOWERFIELD COURT,Adult Social Care,Adults,Nursing Home Long Stay Fees,27-Oct,"17,573.40"
460465,BROOKFIELD RESIDENTIAL CARE HOME,Adult Social Care,Adults,Nursing Home Long Stay Fees,27-Oct,"2,802.36"
460465,BROOKVALE,Adult Social Care,Adults,Nursing Home Long Stay Fees,27-Oct,"7,800.90"
460465,BROUGHTON HOUSE HOME FOR  EX-SERVICE PERSONNEL,Adult Social Care,Adults,Nursing Home Long Stay Fees,27-Oct,"4,663.29"
460465,CAPSTONE CARE LTD T/A WALSHAW HALL,Adult Social Care,Adults,Nursing Home Long Stay Fees,27-Oct,"2,314.90"
460465,CARE TECH - ALPHA HOUSE CARE HOME,Adult Social Care,Adults,Nursing Home Long Stay Fees,27-Oct,"26,177.16"
460465,CareConcepts Ltd,Adult Social Care,Adults,Nursing Home Long Stay Fees,27-Oct,"2,996.50"
460465,CARETECH COMMUNITY SERVICES LIMITED,Adult Social Care,Adults,Nursing Home Long Stay Fees,27-Oct,"122,482.21"
460465,Cartwright Care Balmoral Management Ltd,Adult Social Care,Adults,Nursing Home Long Stay Fees,27-Oct,"47,135.28"
460465,CHADDERTON TOTAL CAREUNIT LTD,Adult Social Care,Adults,Nursing Home Long Stay Fees,27-Oct,"6,385.56"
460465,CHERWOOD HOUSE CARE CENTRE,Adult Social Care,Adults,Nursing Home Long Stay Fees,27-Oct,"1,499.79"
460465,Clarence House Care Home,Adult Social Care,Adults,Nursing Home Long Stay Fees,27-Oct,"35,352.84"
460465,CYGNET LEARNING DISABILITIES LTD,Adult Social Care,Adults,Nursing Home Long Stay Fees,27-Oct,"11,702.96"
460465,D R Price Associates Limited t/a Chataway Nursing Home,Adult Social Care,Adults,Nursing Home Long Stay Fees,27-Oct,"3,543.30"
460465,Daisy Nook House t/a Meridian Healthcare LTD,Adult Social Care,Adults,Nursing Home Long Stay Fees,27-Oct,"53,194.20"
460465,DEVONSHIRE CARE LIMITED TAS CHARNLEY HOUSE,Adult Social Care,Adults,Nursing Home Long Stay Fees,27-Oct,"38,034.07"
460465,DIWALI LTD T/A DIWALI NIVAS,Adult Social Care,Adults,Nursing Home Long Stay Fees,27-Oct,"2,016.00"
460465,DOMAIN CARE NORTH WEST LTD,Adult Social Care,Adults,Nursing Home Long Stay Fees,27-Oct,"8,836.20"
460465,DOVES NEST LTD,Adult Social Care,Adults,Nursing Home Long Stay Fees,27-Oct,"8,438.46"
460465,EAST CHESHIRE HOUSING CONSORTIUM TAS THE COURTYARD,Adult Social Care,Adults,Nursing Home Long Stay Fees,27-Oct,"3,222.67"
460465,ELIZABETH HOUSE,Adult Social Care,Adults,Nursing Home Long Stay Fees,27-Oct,"3,133.24"
460465,Fairfield View Care Home T/A Fairfield View Ltd (In Administration) T/A Fairfield View,Adult Social Care,Adults,Nursing Home Long Stay Fees,27-Oct,"134,619.34"
460465,FERN BANK THERAPEUTIC COMMUNITY LTD,Adult Social Care,Adults,Nursing Home Long Stay Fees,27-Oct,"24,949.12"
460465,FINBROOK LTD t/a BERRYCROFT MANOR,Adult Social Care,Adults,Nursing Home Long Stay Fees,27-Oct,"3,040.48"
460465,Fir Trees t/a Meridian Healthcare LTD,Adult Social Care,Adults,Nursing Home Long Stay Fees,27-Oct,"103,994.73"
460465,FRANCIS HOUSE FAMILIES LTD,Adult Social Care,Adults,Nursing Home Long Stay Fees,27-Oct,"7,810.50"
460465,Greatwood House t/a Meridian Healthcare LTD,Adult Social Care,Adults,Nursing Home Long Stay Fees,27-Oct,"78,701.64"
460465,HC ONE OF A KIND - KINGS PARK,Adult Social Care,Adults,Nursing Home Long Stay Fees,27-Oct,"54,371.98"
460465,HC-ONE LIMITED - BROOKDALE VIEW,Adult Social Care,Adults,Nursing Home Long Stay Fees,27-Oct,"1,704.99"
460465,"HC-ONE LTD, Sunnyside Care Home",Adult Social Care,Adults,Nursing Home Long Stay Fees,27-Oct,"74,383.26"
460465,HEATHCOTES M LTD,Adult Social Care,Adults,Nursing Home Long Stay Fees,27-Oct,"27,208.30"
460465,HEATHCOTES THE ROOKERY,Adult Social Care,Adults,Nursing Home Long Stay Fees,27-Oct,"18,995.43"
460465,HEATON LODGE,Adult Social Care,Adults,Nursing Home Long Stay Fees,27-Oct,"2,992.63"
460465,Holme Lea t/a Meridian Healthcare LTD,Adult Social Care,Adults,Nursing Home Long Stay Fees,27-Oct,"132,026.28"
460465,HURST HALL CARE HOME LTD,Adult Social Care,Adults,Nursing Home Long Stay Fees,27-Oct,"79,525.40"
460465,Ideal Carehomes Number One Limited,Adult Social Care,Adults,Nursing Home Long Stay Fees,27-Oct,"3,040.48"
460465,INSTITUTE OF OUR LADY  OF MERCY,Adult Social Care,Adults,Nursing Home Long Stay Fees,27-Oct,"2,466.89"
460465,L & M HEALTHCARE,Adult Social Care,Adults,Nursing Home Long Stay Fees,27-Oct,"7,045.32"
460465,LAUREL BANK RESIDENTIAL CARE HOME LTD,Adult Social Care,Adults,Nursing Home Long Stay Fees,27-Oct,"9,104.51"
460465,LONGWOOD LODGE CARE LTD t/a Longwood Lodge Care Home,Adult Social Care,Adults,Nursing Home Long Stay Fees,27-Oct,"2,745.71"
460465,MARPLE DALE HALL LTD,Adult Social Care,Adults,Nursing Home Long Stay Fees,27-Oct,"6,363.63"
460465,MBI SOCIAL CARE LTD TAS DOWNSHAW LODGE CARE HOME,Adult Social Care,Adults,Nursing Home Long Stay Fees,27-Oct,"57,649.43"
460465,MERIDIAN HEALTH CARE LTD TAS GUIDE LANE,Adult Social Care,Adults,Nursing Home Long Stay Fees,27-Oct,"60,988.60"
460465,Millbrook Care Home t/a Meridian Healthcare LTD,Adult Social Care,Adults,Nursing Home Long Stay Fees,27-Oct,"14,805.72"
460465,MILLFIELD CARE HOME - QUALIA CARE,Adult Social Care,Adults,Nursing Home Long Stay Fees,27-Oct,"2,191.80"
460465,Minster Care Management -T/A REDHILL,Adult Social Care,Adults,Nursing Home Long Stay Fees,27-Oct,"3,144.13"
460465,MOSS COTTAGE NURSING HOME,Adult Social Care,Adults,Nursing Home Long Stay Fees,27-Oct,"80,689.12"
460465,Northern Healthcare Limited tas Holland House/Montgomery House,Adult Social Care,Adults,Nursing Home Long Stay Fees,27-Oct,"10,279.89"
460465,NYMS SERVICES LTD TAS PENNINE CARE CENTRE,Adult Social Care,Adults,Nursing Home Long Stay Fees,27-Oct,"20,537.80"
460465,OAKDENE CARE HOME T/A OAKDENE CARE HOME LTD,Adult Social Care,Adults,Nursing Home Long Stay Fees,27-Oct,"3,957.55"
460465,OAKWOOD CARE CENTRE,Adult Social Care,Adults,Nursing Home Long Stay Fees,27-Oct,"18,896.50"
460465,PARTNERSHIP CARING LTD TAS FIRBANK HOUSE NURSING & RESIDENTIAL CARE HOME,Adult Social Care,Adults,Nursing Home Long Stay Fees,27-Oct,"60,180.36"
460465,Pendlebury Care Homes Ltd tas Regency Hall Care Home,Adult Social Care,Adults,Nursing Home Long Stay Fees,27-Oct,"27,895.32"
460465,POLEBANK HALL RESIDENTIAL CARE HOME LTD,Adult Social Care,Adults,Nursing Home Long Stay Fees,27-Oct,"9,697.84"
460465,Postgrad Ltd - Treelands Care Home,Adult Social Care,Adults,Nursing Home Long Stay Fees,27-Oct,"3,029.98"
460465,PROGRESS CARE & EDUCATION LTD,Adult Social Care,Adults,Nursing Home Long Stay Fees,27-Oct,"17,198.76"
460465,ROEFIELD SPECIALIST CARE LIMITED t/a THISTLE MANOR,Adult Social Care,Adults,Nursing Home Long Stay Fees,27-Oct,"18,826.55"
460465,Rose Keys (Lifeways),Adult Social Care,Adults,Nursing Home Long Stay Fees,27-Oct,"15,338.61"
460465,ROYAL MASONIC BENEVOLENT INSTITUTION,Adult Social Care,Adults,Nursing Home Long Stay Fees,27-Oct,"3,101.11"
460465,SALUTEM LD BIDCO IV LIMITED T/A AMBITO CARE AND EDUCATION,Adult Social Care,Adults,Nursing Home Long Stay Fees,27-Oct,"10,416.89"
460465,Sandon House t/a Meridian Healthcare LTD,Adult Social Care,Adults,Nursing Home Long Stay Fees,27-Oct,"86,063.39"
460465,SOUTHERN CROSS HEALTHCARE,Adult Social Care,Adults,Nursing Home Long Stay Fees,27-Oct,"6,863.74"
460465,SPINAL UNIT ACTION GROUP,Adult Social Care,Adults,Nursing Home Long Stay Fees,27-Oct,"7,616.72"
460465,ST GEORGE'S NURSING HOME (OLDHAM) LTD,Adult Social Care,Adults,Nursing Home Long Stay Fees,27-Oct,"34,347.55"
460465,ST LAWRENCES LODGE,Adult Social Care,Adults,Nursing Home Long Stay Fees,27-Oct,"17,971.79"
460465,STALEY HOUSE EPH,Adult Social Care,Adults,Nursing Home Long Stay Fees,27-Oct,"48,134.19"
460465,Stamford Court Nursing t/a Meridian Healthcare LTD,Adult Social Care,Adults,Nursing Home Long Stay Fees,27-Oct,"121,527.93"
460465,SUNNY BANK PRS LTD,Adult Social Care,Adults,Nursing Home Long Stay Fees,27-Oct,"2,830.89"
460465,The Coppice Care Home,Adult Social Care,Adults,Nursing Home Long Stay Fees,27-Oct,"3,212.84"
460465,The Grange,Adult Social Care,Adults,Nursing Home Long Stay Fees,27-Oct,"2,514.85"
460465,THE JOSEPH COX CHARITY,Adult Social Care,Adults,Nursing Home Long Stay Fees,27-Oct,"12,789.87"
460465,The Lakes Care Centre T/A Blackcliffe Ltd (In Administration) T/A The Lakes Care Centre,Adult Social Care,Adults,Nursing Home Long Stay Fees,27-Oct,"87,023.81"
460465,THE LIGHT HOUSE (Bloomcare Group),Adult Social Care,Adults,Nursing Home Long Stay Fees,27-Oct,"36,117.09"
460465,THE ROYAL ELMS CARE HOME,Adult Social Care,Adults,Nursing Home Long Stay Fees,27-Oct,"1,540.62"
460465,The Sycamores t/a Meridian Health Care LTD,Adult Social Care,Adults,Nursing Home Long Stay Fees,27-Oct,"73,319.35"
460465,THE VICARAGE RESIDENTIAL CARE HOME,Adult Social Care,Adults,Nursing Home Long Stay Fees,27-Oct,"23,443.67"
460465,THORNCLIFFE GRANGE NURSING HOME,Adult Social Care,Adults,Nursing Home Long Stay Fees,27-Oct,"71,033.17"
460465,TREETOPS,Adult Social Care,Adults,Nursing Home Long Stay Fees,27-Oct,"58,345.10"
460465,Tulsi Homes Ltd T/A Clarkson House (new),Adult Social Care,Adults,Nursing Home Long Stay Fees,27-Oct,"35,058.77"
460465,VOYAGE CARE LIMITED,Adult Social Care,Adults,Nursing Home Long Stay Fees,27-Oct,"15,055.06"
460465,Wellington Healthcare (Arden) Ltd t/a Bloomcare,Adult Social Care,Adults,Nursing Home Long Stay Fees,27-Oct,"2,797.48"
460465,Woodrow House ( Cygnet Healthcare),Adult Social Care,Adults,Nursing Home Long Stay Fees,27-Oct,"15,336.94"
460465,Yew Trees t/a Meridian Healthcare LTD,Adult Social Care,Adults,Nursing Home Long Stay Fees,27-Oct,"78,180.36"
460465,ZZ DUP - The Coach House,Adult Social Care,Adults,Nursing Home Long Stay Fees,27-Oct,"37,324.84"
460466,CARE UK LTD TAS RIVERSIDE CARE CENTRE,Adult Social Care,Adults,Nursing Home Long Stay Fees,01-Nov,"150,136.03"
460466,HURST HALL CARE HOME LTD,Adult Social Care,Adults,Nursing Home Long Stay Fees,01-Nov,"10,461.54"
460466,Next Chapter Healthcare Ltd,Adult Social Care,Adults,Nursing Home Long Stay Fees,01-Nov,"11,250.74"
460467,Abbey Healthcare Ltd t/a Farnworth Care Home,Adult Social Care,Adults,Nursing Home Long Stay Fees,28-Nov,"1,756.46"
460467,Achieve Together Limited,Adult Social Care,Adults,Nursing Home Long Stay Fees,28-Nov,"7,535.42"
460467,Advinia Care Homes Ltd,Adult Social Care,Adults,Nursing Home Long Stay Fees,28-Nov,"3,077.21"
460467,Anchor,Adult Social Care,Adults,Nursing Home Long Stay Fees,28-Nov,"5,580.04"
460467,ANCHOR HANOVER GROUP TAS HATTON GRANGE CARE HOME,Adult Social Care,Adults,Nursing Home Long Stay Fees,28-Nov,"66,635.15"
460467,ASHGROVE HOUSE CARE LTD,Adult Social Care,Adults,Nursing Home Long Stay Fees,28-Nov,"1,872.75"
460467,AUDEN HOUSE RESIDENTIAL HOME,Adult Social Care,Adults,Nursing Home Long Stay Fees,28-Nov,"16,013.49"
460467,Avery Homes Moston Ltd- Acacia Lodge,Adult Social Care,Adults,Nursing Home Long Stay Fees,28-Nov,"7,913.16"
460467,Barchester Healthcare t/a Glenroyd Care Home,Adult Social Care,Adults,Nursing Home Long Stay Fees,28-Nov,"3,761.70"
460467,Beeches t/a Meridian Healthcare LTD,Adult Social Care,Adults,Nursing Home Long Stay Fees,28-Nov,"62,357.46"
460467,BELMONT PARKHILL LTD,Adult Social Care,Adults,Nursing Home Long Stay Fees,02-Dec,"68,394.42"
460467,BOWERFIELD COURT,Adult Social Care,Adults,Nursing Home Long Stay Fees,28-Nov,"17,006.52"
460467,BROOKFIELD RESIDENTIAL CARE HOME,Adult Social Care,Adults,Nursing Home Long Stay Fees,28-Nov,"2,711.96"
460467,BROOKVALE,Adult Social Care,Adults,Nursing Home Long Stay Fees,28-Nov,"8,060.93"
460467,BROUGHTON HOUSE HOME FOR  EX-SERVICE PERSONNEL,Adult Social Care,Adults,Nursing Home Long Stay Fees,28-Nov,"4,512.86"
460467,BROWNLOW HOUSE RESIDENTIAL CARE,Adult Social Care,Adults,Nursing Home Long Stay Fees,28-Nov,"9,056.40"
460467,BURRSWOOD CARE HOME,Adult Social Care,Adults,Nursing Home Long Stay Fees,28-Nov,"4,778.39"
460467,CAPSTONE CARE LTD T/A WALSHAW HALL,Adult Social Care,Adults,Nursing Home Long Stay Fees,28-Nov,"2,240.23"
460467,CARE TECH - ALPHA HOUSE CARE HOME,Adult Social Care,Adults,Nursing Home Long Stay Fees,28-Nov,"8,536.03"
460467,CARE UK LTD TAS RIVERSIDE CARE CENTRE,Adult Social Care,Adults,Nursing Home Long Stay Fees,28-Nov,"171,292.11"
460467,CARETECH COMMUNITY SERVICES LIMITED,Adult Social Care,Adults,Nursing Home Long Stay Fees,28-Nov,"27,415.38"
460467,Cartwright Care Balmoral Management Ltd,Adult Social Care,Adults,Nursing Home Long Stay Fees,28-Nov,"13,703.47"
460467,CHADDERTON TOTAL CAREUNIT LTD,Adult Social Care,Adults,Nursing Home Long Stay Fees,28-Nov,"6,232.67"
460467,CHERWOOD HOUSE CARE CENTRE,Adult Social Care,Adults,Nursing Home Long Stay Fees,28-Nov,"1,549.78"
460467,Clarence House Care Home,Adult Social Care,Adults,Nursing Home Long Stay Fees,28-Nov,"11,528.10"
460467,CYGNET LEARNING DISABILITIES LTD,Adult Social Care,Adults,Nursing Home Long Stay Fees,28-Nov,"12,093.06"
460467,D R Price Associates Limited t/a Chataway Nursing Home,Adult Social Care,Adults,Nursing Home Long Stay Fees,28-Nov,"3,429.00"
460467,Daisy Nook House t/a Meridian Healthcare LTD,Adult Social Care,Adults,Nursing Home Long Stay Fees,28-Nov,"54,967.40"
460467,DEVONSHIRE CARE LIMITED TAS CHARNLEY HOUSE,Adult Social Care,Adults,Nursing Home Long Stay Fees,28-Nov,"39,665.63"
460467,DOMAIN CARE NORTH WEST LTD,Adult Social Care,Adults,Nursing Home Long Stay Fees,28-Nov,"8,551.16"
460467,DOVES NEST LTD,Adult Social Care,Adults,Nursing Home Long Stay Fees,28-Nov,"5,645.60"
460467,EACH STEP T/A PARK HOMES UK LTD,Adult Social Care,Adults,Nursing Home Long Stay Fees,28-Nov,"15,923.26"
460467,EAST CHESHIRE HOUSING CONSORTIUM TAS THE COURTYARD,Adult Social Care,Adults,Nursing Home Long Stay Fees,28-Nov,"3,118.71"
460467,ELIZABETH HOUSE,Adult Social Care,Adults,Nursing Home Long Stay Fees,28-Nov,"3,237.68"
460467,Elysium Healthcare,Adult Social Care,Adults,Nursing Home Long Stay Fees,28-Nov,"30,759.77"
460467,Fairfield View Care Home T/A Fairfield View Ltd (In Administration) T/A Fairfield View,Adult Social Care,Adults,Nursing Home Long Stay Fees,28-Nov,"243,880.93"
460467,FERN BANK THERAPEUTIC COMMUNITY LTD,Adult Social Care,Adults,Nursing Home Long Stay Fees,28-Nov,"24,542.45"
460467,FIELDER LODGE,Adult Social Care,Adults,Nursing Home Long Stay Fees,28-Nov,"8,478.74"
460467,FINBROOK LTD t/a BERRYCROFT MANOR,Adult Social Care,Adults,Nursing Home Long Stay Fees,28-Nov,"2,942.40"
460467,Fir Trees t/a Meridian Healthcare LTD,Adult Social Care,Adults,Nursing Home Long Stay Fees,28-Nov,"133,671.65"
460467,FRANCIS HOUSE FAMILIES LTD,Adult Social Care,Adults,Nursing Home Long Stay Fees,28-Nov,"8,070.85"
460467,Greatwood House t/a Meridian Healthcare LTD,Adult Social Care,Adults,Nursing Home Long Stay Fees,28-Nov,"63,301.19"
460467,HC ONE OF A KIND - KINGS PARK,Adult Social Care,Adults,Nursing Home Long Stay Fees,28-Nov,"48,065.67"
460467,HC-ONE LIMITED - BROOKDALE VIEW,Adult Social Care,Adults,Nursing Home Long Stay Fees,28-Nov,"1,761.82"
460467,"HC-ONE LTD, Sunnyside Care Home",Adult Social Care,Adults,Nursing Home Long Stay Fees,28-Nov,"79,348.11"
460467,HEATHCOTES M LTD,Adult Social Care,Adults,Nursing Home Long Stay Fees,28-Nov,"26,330.62"
460467,HEATHCOTES THE ROOKERY,Adult Social Care,Adults,Nursing Home Long Stay Fees,28-Nov,"18,382.68"
460467,HEATON LODGE,Adult Social Care,Adults,Nursing Home Long Stay Fees,28-Nov,"3,092.38"
460467,HIGHFIELD HOUSE CARE HOME,Adult Social Care,Adults,Nursing Home Long Stay Fees,28-Nov,"4,993.29"
460467,Holme Lea t/a Meridian Healthcare LTD,Adult Social Care,Adults,Nursing Home Long Stay Fees,28-Nov,"93,413.42"
460467,HURST HALL CARE HOME LTD,Adult Social Care,Adults,Nursing Home Long Stay Fees,28-Nov,"64,631.06"
460467,Ideal Carehomes Number One Limited,Adult Social Care,Adults,Nursing Home Long Stay Fees,28-Nov,"2,942.40"
460467,INSTITUTE OF OUR LADY  OF MERCY,Adult Social Care,Adults,Nursing Home Long Stay Fees,28-Nov,"2,387.31"
460467,JVT CARE HOMES LTD T/A WATFORD HOUSE CARE HOME,Adult Social Care,Adults,Nursing Home Long Stay Fees,28-Nov,"5,745.76"
460467,L & M HEALTHCARE,Adult Social Care,Adults,Nursing Home Long Stay Fees,28-Nov,"8,426.83"
460467,LAUREL BANK RESIDENTIAL CARE HOME LTD,Adult Social Care,Adults,Nursing Home Long Stay Fees,28-Nov,"9,210.49"
460467,LEONARD CHESHIRE DISABILITY,Adult Social Care,Adults,Nursing Home Long Stay Fees,28-Nov,"24,738.98"
460467,LONGWOOD LODGE CARE LTD t/a Longwood Lodge Care Home,Adult Social Care,Adults,Nursing Home Long Stay Fees,28-Nov,"2,657.14"
460467,MARPLE DALE HALL LTD,Adult Social Care,Adults,Nursing Home Long Stay Fees,28-Nov,"6,158.36"
460467,MBI SOCIAL CARE LTD TAS DOWNSHAW LODGE CARE HOME,Adult Social Care,Adults,Nursing Home Long Stay Fees,28-Nov,"55,488.88"
460467,MERIDIAN HEALTH CARE LTD TAS GUIDE LANE,Adult Social Care,Adults,Nursing Home Long Stay Fees,28-Nov,"49,690.06"
460467,Millbrook Care Home t/a Meridian Healthcare LTD,Adult Social Care,Adults,Nursing Home Long Stay Fees,28-Nov,"37,501.97"
460467,MILLFIELD CARE HOME - QUALIA CARE,Adult Social Care,Adults,Nursing Home Long Stay Fees,28-Nov,"2,264.86"
460467,MOSS COTTAGE NURSING HOME,Adult Social Care,Adults,Nursing Home Long Stay Fees,28-Nov,"88,813.05"
460467,Next Chapter Healthcare Ltd,Adult Social Care,Adults,Nursing Home Long Stay Fees,28-Nov,"10,887.82"
460467,Northern Healthcare Limited tas Holland House/Montgomery House,Adult Social Care,Adults,Nursing Home Long Stay Fees,28-Nov,"10,348.92"
460467,NYMS SERVICES LTD TAS PENNINE CARE CENTRE,Adult Social Care,Adults,Nursing Home Long Stay Fees,28-Nov,"33,863.35"
460467,OAKDENE CARE HOME T/A OAKDENE CARE HOME LTD,Adult Social Care,Adults,Nursing Home Long Stay Fees,28-Nov,"3,829.89"
460467,OAKWOOD CARE CENTRE,Adult Social Care,Adults,Nursing Home Long Stay Fees,28-Nov,"38,122.30"
460467,PARKVIEW CARE HOME,Adult Social Care,Adults,Nursing Home Long Stay Fees,28-Nov,"7,954.02"
460467,PARTNERSHIP CARING LTD TAS FIRBANK HOUSE NURSING & RESIDENTIAL CARE HOME,Adult Social Care,Adults,Nursing Home Long Stay Fees,28-Nov,"63,117.17"
460467,Pendlebury Care Homes Ltd tas Regency Hall Care Home,Adult Social Care,Adults,Nursing Home Long Stay Fees,28-Nov,"4,426.92"
460467,POLEBANK HALL RESIDENTIAL CARE HOME LTD,Adult Social Care,Adults,Nursing Home Long Stay Fees,28-Nov,"13,998.25"
460467,PROGRESS CARE & EDUCATION LTD,Adult Social Care,Adults,Nursing Home Long Stay Fees,28-Nov,"16,643.96"
460467,Riverside Care Complex t/a Sure Healthcare Ltd,Adult Social Care,Adults,Nursing Home Long Stay Fees,28-Nov,"6,557.14"
460467,Rose Keys (Lifeways),Adult Social Care,Adults,Nursing Home Long Stay Fees,28-Nov,"15,849.90"
460467,SALUTEM LD BIDCO IV LIMITED T/A AMBITO CARE AND EDUCATION,Adult Social Care,Adults,Nursing Home Long Stay Fees,28-Nov,"10,080.86"
460467,Sandon House t/a Meridian Healthcare LTD,Adult Social Care,Adults,Nursing Home Long Stay Fees,28-Nov,"92,380.71"
460467,SIGN,Adult Social Care,Adults,Nursing Home Long Stay Fees,28-Nov,"24,559.34"
460467,SOUTHERN CROSS HEALTHCARE,Adult Social Care,Adults,Nursing Home Long Stay Fees,28-Nov,"2,338.20"
460467,ST GEORGE'S NURSING HOME (OLDHAM) LTD,Adult Social Care,Adults,Nursing Home Long Stay Fees,28-Nov,"33,239.58"
460467,ST LAWRENCES LODGE,Adult Social Care,Adults,Nursing Home Long Stay Fees,28-Nov,"22,041.86"
460467,STALEY HOUSE EPH,Adult Social Care,Adults,Nursing Home Long Stay Fees,28-Nov,"44,256.24"
460467,Stamford Court Nursing t/a Meridian Healthcare LTD,Adult Social Care,Adults,Nursing Home Long Stay Fees,28-Nov,"119,989.75"
460467,Sun Healthcare T/A Tapton Grove Care Home,Adult Social Care,Adults,Nursing Home Long Stay Fees,28-Nov,"9,464.24"
460467,SUNNY BANK PRS LTD,Adult Social Care,Adults,Nursing Home Long Stay Fees,28-Nov,"2,925.25"
460467,Thames House t/a Exemplar Health Care Partnerships LTD,Adult Social Care,Adults,Nursing Home Long Stay Fees,28-Nov,"28,208.66"
460467,The Coppice Care Home,Adult Social Care,Adults,Nursing Home Long Stay Fees,28-Nov,"3,324.13"
460467,THE JOSEPH COX CHARITY,Adult Social Care,Adults,Nursing Home Long Stay Fees,28-Nov,"3,903.70"
460467,The Lakes Care Centre T/A Blackcliffe Ltd (In Administration) T/A The Lakes Care Centre,Adult Social Care,Adults,Nursing Home Long Stay Fees,28-Nov,"84,825.45"
460467,THE LIGHT HOUSE (Bloomcare Group),Adult Social Care,Adults,Nursing Home Long Stay Fees,28-Nov,"61,382.18"
460467,The Sycamores t/a Meridian Health Care LTD,Adult Social Care,Adults,Nursing Home Long Stay Fees,28-Nov,"95,483.71"
460467,THE VICARAGE RESIDENTIAL CARE HOME,Adult Social Care,Adults,Nursing Home Long Stay Fees,28-Nov,"30,538.84"
460467,THORNCLIFFE GRANGE NURSING HOME,Adult Social Care,Adults,Nursing Home Long Stay Fees,28-Nov,"90,436.46"
460467,TREETOPS,Adult Social Care,Adults,Nursing Home Long Stay Fees,28-Nov,"53,657.52"
460467,Tulsi Homes Ltd T/A Clarkson House (new),Adult Social Care,Adults,Nursing Home Long Stay Fees,28-Nov,"32,269.08"
460467,VOYAGE CARE LIMITED,Adult Social Care,Adults,Nursing Home Long Stay Fees,28-Nov,"20,377.42"
460467,Woodrow House ( Cygnet Healthcare),Adult Social Care,Adults,Nursing Home Long Stay Fees,28-Nov,"64,895.80"
460467,Yew Trees t/a Meridian Healthcare LTD,Adult Social Care,Adults,Nursing Home Long Stay Fees,28-Nov,"150,698.18"
460467,ZZ DUP - The Coach House,Adult Social Care,Adults,Nursing Home Long Stay Fees,28-Nov,"38,569.00"
460468,Abbey Healthcare Ltd t/a Farnworth Care Home,Adult Social Care,Adults,Nursing Home Long Stay Fees,23-Dec,"3,318.68"
460468,Achieve Together Limited,Adult Social Care,Adults,Nursing Home Long Stay Fees,23-Dec,"3,829.47"
460468,Advinia Care Homes Ltd,Adult Social Care,Adults,Nursing Home Long Stay Fees,23-Dec,"3,400.00"
460468,Anchor,Adult Social Care,Adults,Nursing Home Long Stay Fees,23-Dec,"2,509.41"
460468,ANCHOR HANOVER GROUP TAS HATTON GRANGE CARE HOME,Adult Social Care,Adults,Nursing Home Long Stay Fees,23-Dec,"57,755.56"
460468,ASHGROVE HOUSE CARE LTD,Adult Social Care,Adults,Nursing Home Long Stay Fees,23-Dec,"3,320.99"
460468,AUDEN HOUSE RESIDENTIAL HOME,Adult Social Care,Adults,Nursing Home Long Stay Fees,23-Dec,"25,410.33"
460468,Avery Homes Moston Ltd- Acacia Lodge,Adult Social Care,Adults,Nursing Home Long Stay Fees,23-Dec,"1,355.29"
460468,Barchester Healthcare t/a Glenroyd Care Home,Adult Social Care,Adults,Nursing Home Long Stay Fees,23-Dec,"3,887.09"
460468,Beeches t/a Meridian Healthcare LTD,Adult Social Care,Adults,Nursing Home Long Stay Fees,23-Dec,"46,753.80"
460468,BELMONT PARKHILL LTD,Adult Social Care,Adults,Nursing Home Long Stay Fees,23-Dec,"48,775.36"
460468,BOWERFIELD COURT,Adult Social Care,Adults,Nursing Home Long Stay Fees,23-Dec,"17,866.55"
460468,BROOKFIELD RESIDENTIAL CARE HOME,Adult Social Care,Adults,Nursing Home Long Stay Fees,23-Dec,"2,802.36"
460468,BROOKVALE,Adult Social Care,Adults,Nursing Home Long Stay Fees,23-Dec,"11,079.88"
460468,BROUGHTON HOUSE HOME FOR  EX-SERVICE PERSONNEL,Adult Social Care,Adults,Nursing Home Long Stay Fees,23-Dec,"3,459.86"
460468,BROWNLOW HOUSE RESIDENTIAL CARE,Adult Social Care,Adults,Nursing Home Long Stay Fees,23-Dec,"4,602.44"
460468,BURRSWOOD CARE HOME,Adult Social Care,Adults,Nursing Home Long Stay Fees,23-Dec,"2,428.36"
460468,CAPSTONE CARE LTD T/A WALSHAW HALL,Adult Social Care,Adults,Nursing Home Long Stay Fees,23-Dec,"2,314.90"
460468,CARE TECH - ALPHA HOUSE CARE HOME,Adult Social Care,Adults,Nursing Home Long Stay Fees,23-Dec,"8,820.57"
460468,CARE UK LTD TAS RIVERSIDE CARE CENTRE,Adult Social Care,Adults,Nursing Home Long Stay Fees,23-Dec,"173,256.39"
460468,CARETECH COMMUNITY SERVICES LIMITED,Adult Social Care,Adults,Nursing Home Long Stay Fees,23-Dec,"3,827.70"
460468,Cartwright Care Balmoral Management Ltd,Adult Social Care,Adults,Nursing Home Long Stay Fees,23-Dec,"36,380.51"
460468,CHADDERTON TOTAL CAREUNIT LTD,Adult Social Care,Adults,Nursing Home Long Stay Fees,23-Dec,"4,739.85"
460468,CHERWOOD HOUSE CARE CENTRE,Adult Social Care,Adults,Nursing Home Long Stay Fees,23-Dec,"3,775.67"
460468,Clarence House Care Home,Adult Social Care,Adults,Nursing Home Long Stay Fees,23-Dec,"11,912.37"
460468,CYGNET LEARNING DISABILITIES LTD,Adult Social Care,Adults,Nursing Home Long Stay Fees,23-Dec,"10,875.73"
460468,D R Price Associates Limited t/a Chataway Nursing Home,Adult Social Care,Adults,Nursing Home Long Stay Fees,23-Dec,"3,543.30"
460468,Daisy Nook House t/a Meridian Healthcare LTD,Adult Social Care,Adults,Nursing Home Long Stay Fees,23-Dec,"48,052.14"
460468,DEVONSHIRE CARE LIMITED TAS CHARNLEY HOUSE,Adult Social Care,Adults,Nursing Home Long Stay Fees,23-Dec,"37,820.69"
460468,DOMAIN CARE NORTH WEST LTD,Adult Social Care,Adults,Nursing Home Long Stay Fees,23-Dec,"8,836.20"
460468,DOVES NEST LTD,Adult Social Care,Adults,Nursing Home Long Stay Fees,23-Dec,"3,841.96"
460468,EACH STEP T/A PARK HOMES UK LTD,Adult Social Care,Adults,Nursing Home Long Stay Fees,23-Dec,"8,092.14"
460468,EAST CHESHIRE HOUSING CONSORTIUM TAS THE COURTYARD,Adult Social Care,Adults,Nursing Home Long Stay Fees,23-Dec,"3,222.67"
460468,EHC MOSTON GRANGE LTD,Adult Social Care,Adults,Nursing Home Long Stay Fees,23-Dec,"136,483.81"
460468,ELIZABETH HOUSE,Adult Social Care,Adults,Nursing Home Long Stay Fees,23-Dec,"8,283.60"
460468,Elysium Healthcare,Adult Social Care,Adults,Nursing Home Long Stay Fees,23-Dec,"15,632.02"
460468,Equilibrium Healthcare Ltd tas Oakland House Nursing Home,Adult Social Care,Adults,Nursing Home Long Stay Fees,23-Dec,"89,625.01"
460468,Fairfield View Care Home T/A Fairfield View Ltd (In Administration) T/A Fairfield View,Adult Social Care,Adults,Nursing Home Long Stay Fees,23-Dec,"146,885.19"
460468,FERN BANK THERAPEUTIC COMMUNITY LTD,Adult Social Care,Adults,Nursing Home Long Stay Fees,23-Dec,"29,057.75"
460468,FIELDER LODGE,Adult Social Care,Adults,Nursing Home Long Stay Fees,23-Dec,"4,308.87"
460468,FINBROOK LTD t/a BERRYCROFT MANOR,Adult Social Care,Adults,Nursing Home Long Stay Fees,23-Dec,"3,040.48"
460468,Fir Trees t/a Meridian Healthcare LTD,Adult Social Care,Adults,Nursing Home Long Stay Fees,23-Dec,"141,343.23"
460468,FRANCIS HOUSE FAMILIES LTD,Adult Social Care,Adults,Nursing Home Long Stay Fees,23-Dec,"8,885.27"
460468,Greatwood House t/a Meridian Healthcare LTD,Adult Social Care,Adults,Nursing Home Long Stay Fees,23-Dec,"73,496.75"
460468,HC ONE OF A KIND - KINGS PARK,Adult Social Care,Adults,Nursing Home Long Stay Fees,23-Dec,"42,798.13"
460468,HC-ONE LIMITED - BROOKDALE VIEW,Adult Social Care,Adults,Nursing Home Long Stay Fees,23-Dec,"3,636.87"
460468,"HC-ONE LTD, Sunnyside Care Home",Adult Social Care,Adults,Nursing Home Long Stay Fees,23-Dec,"59,843.54"
460468,HEATHCOTES M LTD,Adult Social Care,Adults,Nursing Home Long Stay Fees,23-Dec,"27,208.30"
460468,HEATHCOTES THE ROOKERY,Adult Social Care,Adults,Nursing Home Long Stay Fees,23-Dec,"18,995.43"
460468,HEATON LODGE,Adult Social Care,Adults,Nursing Home Long Stay Fees,23-Dec,"3,092.39"
460468,HIGHFIELD HOUSE CARE HOME,Adult Social Care,Adults,Nursing Home Long Stay Fees,23-Dec,"2,537.57"
460468,Holme Lea t/a Meridian Healthcare LTD,Adult Social Care,Adults,Nursing Home Long Stay Fees,23-Dec,"101,246.42"
460468,HURST HALL CARE HOME LTD,Adult Social Care,Adults,Nursing Home Long Stay Fees,23-Dec,"55,942.65"
460468,Ideal Carehomes Number One Limited,Adult Social Care,Adults,Nursing Home Long Stay Fees,23-Dec,"3,040.48"
460468,INSTITUTE OF OUR LADY  OF MERCY,Adult Social Care,Adults,Nursing Home Long Stay Fees,23-Dec,"2,466.89"
460468,JVT CARE HOMES LTD T/A WATFORD HOUSE CARE HOME,Adult Social Care,Adults,Nursing Home Long Stay Fees,23-Dec,"2,919.98"
460468,L & M HEALTHCARE,Adult Social Care,Adults,Nursing Home Long Stay Fees,23-Dec,"7,431.32"
460468,LAUREL BANK RESIDENTIAL CARE HOME LTD,Adult Social Care,Adults,Nursing Home Long Stay Fees,23-Dec,"9,115.23"
460468,LEONARD CHESHIRE DISABILITY,Adult Social Care,Adults,Nursing Home Long Stay Fees,23-Dec,"12,572.27"
460468,LONGWOOD LODGE CARE LTD t/a Longwood Lodge Care Home,Adult Social Care,Adults,Nursing Home Long Stay Fees,23-Dec,"2,745.71"
460468,MARPLE DALE HALL LTD,Adult Social Care,Adults,Nursing Home Long Stay Fees,23-Dec,"6,363.63"
460468,Masterpalm Properties Ltd,Adult Social Care,Adults,Nursing Home Long Stay Fees,23-Dec,"6,669.43"
460468,MBI SOCIAL CARE LTD TAS DOWNSHAW LODGE CARE HOME,Adult Social Care,Adults,Nursing Home Long Stay Fees,23-Dec,"56,479.90"
460468,MERIDIAN HEALTH CARE LTD TAS GUIDE LANE,Adult Social Care,Adults,Nursing Home Long Stay Fees,23-Dec,"40,032.10"
460468,Millbrook Care Home t/a Meridian Healthcare LTD,Adult Social Care,Adults,Nursing Home Long Stay Fees,23-Dec,"37,058.66"
460468,MILLFIELD CARE HOME - QUALIA CARE,Adult Social Care,Adults,Nursing Home Long Stay Fees,23-Dec,"3,079.27"
460468,Minster Care Management -T/A REDHILL,Adult Social Care,Adults,Nursing Home Long Stay Fees,23-Dec,"7,312.28"
460468,MOSS COTTAGE NURSING HOME,Adult Social Care,Adults,Nursing Home Long Stay Fees,23-Dec,"57,521.03"
460468,Next Chapter Healthcare Ltd,Adult Social Care,Adults,Nursing Home Long Stay Fees,23-Dec,"11,250.74"
460468,Northern Healthcare Limited tas Holland House/Montgomery House,Adult Social Care,Adults,Nursing Home Long Stay Fees,23-Dec,"10,483.49"
460468,NYMS SERVICES LTD TAS PENNINE CARE CENTRE,Adult Social Care,Adults,Nursing Home Long Stay Fees,23-Dec,"37,091.69"
460468,OAKDENE CARE HOME T/A OAKDENE CARE HOME LTD,Adult Social Care,Adults,Nursing Home Long Stay Fees,23-Dec,"3,957.55"
460468,OAKWOOD CARE CENTRE,Adult Social Care,Adults,Nursing Home Long Stay Fees,23-Dec,"41,089.13"
460468,PARTNERSHIP CARING LTD TAS FIRBANK HOUSE NURSING & RESIDENTIAL CARE HOME,Adult Social Care,Adults,Nursing Home Long Stay Fees,23-Dec,"75,665.64"
460468,POLEBANK HALL RESIDENTIAL CARE HOME LTD,Adult Social Care,Adults,Nursing Home Long Stay Fees,23-Dec,"15,221.75"
460468,Postgrad Ltd - Treelands Care Home,Adult Social Care,Adults,Nursing Home Long Stay Fees,23-Dec,"5,962.23"
460468,PROGRESS CARE & EDUCATION LTD,Adult Social Care,Adults,Nursing Home Long Stay Fees,23-Dec,"17,198.76"
460468,ROEFIELD SPECIALIST CARE LIMITED t/a THISTLE MANOR,Adult Social Care,Adults,Nursing Home Long Stay Fees,23-Dec,"37,351.21"
460468,Rose Keys (Lifeways),Adult Social Care,Adults,Nursing Home Long Stay Fees,23-Dec,"16,664.32"
460468,ROYAL MASONIC BENEVOLENT INSTITUTION,Adult Social Care,Adults,Nursing Home Long Stay Fees,23-Dec,"6,102.17"
460468,SALUTEM LD BIDCO IV LIMITED T/A AMBITO CARE AND EDUCATION,Adult Social Care,Adults,Nursing Home Long Stay Fees,23-Dec,"10,416.89"
460468,Sanctuary Care Ltd,Adult Social Care,Adults,Nursing Home Long Stay Fees,23-Dec,"3,497.46"
460468,Sandon House t/a Meridian Healthcare LTD,Adult Social Care,Adults,Nursing Home Long Stay Fees,23-Dec,"49,736.62"
460468,SOUTHERN CROSS HEALTHCARE,Adult Social Care,Adults,Nursing Home Long Stay Fees,23-Dec,"3,740.19"
460468,SPINAL UNIT ACTION GROUP,Adult Social Care,Adults,Nursing Home Long Stay Fees,23-Dec,"8,556.00"
460468,ST GEORGE'S NURSING HOME (OLDHAM) LTD,Adult Social Care,Adults,Nursing Home Long Stay Fees,23-Dec,"34,347.55"
460468,ST LAWRENCES LODGE,Adult Social Care,Adults,Nursing Home Long Stay Fees,23-Dec,"11,764.72"
460468,STALEY HOUSE EPH,Adult Social Care,Adults,Nursing Home Long Stay Fees,23-Dec,"61,618.39"
460468,Stamford Court Nursing t/a Meridian Healthcare LTD,Adult Social Care,Adults,Nursing Home Long Stay Fees,23-Dec,"68,400.44"
460468,Sun Healthcare T/A Tapton Grove Care Home,Adult Social Care,Adults,Nursing Home Long Stay Fees,23-Dec,"4,809.69"
460468,SUNNY BANK PRS LTD,Adult Social Care,Adults,Nursing Home Long Stay Fees,23-Dec,"3,739.66"
460468,Thames House t/a Exemplar Health Care Partnerships LTD,Adult Social Care,Adults,Nursing Home Long Stay Fees,23-Dec,"14,335.56"
460468,THE JOSEPH COX CHARITY,Adult Social Care,Adults,Nursing Home Long Stay Fees,23-Dec,"6,850.82"
460468,The Lakes Care Centre T/A Blackcliffe Ltd (In Administration) T/A The Lakes Care Centre,Adult Social Care,Adults,Nursing Home Long Stay Fees,23-Dec,"114,956.56"
460468,THE LIGHT HOUSE (Bloomcare Group),Adult Social Care,Adults,Nursing Home Long Stay Fees,23-Dec,"40,643.80"
460468,THE ROYAL ELMS CARE HOME,Adult Social Care,Adults,Nursing Home Long Stay Fees,23-Dec,"15,748.56"
460468,THE SEYMOUR HOME LTD t/a Seymour Care Home,Adult Social Care,Adults,Nursing Home Long Stay Fees,23-Dec,"3,492.17"
460468,The Sycamores t/a Meridian Health Care LTD,Adult Social Care,Adults,Nursing Home Long Stay Fees,23-Dec,"75,713.17"
460468,THE VICARAGE RESIDENTIAL CARE HOME,Adult Social Care,Adults,Nursing Home Long Stay Fees,23-Dec,"29,615.43"
460468,THORNCLIFFE GRANGE NURSING HOME,Adult Social Care,Adults,Nursing Home Long Stay Fees,23-Dec,"104,537.78"
460468,TRACS Limited,Adult Social Care,Adults,Nursing Home Long Stay Fees,23-Dec,"29,283.56"
460468,TREETOPS,Adult Social Care,Adults,Nursing Home Long Stay Fees,23-Dec,"44,661.87"
460468,Tulsi Homes Ltd T/A Clarkson House (new),Adult Social Care,Adults,Nursing Home Long Stay Fees,23-Dec,"39,292.35"
460468,VOYAGE CARE LIMITED,Adult Social Care,Adults,Nursing Home Long Stay Fees,23-Dec,"23,239.06"
460468,Wellington Healthcare (Arden) Ltd t/a Bloomcare,Adult Social Care,Adults,Nursing Home Long Stay Fees,23-Dec,"5,504.73"
460468,Western Park Leicester Limited t/a Western Park Nursing Home,Adult Social Care,Adults,Nursing Home Long Stay Fees,23-Dec,"6,326.57"
460468,WOODLAND CARE HOME,Adult Social Care,Adults,Nursing Home Long Stay Fees,23-Dec,"14,898.55"
460468,Woodrow House ( Cygnet Healthcare),Adult Social Care,Adults,Nursing Home Long Stay Fees,23-Dec,"45,956.60"
460468,Yew Trees t/a Meridian Healthcare LTD,Adult Social Care,Adults,Nursing Home Long Stay Fees,23-Dec,"120,771.41"
460468,ZZ DUP - The Coach House,Adult Social Care,Adults,Nursing Home Long Stay Fees,23-Dec,"39,918.39"
470977,4WAY CONSULTING LTD,Operations and Neighbourhoods,Operations and Neighbourhoods,Engineers Recharge - Reactive Works (Internal),03-Oct,"4,233.60"
470977,AGGREGATE INDUSTRIES UK LIMITED,Operations and Neighbourhoods,Operations and Neighbourhoods,General Materials,03-Oct,"3,575.43"
470977,AIUK t/a SRM,Operations and Neighbourhoods,Operations and Neighbourhoods,General Materials,03-Oct,809.07
470977,ALTITUDE SERVICES,Operations and Neighbourhoods,Operations and Neighbourhoods,Sub-contractor Services,03-Oct,"1,805.82"
470977,ARCO LIMITED,Civil Engineers,Director of Place,Debits Goods Received,03-Oct,"1,100.51"
470977,ARCO LIMITED,Operations and Neighbourhoods,Operations and Neighbourhoods,General Materials,03-Oct,30.27
470977,ELECTRICITY NORTH WEST LTD,Operations and Neighbourhoods,Operations and Neighbourhoods,Sub-contractor Services,03-Oct,"1,834.67"
470977,HARDSCAPE PRODUCTS LTD,Operations and Neighbourhoods,Operations and Neighbourhoods,General Materials,07-Oct,"1,277.63"
470977,NORTHWEST UTILITY SOLUTIONS LTD,Operations and Neighbourhoods,Operations and Neighbourhoods,Sub-contractor Services,03-Oct,"5,250.00"
470977,pro garden projects,Operations and Neighbourhoods,Operations and Neighbourhoods,Sub-contractor Services,03-Oct,"1,600.00"
470977,TARMAC CENTRAL LIMITED,Operations and Neighbourhoods,Operations and Neighbourhoods,General Materials,03-Oct,"6,419.06"
470978,AGGREGATE INDUSTRIES UK LIMITED,Operations and Neighbourhoods,Operations and Neighbourhoods,General Materials,11-Oct,906.49
470978,ALLROADS TRAINING,Operations and Neighbourhoods,Operations and Neighbourhoods,Training Course Costs,11-Oct,"3,275.10"
470978,BRAMHALL SURFACING LTD,Operations and Neighbourhoods,Operations and Neighbourhoods,General Materials,11-Oct,"38,551.58"
470978,BRAMHALL SURFACING LTD,Operations and Neighbourhoods,Operations and Neighbourhoods,Sub-contractor Services,11-Oct,"17,150.00"
470978,EAGLE CIVIL ENGINEERING LTD,Operations and Neighbourhoods,Operations and Neighbourhoods,General Materials,11-Oct,"31,570.84"
470978,EAGLE CIVIL ENGINEERING LTD,Operations and Neighbourhoods,Operations and Neighbourhoods,Sub-contractor Services,11-Oct,124.8
470978,FAIRWAY LANDSCAPES LTD,Operations and Neighbourhoods,Operations and Neighbourhoods,Sub-contractor Services,11-Oct,"4,757.70"
470978,NORTHWEST UTILITY SOLUTIONS LTD,Operations and Neighbourhoods,Operations and Neighbourhoods,Sub-contractor Services,11-Oct,"6,300.00"
470978,pro garden projects,Operations and Neighbourhoods,Operations and Neighbourhoods,Sub-contractor Services,11-Oct,700
470978,TRAFFIC DIRECT LTD,Operations and Neighbourhoods,Operations and Neighbourhoods,General Materials,11-Oct,"15,762.00"
470978,TRAFFIC DIRECT LTD,Operations and Neighbourhoods,Operations and Neighbourhoods,Sub-contractor Services,11-Oct,256
470978,UBU ENVIRONMENTAL LTD,Operations and Neighbourhoods,Operations and Neighbourhoods,Sub-contractor Services,11-Oct,"1,800.00"
470979,ABBEY INDUSTRIAL SOLUTIONS LTD,Operations and Neighbourhoods,Operations and Neighbourhoods,General Materials,17-Oct,249
470979,ABBEY INDUSTRIAL SOLUTIONS LTD,Operations and Neighbourhoods,Operations and Neighbourhoods,Sub-contractor Services,17-Oct,452.05
470979,AGGREGATE INDUSTRIES UK LIMITED,Operations and Neighbourhoods,Operations and Neighbourhoods,General Materials,17-Oct,"1,169.13"
470979,AIUK t/a SRM,Operations and Neighbourhoods,Operations and Neighbourhoods,General Materials,17-Oct,717.11
470979,ALTITUDE SERVICES,Operations and Neighbourhoods,Operations and Neighbourhoods,Sub-contractor Services,17-Oct,"2,292.85"
470979,BRIDGE ELECTRICALSUPPLIES LTD,Operations and Neighbourhoods,Operations and Neighbourhoods,General Materials,17-Oct,"3,544.00"
470979,CHALLENGER SITE SERVICES LLP,Operations and Neighbourhoods,Operations and Neighbourhoods,General Materials,17-Oct,550
470979,COLAS LTD,Operations and Neighbourhoods,Operations and Neighbourhoods,General Materials,17-Oct,"1,575.00"
470979,EAGLE CIVIL ENGINEERING LTD,Operations and Neighbourhoods,Operations and Neighbourhoods,General Materials,17-Oct,"2,839.60"
470979,EAGLE CIVIL ENGINEERING LTD,Operations and Neighbourhoods,Operations and Neighbourhoods,Sub-contractor Services,17-Oct,"8,486.11"
470979,Holroyds Skip Hire Limited,Operations and Neighbourhoods,Operations and Neighbourhoods,General Materials,17-Oct,"3,000.00"
470979,INSTARMAC GROUP PLC,Civil Engineers,Director of Place,Debits Goods Received,17-Oct,"4,622.72"
470979,J9 LTD trading as BARRIERS DIRECT,Operations and Neighbourhoods,Operations and Neighbourhoods,General Materials,17-Oct,711
470979,MANCHESTER PLANT TRAINING LTD,Operations and Neighbourhoods,Operations and Neighbourhoods,Training Course Costs,17-Oct,"2,265.00"
470979,MULTEVO LIMITED,Operations and Neighbourhoods,Operations and Neighbourhoods,Training Course Costs,17-Oct,"3,090.00"
470979,Redacted Supplier,Operations and Neighbourhoods,Operations and Neighbourhoods,Training Course Costs,17-Oct,"1,200.00"
470979,PG FABRICATIONS,Multiple Heads of Service,Multiple Strategic Directorates,Tax Retained Sub Contractors,17-Oct,-63.4
470979,PG FABRICATIONS,Operations and Neighbourhoods,Operations and Neighbourhoods,General Materials,17-Oct,455
470979,PG FABRICATIONS,Operations and Neighbourhoods,Operations and Neighbourhoods,Sub-contractor Services,17-Oct,"1,130.00"
470979,Professional Quality Management Services Limited,Operations and Neighbourhoods,Operations and Neighbourhoods,Training Course Costs,17-Oct,"2,747.50"
470979,Rexel,Operations and Neighbourhoods,Operations and Neighbourhoods,General Materials,17-Oct,"1,602.83"
470979,Saint-Gobain Building Distribution Limited t/a Benchmark Building Supplies,Civil Engineers,Director of Place,Debits Goods Received,17-Oct,"1,536.40"
470979,TARMAC CENTRAL LIMITED,Operations and Neighbourhoods,Operations and Neighbourhoods,General Materials,17-Oct,"2,071.37"
470979,TOTALLY LOCAL COMPANY LIMITED,Operations and Neighbourhoods,Operations and Neighbourhoods,Tipping Facility Fees,17-Oct,775
470979,TRAFFIC DIRECT LTD,Operations and Neighbourhoods,Operations and Neighbourhoods,General Materials,17-Oct,"16,372.00"
470979,TRAFFIC DIRECT LTD,Operations and Neighbourhoods,Operations and Neighbourhoods,Sub-contractor Services,17-Oct,"5,866.00"
470980,ACORN LIGHTING SERVICES LTD,Operations and Neighbourhoods,Operations and Neighbourhoods,Sub-contractor Services,24-Oct,"7,920.00"
470980,BRAMHALL SURFACING LTD,Operations and Neighbourhoods,Operations and Neighbourhoods,General Materials,24-Oct,"16,614.32"
470980,BRAMHALL SURFACING LTD,Operations and Neighbourhoods,Operations and Neighbourhoods,Sub-contractor Services,24-Oct,"38,554.42"
470980,COMPASS MINERALS UK LTD,Civil Engineers,Director of Place,Debits Goods Received,24-Oct,"17,019.48"
470980,EAGLE CIVIL ENGINEERING LTD,Operations and Neighbourhoods,Operations and Neighbourhoods,General Materials,24-Oct,"2,839.60"
470980,J9 LTD trading as BARRIERS DIRECT,Engineers Client,Director of Place,General Materials,24-Oct,739.2
470980,MALLATITE LTD,Civil Engineers,Director of Place,Debits Goods Received,24-Oct,"3,886.80"
470980,Redacted Supplier,Operations and Neighbourhoods,Operations and Neighbourhoods,Training Course Costs,24-Oct,"1,340.00"
470980,NORTHWEST UTILITY SOLUTIONS LTD,Operations and Neighbourhoods,Operations and Neighbourhoods,Sub-contractor Services,24-Oct,"7,125.00"
470980,PG FABRICATIONS,Multiple Heads of Service,Multiple Strategic Directorates,Tax Retained Sub Contractors,24-Oct,-235.6
470980,PG FABRICATIONS,Operations and Neighbourhoods,Operations and Neighbourhoods,General Materials,24-Oct,128
470980,PG FABRICATIONS,Operations and Neighbourhoods,Operations and Neighbourhoods,Sub-contractor Services,24-Oct,330
470980,PG FABRICATIONS,(blank),(blank),Plant & Equipment,24-Oct,"5,350.00"
470980,PLANNED MAINTENANCE PENNINE LTD T/A PMP UTILITIES,Operations and Neighbourhoods,Operations and Neighbourhoods,Sub-contractor Services,24-Oct,"4,590.00"
470980,TARMAC CENTRAL LIMITED,Operations and Neighbourhoods,Operations and Neighbourhoods,General Materials,24-Oct,"1,346.67"
470980,UBU ENVIRONMENTAL LTD,Operations and Neighbourhoods,Operations and Neighbourhoods,Sub-contractor Services,24-Oct,"1,350.00"
470980,WILDE CONSULTING ENGINEERS,Operations and Neighbourhoods,Operations and Neighbourhoods,Sub-contractor Services,24-Oct,"2,153.92"
470981,AGGREGATE INDUSTRIES UK LIMITED,Operations and Neighbourhoods,Operations and Neighbourhoods,General Materials,31-Oct,"4,134.21"
470981,ALTITUDE SERVICES,Operations and Neighbourhoods,Operations and Neighbourhoods,Sub-contractor Services,31-Oct,"40,972.71"
470981,ARCO LIMITED,Civil Engineers,Director of Place,Debits Goods Received,31-Oct,584.81
470981,ARCO LIMITED,Operations and Neighbourhoods,Operations and Neighbourhoods,General Materials,31-Oct,580.46
470981,BOLLARD STREET,Engineers Client,Director of Place,General Materials,31-Oct,65
470981,BOLLARD STREET,Operations and Neighbourhoods,Operations and Neighbourhoods,General Materials,31-Oct,"4,869.00"
470981,BRAMHALL SURFACING LTD,Operations and Neighbourhoods,Operations and Neighbourhoods,Sub-contractor Services,31-Oct,"3,779.58"
470981,CASTINGS SERVICES LTD,Civil Engineers,Director of Place,Debits Goods Received,31-Oct,"1,786.95"
470981,COMPASS MINERALS UK LTD,Civil Engineers,Director of Place,Debits Goods Received,31-Oct,"46,018.09"
470981,GALA LIGHTS LIMITED,Operations and Neighbourhoods,Operations and Neighbourhoods,General Materials,31-Oct,"1,724.00"
470981,Holroyds Skip Hire Limited,Operations and Neighbourhoods,Operations and Neighbourhoods,General Materials,31-Oct,"2,250.00"
470981,KEN TAYLOR SUPPLIES LTD,Civil Engineers,Director of Place,Debits Goods Received,31-Oct,11.2
470981,KEN TAYLOR SUPPLIES LTD,Operations and Neighbourhoods,Operations and Neighbourhoods,General Materials,31-Oct,344.06
470981,KEN TAYLOR SUPPLIES LTD,(blank),(blank),Traffic Signs,31-Oct,449.5
470981,LIMELIGHT SIGNS LIMITED,Civil Engineers,Director of Place,Debits Goods Received,31-Oct,650
470981,LIMELIGHT SIGNS LIMITED,Operations and Neighbourhoods,Operations and Neighbourhoods,General Materials,31-Oct,63
470981,MALLATITE LTD,Civil Engineers,Director of Place,Debits Goods Received,31-Oct,"31,571.00"
470981,MALLATITE LTD,Operations and Neighbourhoods,Operations and Neighbourhoods,Engineers Recharge - Reactive Works (Internal),31-Oct,"36,624.01"
470981,P F CUSACK LTD,Civil Engineers,Director of Place,Debits Goods Received,31-Oct,"2,497.00"
470981,Rexel,Civil Engineers,Director of Place,Debits Goods Received,31-Oct,90
470981,Rexel,Operations and Neighbourhoods,Operations and Neighbourhoods,General Materials,31-Oct,634.58
470981,TARMAC CENTRAL LIMITED,Operations and Neighbourhoods,Operations and Neighbourhoods,General Materials,31-Oct,"6,320.76"
470981,Vertical Access Ltd,Operations and Neighbourhoods,Operations and Neighbourhoods,Sub-contractor Services,31-Oct,"1,105.00"
470982,ARCO LIMITED,Operations and Neighbourhoods,Operations and Neighbourhoods,General Materials,04-Nov,"1,202.77"
470982,BRAMHALL SURFACING LTD,Operations and Neighbourhoods,Operations and Neighbourhoods,Sub-contractor Services,04-Nov,"54,208.00"
470982,COMPASS MINERALS UK LTD,Civil Engineers,Director of Place,Debits Goods Received,04-Nov,"8,505.84"
470982,EAGLE CIVIL ENGINEERING LTD,Operations and Neighbourhoods,Operations and Neighbourhoods,General Materials,04-Nov,"6,273.90"
470982,FAIRWAY LANDSCAPES LTD,Operations and Neighbourhoods,Operations and Neighbourhoods,Sub-contractor Services,04-Nov,"4,340.00"
470982,INSTARMAC GROUP PLC,Civil Engineers,Director of Place,Debits Goods Received,04-Nov,"1,355.12"
470982,NORTHWEST UTILITY SOLUTIONS LTD,Operations and Neighbourhoods,Operations and Neighbourhoods,General Materials,04-Nov,900
470982,NORTHWEST UTILITY SOLUTIONS LTD,Operations and Neighbourhoods,Operations and Neighbourhoods,Sub-contractor Services,04-Nov,"26,250.00"
470982,ROWAN ASHWORTH LIMITED,Operations and Neighbourhoods,Operations and Neighbourhoods,Sub-contractor Services,04-Nov,"19,320.00"
470982,TARMAC CENTRAL LIMITED,Operations and Neighbourhoods,Operations and Neighbourhoods,General Materials,04-Nov,"2,666.58"
470982,TOTALLY LOCAL COMPANY LIMITED,Civil Engineers,Director of Place,Debits Goods Received,04-Nov,375.5
470982,TOTALLY LOCAL COMPANY LIMITED,Operations and Neighbourhoods,Operations and Neighbourhoods,Tipping Facility Fees,04-Nov,950
470982,TRAFFIC DIRECT LTD,Operations and Neighbourhoods,Operations and Neighbourhoods,General Materials,04-Nov,"11,716.00"
470982,UBU ENVIRONMENTAL LTD,Operations and Neighbourhoods,Operations and Neighbourhoods,Sub-contractor Services,04-Nov,"4,500.00"
470983,AGGREGATE INDUSTRIES UK LIMITED,Operations and Neighbourhoods,Operations and Neighbourhoods,General Materials,14-Nov,"7,154.26"
470983,ARCO LIMITED,Civil Engineers,Director of Place,Debits Goods Received,14-Nov,"1,219.78"
470983,ARCO LIMITED,Operations and Neighbourhoods,Operations and Neighbourhoods,General Materials,14-Nov,492.56
470983,BRIDGE ELECTRICALSUPPLIES LTD,Civil Engineers,Director of Place,Debits Goods Received,14-Nov,615.7
470983,BRIDGE ELECTRICALSUPPLIES LTD,Operations and Neighbourhoods,Operations and Neighbourhoods,General Materials,14-Nov,125
470983,BROXAP LIMITED,Operations and Neighbourhoods,Operations and Neighbourhoods,General Materials,14-Nov,"1,669.00"
470983,GARIC LTD,Operations and Neighbourhoods,Operations and Neighbourhoods,General Materials,14-Nov,938.45
470983,Holroyds Skip Hire Limited,Operations and Neighbourhoods,Operations and Neighbourhoods,General Materials,14-Nov,"1,750.00"
470983,LIMELIGHT SIGNS LIMITED,Civil Engineers,Director of Place,Debits Goods Received,14-Nov,262.7
470983,LIMELIGHT SIGNS LIMITED,Engineers Client,Director of Place,General Materials,14-Nov,25.88
470983,LIMELIGHT SIGNS LIMITED,Operations and Neighbourhoods,Operations and Neighbourhoods,General Materials,14-Nov,220.09
470983,MARCHINGTON STONE,Civil Engineers,Director of Place,Debits Goods Received,14-Nov,646.66
470983,MetDesk Limited,Operations and Neighbourhoods,Operations and Neighbourhoods,General Materials,14-Nov,"6,560.86"
470983,Redacted Supplier,Operations and Neighbourhoods,Operations and Neighbourhoods,Training Course Costs,14-Nov,600
470983,Saint-Gobain Building Distribution Limited t/a Benchmark Building Supplies,Civil Engineers,Director of Place,Debits Goods Received,14-Nov,"3,631.04"
470983,TARMAC CENTRAL LIMITED,Operations and Neighbourhoods,Operations and Neighbourhoods,General Materials,14-Nov,"3,647.06"
470984,AGGREGATE INDUSTRIES UK LIMITED,Operations and Neighbourhoods,Operations and Neighbourhoods,General Materials,22-Nov,"19,182.51"
470984,AIUK t/a SRM,Operations and Neighbourhoods,Operations and Neighbourhoods,General Materials,22-Nov,923.79
470984,ALTITUDE SERVICES,Operations and Neighbourhoods,Operations and Neighbourhoods,Sub-contractor Services,22-Nov,"1,319.54"
470984,ARCO LIMITED,Adult Social Care,Adults,General Materials,22-Nov,55
470984,ARCO LIMITED,Civil Engineers,Director of Place,Debits Goods Received,22-Nov,381.79
470984,ARCO LIMITED,Operations and Neighbourhoods,Operations and Neighbourhoods,General Materials,22-Nov,222.74
470984,BRAMHALL SURFACING LTD,Operations and Neighbourhoods,Operations and Neighbourhoods,Sub-contractor Services,22-Nov,"34,100.00"
470984,BRIDGE ELECTRICALSUPPLIES LTD,Civil Engineers,Director of Place,Debits Goods Received,22-Nov,"1,608.00"
470984,BRIDGE ELECTRICALSUPPLIES LTD,Operations and Neighbourhoods,Operations and Neighbourhoods,General Materials,22-Nov,160
470984,BROXAP LIMITED,Operations and Neighbourhoods,Operations and Neighbourhoods,General Materials,22-Nov,"2,791.00"
470984,EAGLE CIVIL ENGINEERING LTD,Operations and Neighbourhoods,Operations and Neighbourhoods,Sub-contractor Services,22-Nov,"6,201.49"
470984,KEN TAYLOR SUPPLIES LTD,Civil Engineers,Director of Place,Debits Goods Received,22-Nov,304.56
470984,KEN TAYLOR SUPPLIES LTD,Operations and Neighbourhoods,Operations and Neighbourhoods,General Materials,22-Nov,"1,434.06"
470984,NORTHWEST UTILITY SOLUTIONS LTD,Operations and Neighbourhoods,Operations and Neighbourhoods,Sub-contractor Services,22-Nov,"8,475.00"
470984,pro garden projects,Operations and Neighbourhoods,Operations and Neighbourhoods,Sub-contractor Services,22-Nov,"3,106.40"
470984,TARMAC CENTRAL LIMITED,Operations and Neighbourhoods,Operations and Neighbourhoods,General Materials,22-Nov,"6,641.66"
470984,UBU ENVIRONMENTAL LTD,Operations and Neighbourhoods,Operations and Neighbourhoods,Sub-contractor Services,22-Nov,"4,050.00"
470984,WILDE CONSULTING ENGINEERS,Operations and Neighbourhoods,Operations and Neighbourhoods,Sub-contractor Services,22-Nov,688
470984,WOTMIX LIMITED,Operations and Neighbourhoods,Operations and Neighbourhoods,General Materials,22-Nov,"1,807.00"
470984,ZODION LTD,Operations and Neighbourhoods,Operations and Neighbourhoods,General Materials,22-Nov,894
470985,4WAY CONSULTING LTD,Operations and Neighbourhoods,Operations and Neighbourhoods,Engineers Recharge - Reactive Works (Internal),28-Nov,"2,664.90"
470985,ABLE SAFETY SOLUTIONS LTD,Operations and Neighbourhoods,Operations and Neighbourhoods,General Materials,28-Nov,550
470985,AGGREGATE INDUSTRIES UK LIMITED,Operations and Neighbourhoods,Operations and Neighbourhoods,General Materials,28-Nov,"7,767.29"
470985,ARCO LIMITED,Civil Engineers,Director of Place,Debits Goods Received,28-Nov,539.4
470985,ARCO LIMITED,Operations and Neighbourhoods,Operations and Neighbourhoods,General Materials,28-Nov,411.27
470985,BRAMHALL SURFACING LTD,Operations and Neighbourhoods,Operations and Neighbourhoods,Sub-contractor Services,28-Nov,"38,335.86"
470985,CBS Building and Maintenance,Operations and Neighbourhoods,Operations and Neighbourhoods,General Materials,28-Nov,756.7
470985,COLAS LTD,Civil Engineers,Director of Place,Debits Goods Received,28-Nov,844.8
470985,COMPASS MINERALS UK LTD,Civil Engineers,Director of Place,Debits Goods Received,28-Nov,"20,678.52"
470985,EAGLE CIVIL ENGINEERING LTD,Operations and Neighbourhoods,Operations and Neighbourhoods,General Materials,28-Nov,"6,833.71"
470985,EAGLE CIVIL ENGINEERING LTD,Operations and Neighbourhoods,Operations and Neighbourhoods,Sub-contractor Services,28-Nov,"2,271.67"
470985,FAIRWAY LANDSCAPES LTD,Operations and Neighbourhoods,Operations and Neighbourhoods,Sub-contractor Services,28-Nov,583.2
470985,NORTHWEST UTILITY SOLUTIONS LTD,Operations and Neighbourhoods,Operations and Neighbourhoods,Sub-contractor Services,28-Nov,"12,600.00"
470985,SECURE-A-FIELD LTD,Engineers Client,Director of Place,Traffic Signs,28-Nov,"1,566.92"
470985,TARMAC CENTRAL LIMITED,Operations and Neighbourhoods,Operations and Neighbourhoods,General Materials,28-Nov,"1,622.73"
470985,TRAFFIC DIRECT LTD,Operations and Neighbourhoods,Operations and Neighbourhoods,Sub-contractor Services,28-Nov,"1,160.00"
470985,TRAFFIC DIRECT LTD,(blank),(blank),Street Lighting Works,28-Nov,480
470985,UBU ENVIRONMENTAL LTD,Operations and Neighbourhoods,Operations and Neighbourhoods,Sub-contractor Services,28-Nov,"4,500.00"
470985,WOLSELEY UK LTD,Operations and Neighbourhoods,Operations and Neighbourhoods,General Materials,28-Nov,"1,459.16"
470985,WOTMIX LIMITED,Operations and Neighbourhoods,Operations and Neighbourhoods,General Materials,28-Nov,666
470986,AGGREGATE INDUSTRIES UK LIMITED,Operations and Neighbourhoods,Operations and Neighbourhoods,General Materials,07-Dec,"2,912.66"
470986,ALTITUDE SERVICES,Operations and Neighbourhoods,Operations and Neighbourhoods,Sub-contractor Services,07-Dec,"22,618.28"
470986,BRIDGE ELECTRICALSUPPLIES LTD,Operations and Neighbourhoods,Operations and Neighbourhoods,General Materials,07-Dec,575
470986,"Jeremy Benn Associates Limited, t/a JBA Consulting",Operations and Neighbourhoods,Operations and Neighbourhoods,General Materials,07-Dec,"6,197.03"
470986,MAIN STREET SIGNS LIMITED,Operations and Neighbourhoods,Operations and Neighbourhoods,General Materials,07-Dec,500.5
470986,NORTHWEST UTILITY SOLUTIONS LTD,Operations and Neighbourhoods,Operations and Neighbourhoods,Sub-contractor Services,07-Dec,"6,562.50"
470986,TARMAC CENTRAL LIMITED,Operations and Neighbourhoods,Operations and Neighbourhoods,General Materials,07-Dec,"1,775.85"
470987,AGGREGATE INDUSTRIES UK LIMITED,Operations and Neighbourhoods,Operations and Neighbourhoods,General Materials,12-Dec,"9,378.45"
470987,AIUK t/a SRM,Operations and Neighbourhoods,Operations and Neighbourhoods,General Materials,12-Dec,803.46
470987,ALTITUDE SERVICES,Operations and Neighbourhoods,Operations and Neighbourhoods,General Materials,12-Dec,556.39
470987,ALTITUDE SERVICES,Operations and Neighbourhoods,Operations and Neighbourhoods,Sub-contractor Services,12-Dec,"31,426.52"
470987,ARCO LIMITED,Civil Engineers,Director of Place,Debits Goods Received,12-Dec,956.09
470987,BAY FREIGHT LTD,Operations and Neighbourhoods,Operations and Neighbourhoods,General Materials,12-Dec,606
470987,BLACHERE ILLUMINATION UK LTD,Operations and Neighbourhoods,Operations and Neighbourhoods,General Materials,12-Dec,"9,560.00"
470987,BRAMHALL SURFACING LTD,Operations and Neighbourhoods,Operations and Neighbourhoods,Sub-contractor Services,12-Dec,"20,368.38"
470987,CHALLENGER SITE SERVICES LLP,Operations and Neighbourhoods,Operations and Neighbourhoods,General Materials,12-Dec,679.5
470987,COLAS LTD,Operations and Neighbourhoods,Operations and Neighbourhoods,General Materials,12-Dec,"2,238.84"
470987,COMPASS MINERALS UK LTD,Civil Engineers,Director of Place,Debits Goods Received,12-Dec,"10,962.50"
470987,CU PHOSCO LIGHTING LTD,(blank),(blank),Plant & Equipment,12-Dec,"8,975.35"
470987,DIAMOND DECORATORS UK LTD,Operations and Neighbourhoods,Operations and Neighbourhoods,Sub-contractor Services,12-Dec,824.8
470987,EAGLE CIVIL ENGINEERING LTD,Operations and Neighbourhoods,Operations and Neighbourhoods,General Materials,12-Dec,"2,839.60"
470987,ELECTRICITY NORTH WEST LTD,Operations and Neighbourhoods,Operations and Neighbourhoods,Sub-contractor Services,12-Dec,948.72
470987,INSTARMAC GROUP PLC,Civil Engineers,Director of Place,Debits Goods Received,12-Dec,"2,084.80"
470987,INSTITUTE OF LIGHTING PROFESSIONALS,Operations and Neighbourhoods,Operations and Neighbourhoods,Sub-contractor Services,12-Dec,"1,168.35"
470987,KEN TAYLOR SUPPLIES LTD,Civil Engineers,Director of Place,Debits Goods Received,12-Dec,472.48
470987,KEN TAYLOR SUPPLIES LTD,Operations and Neighbourhoods,Operations and Neighbourhoods,General Materials,12-Dec,120.9
470987,"Larsen Manufacturing Ltd, t/a Larsen Building Products",Operations and Neighbourhoods,Operations and Neighbourhoods,General Materials,12-Dec,"1,620.00"
470987,MARWOOD ELECTRICAL CO,Operations and Neighbourhoods,Operations and Neighbourhoods,General Materials,12-Dec,"5,186.85"
470987,Redacted Supplier,Operations and Neighbourhoods,Operations and Neighbourhoods,Training Course Costs,12-Dec,500
470987,NORTHWEST UTILITY SOLUTIONS LTD,Operations and Neighbourhoods,Operations and Neighbourhoods,General Materials,12-Dec,900
470987,NORTHWEST UTILITY SOLUTIONS LTD,Operations and Neighbourhoods,Operations and Neighbourhoods,Sub-contractor Services,12-Dec,"13,881.77"
470987,PG FABRICATIONS,Multiple Heads of Service,Multiple Strategic Directorates,Tax Retained Sub Contractors,12-Dec,-114
470987,PG FABRICATIONS,Operations and Neighbourhoods,Operations and Neighbourhoods,General Materials,12-Dec,90
470987,PG FABRICATIONS,Operations and Neighbourhoods,Operations and Neighbourhoods,Sub-contractor Services,12-Dec,620
470987,RONDAR SIGNS LTD,Engineers Client,Director of Place,General Materials,12-Dec,551.25
470987,ROWAN ASHWORTH LIMITED,Operations and Neighbourhoods,Operations and Neighbourhoods,Sub-contractor Services,12-Dec,"7,360.00"
470987,Saint-Gobain Building Distribution Limited t/a Benchmark Building Supplies,Civil Engineers,Director of Place,Debits Goods Received,12-Dec,797.86
470987,TARMAC CENTRAL LIMITED,Operations and Neighbourhoods,Operations and Neighbourhoods,General Materials,12-Dec,"1,207.71"
470987,TOTALLY LOCAL COMPANY LIMITED,Civil Engineers,Director of Place,Debits Goods Received,12-Dec,940.5
470987,TOTALLY LOCAL COMPANY LIMITED,Operations and Neighbourhoods,Operations and Neighbourhoods,Tipping Facility Fees,12-Dec,"1,075.00"
470987,TRAFFIC DIRECT LTD,Operations and Neighbourhoods,Operations and Neighbourhoods,General Materials,12-Dec,"8,400.00"
470987,TRAFFIC DIRECT LTD,Operations and Neighbourhoods,Operations and Neighbourhoods,Sub-contractor Services,12-Dec,"1,580.00"
470987,TRAFFIC DIRECT LTD,(blank),(blank),Highway Construction,12-Dec,580
470987,UBU ENVIRONMENTAL LTD,Operations and Neighbourhoods,Operations and Neighbourhoods,Sub-contractor Services,12-Dec,"2,295.00"
470988,4WAY CONSULTING LTD,Operations and Neighbourhoods,Operations and Neighbourhoods,Engineers Recharge - Reactive Works (Internal),19-Dec,699.3
470988,AGGREGATE INDUSTRIES UK LIMITED,Operations and Neighbourhoods,Operations and Neighbourhoods,General Materials,19-Dec,723.92
470988,ALTITUDE SERVICES,Operations and Neighbourhoods,Operations and Neighbourhoods,General Materials,19-Dec,"18,080.66"
470988,BRAMHALL SURFACING LTD,Operations and Neighbourhoods,Operations and Neighbourhoods,Sub-contractor Services,19-Dec,"34,925.90"
470988,EAGLE CIVIL ENGINEERING LTD,Operations and Neighbourhoods,Operations and Neighbourhoods,General Materials,19-Dec,"5,976.55"
470988,EAGLE CIVIL ENGINEERING LTD,Operations and Neighbourhoods,Operations and Neighbourhoods,Sub-contractor Services,19-Dec,"9,650.85"
470988,LIMELIGHT SIGNS LIMITED,Civil Engineers,Director of Place,Debits Goods Received,19-Dec,568
470988,MALLATITE LTD,Civil Engineers,Director of Place,Debits Goods Received,19-Dec,532
470988,MALLATITE LTD,Operations and Neighbourhoods,Operations and Neighbourhoods,Engineers Recharge - Reactive Works (Internal),19-Dec,"21,541.59"
470988,NORTHWEST UTILITY SOLUTIONS LTD,Operations and Neighbourhoods,Operations and Neighbourhoods,Sub-contractor Services,19-Dec,"7,350.00"
470988,pro garden projects,Operations and Neighbourhoods,Operations and Neighbourhoods,Sub-contractor Services,19-Dec,900
470988,TARMAC CENTRAL LIMITED,Operations and Neighbourhoods,Operations and Neighbourhoods,General Materials,19-Dec,"1,561.01"
470988,WILDE CONSULTING ENGINEERS,Operations and Neighbourhoods,Operations and Neighbourhoods,Sub-contractor Services,19-Dec,"1,107.00"
3250883,NORTH WEST TIPPERS LIMITED,Operations and Neighbourhoods,Operations and Neighbourhoods,General Materials,03-Oct,"1,970.00"
3250884,A & J MOTORSPARES,Operations and Neighbourhoods,Operations and Neighbourhoods,Building Repairs,06-Oct,205
3250884,A & J MOTORSPARES,Operations and Neighbourhoods,Operations and Neighbourhoods,General Equipment Purchase,06-Oct,32.5
3250884,A & J MOTORSPARES,Operations and Neighbourhoods,Operations and Neighbourhoods,General Materials,06-Oct,673.77
3250884,AEBI SCHMIDT UK LTD,Operations and Neighbourhoods,Operations and Neighbourhoods,Consumable Materials,06-Oct,3.52
3250884,AEBI SCHMIDT UK LTD,Operations and Neighbourhoods,Operations and Neighbourhoods,General Materials,06-Oct,"1,338.13"
3250884,AEBI SCHMIDT UK LTD,Operations and Neighbourhoods,Operations and Neighbourhoods,Sub-contractor Services,06-Oct,248.75
3250884,AEBI SCHMIDT UK LTD,Transport,Director of Place,Debits Goods Received,06-Oct,"2,726.18"
3250884,DENNIS EAGLE LTD,Operations and Neighbourhoods,Operations and Neighbourhoods,General Materials,06-Oct,132.95
3250884,DENNIS EAGLE LTD,Operations and Neighbourhoods,Operations and Neighbourhoods,Sub-contractor Services,06-Oct,"12,043.64"
3250884,DENNIS EAGLE LTD,Transport,Director of Place,Debits Goods Received,06-Oct,"3,409.10"
3250884,ECON ENGINEERING LTD,Transport,Director of Place,Debits Goods Received,06-Oct,746.52
3250884,F. R. SHARROCK LIMITED,Operations and Neighbourhoods,Operations and Neighbourhoods,General Materials,06-Oct,667.74
3250884,F. R. SHARROCK LIMITED,Transport,Director of Place,Debits Goods Received,06-Oct,353.47
3250884,G B OILS TA CARLTON FUELS,Transport,Director of Place,Diesel Fuel,06-Oct,"29,060.47"
3250884,HTF TYRE SERVICES LTD,Operations and Neighbourhoods,Operations and Neighbourhoods,Tyre Costs,06-Oct,"5,245.40"
3250884,INNOVATIVE SAFETY SYSTEMS LIMITED,Transport,Director of Place,Debits Goods Received,06-Oct,680
3250884,LPW EUROPE LTD,Operations and Neighbourhoods,Operations and Neighbourhoods,General Equipment Repair & Maintenance,06-Oct,598.5
3250884,MOTUS COMMERCIALS OLDHAM,Operations and Neighbourhoods,Operations and Neighbourhoods,General Materials,06-Oct,131.63
3250884,MOTUS COMMERCIALS OLDHAM,Transport,Director of Place,Debits Goods Received,06-Oct,774.06
3250884,NORTH WEST TIPPERS LIMITED,Operations and Neighbourhoods,Operations and Neighbourhoods,General Materials,06-Oct,"1,035.00"
3250884,PARTS PLUS OLDHAM,Operations and Neighbourhoods,Operations and Neighbourhoods,General Materials,06-Oct,110.12
3250884,PARTS PLUS OLDHAM,Operations and Neighbourhoods,Operations and Neighbourhoods,Protective Clothing,06-Oct,467.8
3250884,PARTS PLUS OLDHAM,Transport,Director of Place,Debits Goods Received,06-Oct,105.14
3250884,STOCKPORT TRUCK CENTRE LTD,Operations and Neighbourhoods,Operations and Neighbourhoods,Sub-contractor Services,06-Oct,422.66
3250884,STOCKPORT TRUCK CENTRE LTD,Operations and Neighbourhoods,Operations and Neighbourhoods,Vehicle Inspection/Testing Costs,06-Oct,220
3250884,TRUCTYRE ATS,Operations and Neighbourhoods,Operations and Neighbourhoods,Tyre Costs,06-Oct,695.76
3250885,A & J MOTORSPARES,Operations and Neighbourhoods,Operations and Neighbourhoods,Building Repairs,13-Oct,279.99
3250885,A & J MOTORSPARES,Operations and Neighbourhoods,Operations and Neighbourhoods,Consumable Materials,13-Oct,10
3250885,A & J MOTORSPARES,Operations and Neighbourhoods,Operations and Neighbourhoods,General Equipment Purchase,13-Oct,8.25
3250885,A & J MOTORSPARES,Operations and Neighbourhoods,Operations and Neighbourhoods,General Materials,13-Oct,607.64
3250885,BURNT TREE GROUP LIMITED,Operations and Neighbourhoods,Operations and Neighbourhoods,Additional Hire,13-Oct,"1,942.75"
3250885,BURNT TREE GROUP LIMITED,Operations and Neighbourhoods,Operations and Neighbourhoods,Workshop Recharges including Misuse & Damage Costs,13-Oct,"3,571.52"
3250885,FREIGHT TRANSPORT ASSOCIATION,Operations and Neighbourhoods,Operations and Neighbourhoods,Training Course Costs,13-Oct,682
3250885,G B OILS TA CARLTON FUELS,Transport,Director of Place,Diesel Fuel,13-Oct,"40,016.60"
3250885,GARIC LTD,Operations and Neighbourhoods,Operations and Neighbourhoods,Additional Hire,13-Oct,"2,675.20"
3250885,HI-WAY COMPONENTS,Operations and Neighbourhoods,Operations and Neighbourhoods,General Materials,13-Oct,224.52
3250885,HI-WAY COMPONENTS,Transport,Director of Place,Debits Goods Received,13-Oct,299.62
3250885,JOHNSONS APPARELMASTER LTD,Operations and Neighbourhoods,Operations and Neighbourhoods,Protective Clothing,13-Oct,661.61
3250885,LEEDS COMMERCIAL LTD T/A LC VEHICLE HIRE,Operations and Neighbourhoods,Operations and Neighbourhoods,Additional Hire,13-Oct,"3,450.00"
3250885,LEEDS COMMERCIAL LTD T/A LC VEHICLE HIRE,Operations and Neighbourhoods,Operations and Neighbourhoods,Replacement Hire,13-Oct,"1,320.00"
3250885,MANCHESTER PLANT TRAINING LTD,Operations and Neighbourhoods,Operations and Neighbourhoods,Training Course Costs,13-Oct,740
3250885,MOTUS COMMERCIALS OLDHAM,Operations and Neighbourhoods,Operations and Neighbourhoods,General Materials,13-Oct,"1,815.13"
3250885,MULTEVO LIMITED,Operations and Neighbourhoods,Operations and Neighbourhoods,Additional Hire,13-Oct,"1,250.00"
3250885,PETER DOUGLASS PLATFORMS,Operations and Neighbourhoods,Operations and Neighbourhoods,Additional Hire,13-Oct,"3,256.00"
3250885,Popcorn Rocks Limited t/a Green Motion,Operations and Neighbourhoods,Operations and Neighbourhoods,Additional Hire,13-Oct,"3,615.40"
3250885,RIVERSIDE TRUCK RENTAL LIMITED,Operations and Neighbourhoods,Operations and Neighbourhoods,Additional Hire,13-Oct,"19,460.00"
3250885,RIVERSIDE TRUCK RENTAL LIMITED,Operations and Neighbourhoods,Operations and Neighbourhoods,Workshop Recharges including Misuse & Damage Costs,13-Oct,115
3250885,SCANLIFT LIMITED,Operations and Neighbourhoods,Operations and Neighbourhoods,General Equipment Purchase,03-Nov,619.48
3250885,Teletrac Navman (UK) LTD,Operations and Neighbourhoods,Operations and Neighbourhoods,General Equipment Repair & Maintenance,13-Oct,"5,385.33"
3250885,TRUCTYRE ATS,Operations and Neighbourhoods,Operations and Neighbourhoods,Tyre Costs,13-Oct,"2,205.55"
3250885,VISION TECHNIQUES LTD,Operations and Neighbourhoods,Operations and Neighbourhoods,Sub-contractor Services,13-Oct,500
3250886,AEBI SCHMIDT UK LTD,Operations and Neighbourhoods,Operations and Neighbourhoods,General Materials,20-Oct,247.9
3250886,AEBI SCHMIDT UK LTD,Transport,Director of Place,Debits Goods Received,20-Oct,"2,001.53"
3250886,AUTOSMART INTERNATIONAL,Operations and Neighbourhoods,Operations and Neighbourhoods,Consumable Materials,20-Oct,226.07
3250886,AUTOSMART INTERNATIONAL,Operations and Neighbourhoods,Operations and Neighbourhoods,General Equipment Repair & Maintenance,20-Oct,"1,066.85"
3250886,BRENNTAG UK LIMITED,Transport,Director of Place,Fuel / Ad Blu,20-Oct,"2,586.00"
3250886,BRIT-TIPP LTD,Operations and Neighbourhoods,Operations and Neighbourhoods,General Materials,20-Oct,932.16
3250886,DENNIS EAGLE LTD,Operations and Neighbourhoods,Operations and Neighbourhoods,Consumable Materials,20-Oct,400
3250886,DENNIS EAGLE LTD,Operations and Neighbourhoods,Operations and Neighbourhoods,General Materials,20-Oct,"4,389.98"
3250886,DENNIS EAGLE LTD,Operations and Neighbourhoods,Operations and Neighbourhoods,Sub-contractor Services,20-Oct,"2,367.73"
3250886,DENNIS EAGLE LTD,Transport,Director of Place,Debits Goods Received,20-Oct,"3,746.86"
3250886,ECON ENGINEERING LTD,Operations and Neighbourhoods,Operations and Neighbourhoods,General Materials,20-Oct,180
3250886,ECON ENGINEERING LTD,Transport,Director of Place,Debits Goods Received,20-Oct,361.02
3250886,HTF TYRE SERVICES LTD,Operations and Neighbourhoods,Operations and Neighbourhoods,Tyre Costs,20-Oct,"2,103.36"
3250886,INDUSTRIAL & HYDRAULIC SERVICES,Operations and Neighbourhoods,Operations and Neighbourhoods,General Materials,20-Oct,118.72
3250886,INDUSTRIAL & HYDRAULIC SERVICES,Operations and Neighbourhoods,Operations and Neighbourhoods,Sub-contractor Services,20-Oct,533.89
3250886,JOHNSTON SWEEPERS LTD,Operations and Neighbourhoods,Operations and Neighbourhoods,General Materials,20-Oct,"1,697.69"
3250886,JOHNSTON SWEEPERS LTD,Operations and Neighbourhoods,Operations and Neighbourhoods,Sub-contractor Services,20-Oct,813.48
3250886,MULTEVO LIMITED,Operations and Neighbourhoods,Operations and Neighbourhoods,General Materials,20-Oct,45.15
3250886,MULTEVO LIMITED,Operations and Neighbourhoods,Operations and Neighbourhoods,Sub-contractor Services,20-Oct,"3,643.34"
3250887,A & J MOTORSPARES,Operations and Neighbourhoods,Operations and Neighbourhoods,Building Repairs,27-Oct,364
3250887,A & J MOTORSPARES,Operations and Neighbourhoods,Operations and Neighbourhoods,Consumable Materials,27-Oct,64.88
3250887,A & J MOTORSPARES,Operations and Neighbourhoods,Operations and Neighbourhoods,General Materials,27-Oct,71.9
3250887,A & J MOTORSPARES,Operations and Neighbourhoods,Operations and Neighbourhoods,Protective Clothing,27-Oct,26.83
3250887,A & J MOTORSPARES,Transport,Director of Place,Debits Goods Received,27-Oct,274.76
3250887,CUMBERLAND PLATFORMS LTD,Operations and Neighbourhoods,Operations and Neighbourhoods,Sub-contractor Services,27-Oct,580.43
3250887,DENNIS EAGLE LTD,Operations and Neighbourhoods,Operations and Neighbourhoods,Consumable Materials,27-Oct,80
3250887,DENNIS EAGLE LTD,Operations and Neighbourhoods,Operations and Neighbourhoods,General Materials,27-Oct,"1,527.08"
3250887,DENNIS EAGLE LTD,Operations and Neighbourhoods,Operations and Neighbourhoods,Sub-contractor Services,27-Oct,"11,442.50"
3250887,DENNIS EAGLE LTD,Transport,Director of Place,Debits Goods Received,27-Oct,"3,150.33"
3250887,ECON ENGINEERING LTD,Operations and Neighbourhoods,Operations and Neighbourhoods,General Materials,27-Oct,549.31
3250887,ECON ENGINEERING LTD,Transport,Director of Place,Debits Goods Received,27-Oct,799.4
3250887,FUCHS LUBRICANTS UK PLC,Transport,Director of Place,Debits Goods Received,27-Oct,"2,601.00"
3250887,G B OILS TA CARLTON FUELS,Transport,Director of Place,Diesel Fuel,27-Oct,"15,196.76"
3250887,MOTUS COMMERCIALS OLDHAM,Operations and Neighbourhoods,Operations and Neighbourhoods,Consumable Materials,27-Oct,140
3250887,MOTUS COMMERCIALS OLDHAM,Operations and Neighbourhoods,Operations and Neighbourhoods,General Materials,27-Oct,937.36
3250887,PARTS PLUS OLDHAM,Transport,Director of Place,Debits Goods Received,27-Oct,538.39
3250887,RIVERSIDE TRUCK RENTAL LIMITED,Operations and Neighbourhoods,Operations and Neighbourhoods,Additional Hire,27-Oct,"2,189.00"
3250887,RIVERSIDE TRUCK RENTAL LIMITED,Operations and Neighbourhoods,Operations and Neighbourhoods,Sub-contractor Services,27-Oct,"1,965.05"
3250887,RIVERSIDE TRUCK RENTAL LIMITED,Operations and Neighbourhoods,Operations and Neighbourhoods,Workshop Recharges including Misuse & Damage Costs,27-Oct,75
3250887,STOCKPORT TRUCK CENTRE LTD,Operations and Neighbourhoods,Operations and Neighbourhoods,Sub-contractor Services,27-Oct,635.26
3250888,A & J MOTORSPARES,Operations and Neighbourhoods,Operations and Neighbourhoods,General Materials,03-Nov,703.34
3250888,AEBI SCHMIDT UK LTD,Operations and Neighbourhoods,Operations and Neighbourhoods,General Materials,03-Nov,454.49
3250888,AEBI SCHMIDT UK LTD,Transport,Director of Place,Debits Goods Received,03-Nov,"1,814.03"
3250888,Car Hire (Day of Swansea) Ltd t/a Days Rental,Operations and Neighbourhoods,Operations and Neighbourhoods,Additional Hire,03-Nov,"3,016.08"
3250888,DENNIS EAGLE LTD,Operations and Neighbourhoods,Operations and Neighbourhoods,Consumable Materials,03-Nov,-240
3250888,DENNIS EAGLE LTD,Operations and Neighbourhoods,Operations and Neighbourhoods,General Materials,03-Nov,"2,859.91"
3250888,DENNIS EAGLE LTD,Operations and Neighbourhoods,Operations and Neighbourhoods,Sub-contractor Services,03-Nov,"7,812.05"
3250888,DENNIS EAGLE LTD,Transport,Director of Place,Debits Goods Received,03-Nov,"2,891.81"
3250888,G B OILS TA CARLTON FUELS,Transport,Director of Place,Diesel Fuel,03-Nov,"31,871.47"
3250888,HTF TYRE SERVICES LTD,Operations and Neighbourhoods,Operations and Neighbourhoods,Tyre Costs,03-Nov,"1,840.00"
3250888,HYDRAULIC AND TRANSMISSION SERVICES LIMITED,Operations and Neighbourhoods,Operations and Neighbourhoods,Sub-contractor Services,03-Nov,908
3250888,HYDRAULIC AND TRANSMISSION SERVICES LIMITED,Transport,Director of Place,Debits Goods Received,03-Nov,760
3250888,JDS TRUCKS LIMITED,Operations and Neighbourhoods,Operations and Neighbourhoods,General Materials,03-Nov,556.98
3250888,JOHNSONS APPARELMASTER LTD,Operations and Neighbourhoods,Operations and Neighbourhoods,Protective Clothing,03-Nov,871.36
3250888,LLOYDS & COMPANY LETCHWORTH LIMITED,Operations and Neighbourhoods,Operations and Neighbourhoods,General Equipment Repair & Maintenance,04-Nov,919.24
3250888,LPW EUROPE LTD,Operations and Neighbourhoods,Operations and Neighbourhoods,General Equipment Repair & Maintenance,03-Nov,630
3250888,T & C MOTOR PANELS LIMITED,Operations and Neighbourhoods,Operations and Neighbourhoods,Sub-contractor Services,03-Nov,500
3250889,AEBI SCHMIDT UK LTD,Operations and Neighbourhoods,Operations and Neighbourhoods,General Materials,10-Nov,"2,346.99"
3250889,AEBI SCHMIDT UK LTD,Transport,Director of Place,Debits Goods Received,10-Nov,863.88
3250889,BURNT TREE GROUP LIMITED,Operations and Neighbourhoods,Operations and Neighbourhoods,Additional Hire,10-Nov,"1,262.30"
3250889,BURNT TREE GROUP LIMITED,Operations and Neighbourhoods,Operations and Neighbourhoods,Workshop Recharges including Misuse & Damage Costs,10-Nov,838.76
3250889,DENNIS EAGLE LTD,Operations and Neighbourhoods,Operations and Neighbourhoods,General Materials,10-Nov,"2,167.51"
3250889,DENNIS EAGLE LTD,Transport,Director of Place,Debits Goods Received,10-Nov,"1,971.27"
3250889,ECON ENGINEERING LTD,Transport,Director of Place,Debits Goods Received,10-Nov,"2,249.83"
3250889,FREIGHT TRANSPORT ASSOCIATION,Operations and Neighbourhoods,Operations and Neighbourhoods,Subscriptions,10-Nov,"1,250.00"
3250889,G B OILS TA CARLTON FUELS,Transport,Director of Place,Diesel Fuel,10-Nov,"30,118.96"
3250889,GARIC LTD,Operations and Neighbourhoods,Operations and Neighbourhoods,Additional Hire,10-Nov,"2,553.60"
3250889,JDS TRUCKS LIMITED,Transport,Director of Place,Debits Goods Received,10-Nov,983.6
3250889,LEEDS COMMERCIAL LTD T/A LC VEHICLE HIRE,Operations and Neighbourhoods,Operations and Neighbourhoods,Additional Hire,10-Nov,"5,565.00"
3250889,LEEDS COMMERCIAL LTD T/A LC VEHICLE HIRE,Operations and Neighbourhoods,Operations and Neighbourhoods,Replacement Hire,10-Nov,"1,260.00"
3250889,PETER DOUGLASS PLATFORMS,Operations and Neighbourhoods,Operations and Neighbourhoods,Additional Hire,10-Nov,"3,108.00"
3250889,RIVERSIDE TRUCK RENTAL LIMITED,Operations and Neighbourhoods,Operations and Neighbourhoods,Additional Hire,10-Nov,"7,938.00"
3250889,RIVERSIDE TRUCK RENTAL LIMITED,Operations and Neighbourhoods,Operations and Neighbourhoods,Sub-contractor Services,10-Nov,961.09
3250889,SCARAB SWEEPERS LTD,Operations and Neighbourhoods,Operations and Neighbourhoods,General Materials,10-Nov,571.46
3250889,TERBERG MATEC UK LTD,Operations and Neighbourhoods,Operations and Neighbourhoods,General Materials,10-Nov,"1,112.16"
3250889,TERBERG MATEC UK LTD,Transport,Director of Place,Debits Goods Received,10-Nov,117.5
3250889,TRUCTYRE ATS,Operations and Neighbourhoods,Operations and Neighbourhoods,Tyre Costs,10-Nov,779.57
3250889,WHALE TANKERS LTD,Operations and Neighbourhoods,Operations and Neighbourhoods,Sub-contractor Services,10-Nov,919.53
3250890,A & J MOTORSPARES,Operations and Neighbourhoods,Operations and Neighbourhoods,Building Repairs,17-Nov,108.88
3250890,A & J MOTORSPARES,Operations and Neighbourhoods,Operations and Neighbourhoods,General Materials,17-Nov,40.47
3250890,A & J MOTORSPARES,Transport,Director of Place,Debits Goods Received,17-Nov,602.62
3250890,DENNIS EAGLE LTD,Operations and Neighbourhoods,Operations and Neighbourhoods,General Materials,17-Nov,355.85
3250890,DENNIS EAGLE LTD,Transport,Director of Place,Debits Goods Received,17-Nov,662.56
3250890,G B OILS TA CARLTON FUELS,Transport,Director of Place,Diesel Fuel,17-Nov,"4,736.64"
3250890,JDS TRUCKS LIMITED,Operations and Neighbourhoods,Operations and Neighbourhoods,General Materials,17-Nov,"3,200.00"
3250890,RIVERSIDE TRUCK RENTAL LIMITED,Operations and Neighbourhoods,Operations and Neighbourhoods,Additional Hire,17-Nov,"2,985.00"
3250890,RIVERSIDE TRUCK RENTAL LIMITED,Operations and Neighbourhoods,Operations and Neighbourhoods,Sub-contractor Services,17-Nov,"1,751.37"
3250890,TURNER GROUNDSCARE,Operations and Neighbourhoods,Operations and Neighbourhoods,General Materials,17-Nov,635.3
3250890,WASTE PARTS UK LTD,Operations and Neighbourhoods,Operations and Neighbourhoods,General Materials,17-Nov,521.48
3250890,WASTE PARTS UK LTD,Transport,Director of Place,Debits Goods Received,17-Nov,"4,011.07"
3250890,WNV-Systems ltd,Operations and Neighbourhoods,Operations and Neighbourhoods,General Equipment Repair & Maintenance,17-Nov,"1,496.35"
3250891,AEBI SCHMIDT UK LTD,Operations and Neighbourhoods,Operations and Neighbourhoods,General Materials,24-Nov,394.05
3250891,AEBI SCHMIDT UK LTD,Operations and Neighbourhoods,Operations and Neighbourhoods,Sub-contractor Services,24-Nov,837.13
3250891,AEBI SCHMIDT UK LTD,Transport,Director of Place,Debits Goods Received,24-Nov,"1,020.02"
3250891,DENNIS EAGLE LTD,Operations and Neighbourhoods,Operations and Neighbourhoods,General Materials,24-Nov,"3,113.42"
3250891,DENNIS EAGLE LTD,Operations and Neighbourhoods,Operations and Neighbourhoods,Sub-contractor Services,24-Nov,"7,812.05"
3250891,DENNIS EAGLE LTD,Transport,Director of Place,Debits Goods Received,24-Nov,"1,604.88"
3250891,MILTON PUMP ENGINEERS LIMITED,Operations and Neighbourhoods,Operations and Neighbourhoods,General Equipment Repair & Maintenance,24-Nov,"5,100.00"
3250891,MOTUS COMMERCIALS OLDHAM,Operations and Neighbourhoods,Operations and Neighbourhoods,General Materials,24-Nov,"1,243.70"
3250891,MULTEVO LIMITED,Operations and Neighbourhoods,Operations and Neighbourhoods,General Materials,24-Nov,806.7
3250891,TRUCTYRE ATS,Operations and Neighbourhoods,Operations and Neighbourhoods,Tyre Costs,24-Nov,"2,874.34"
3250891,VISION TECHNIQUES LTD,Operations and Neighbourhoods,Operations and Neighbourhoods,Sub-contractor Services,24-Nov,"3,052.13"
3250891,WASTE PARTS UK LTD,Operations and Neighbourhoods,Operations and Neighbourhoods,General Materials,24-Nov,"1,223.08"
3250891,WASTE PARTS UK LTD,Transport,Director of Place,Debits Goods Received,24-Nov,566.37
3250892,A & J MOTORSPARES,Operations and Neighbourhoods,Operations and Neighbourhoods,General Materials,01-Dec,"1,229.45"
3250892,A & J MOTORSPARES,Transport,Director of Place,Debits Goods Received,01-Dec,125.96
3250892,AEBI SCHMIDT UK LTD,Transport,Director of Place,Debits Goods Received,01-Dec,"1,059.64"
3250892,AUTOSMART INTERNATIONAL,Operations and Neighbourhoods,Operations and Neighbourhoods,General Equipment Repair & Maintenance,01-Dec,557.67
3250892,BRENNTAG UK LIMITED,Transport,Director of Place,Fuel / Ad Blu,01-Dec,"2,310.00"
3250892,CALIBRATION &CONSULTANCYSERVICES (UK) LTD,Operations and Neighbourhoods,Operations and Neighbourhoods,General Equipment Repair & Maintenance,01-Dec,233.45
3250892,CALIBRATION &CONSULTANCYSERVICES (UK) LTD,Operations and Neighbourhoods,Operations and Neighbourhoods,Sub-contractor Services,01-Dec,371.45
3250892,DAWSONGROUP VANS LTD,Operations and Neighbourhoods,Operations and Neighbourhoods,Additional Hire,01-Dec,"1,032.00"
3250892,DENNIS EAGLE LTD,Operations and Neighbourhoods,Operations and Neighbourhoods,General Materials,01-Dec,233.45
3250892,DENNIS EAGLE LTD,Transport,Director of Place,Debits Goods Received,01-Dec,"3,460.94"
3250892,ECON ENGINEERING LTD,Operations and Neighbourhoods,Operations and Neighbourhoods,Additional Hire,01-Dec,717.99
3250892,ECON ENGINEERING LTD,Operations and Neighbourhoods,Operations and Neighbourhoods,Sub-contractor Services,01-Dec,"1,479.98"
3250892,ECON ENGINEERING LTD,Operations and Neighbourhoods,Operations and Neighbourhoods,Workshop Recharges including Misuse & Damage Costs,01-Dec,200
3250892,F. R. SHARROCK LIMITED,Operations and Neighbourhoods,Operations and Neighbourhoods,General Materials,01-Dec,262.24
3250892,F. R. SHARROCK LIMITED,Transport,Director of Place,Debits Goods Received,01-Dec,"3,385.68"
3250892,HTF TYRE SERVICES LTD,Operations and Neighbourhoods,Operations and Neighbourhoods,Tyre Costs,01-Dec,"2,632.99"
3250892,LEEDS COMMERCIAL LTD T/A LC VEHICLE HIRE,Operations and Neighbourhoods,Operations and Neighbourhoods,Replacement Hire,01-Dec,580
3250892,LEEDS COMMERCIAL LTD T/A LC VEHICLE HIRE,Operations and Neighbourhoods,Operations and Neighbourhoods,Workshop Recharges including Misuse & Damage Costs,01-Dec,39.9
3250892,MANTRA LEARNING LIMITED,Operations and Neighbourhoods,Operations and Neighbourhoods,Training Course Costs,01-Dec,515.75
3250892,NORCOMM (UK) LTD,Operations and Neighbourhoods,Operations and Neighbourhoods,Building Repairs,01-Dec,687
3250892,RIVERSIDE TRUCK RENTAL LIMITED,Operations and Neighbourhoods,Operations and Neighbourhoods,Additional Hire,01-Dec,"3,582.00"
3250892,STOCKPORT TRUCK CENTRE LTD,Operations and Neighbourhoods,Operations and Neighbourhoods,Sub-contractor Services,01-Dec,332.46
3250892,STOCKPORT TRUCK CENTRE LTD,Operations and Neighbourhoods,Operations and Neighbourhoods,Vehicle Inspection/Testing Costs,01-Dec,220
3250892,VISION TECHNIQUES LTD,Operations and Neighbourhoods,Operations and Neighbourhoods,Sub-contractor Services,01-Dec,"1,734.00"
3250892,WASTE PARTS UK LTD,Operations and Neighbourhoods,Operations and Neighbourhoods,General Materials,01-Dec,"1,393.03"
3250892,WASTE PARTS UK LTD,Transport,Director of Place,Debits Goods Received,01-Dec,990.93
3250893,AEBI SCHMIDT UK LTD,Operations and Neighbourhoods,Operations and Neighbourhoods,General Materials,08-Dec,"1,635.42"
3250893,AIR PRODUCTS PLC,Operations and Neighbourhoods,Operations and Neighbourhoods,General Equipment Repair & Maintenance,08-Dec,"2,760.46"
3250893,ANDREW LEES UPHOLSTERY LIMITED,Transport,Director of Place,Debits Goods Received,08-Dec,600
3250893,Car Hire (Day of Swansea) Ltd t/a Days Rental,Operations and Neighbourhoods,Operations and Neighbourhoods,Additional Hire,08-Dec,"1,591.92"
3250893,D & J MACHINERY SALES,Operations and Neighbourhoods,Operations and Neighbourhoods,General Materials,08-Dec,900
3250893,DENNIS EAGLE LTD,Operations and Neighbourhoods,Operations and Neighbourhoods,General Materials,08-Dec,357.36
3250893,DENNIS EAGLE LTD,Transport,Director of Place,Debits Goods Received,08-Dec,"3,401.98"
3250893,G B OILS TA CARLTON FUELS,Transport,Director of Place,Diesel Fuel,08-Dec,"12,698.73"
3250893,GARIC LTD,Operations and Neighbourhoods,Operations and Neighbourhoods,Additional Hire,08-Dec,"1,598.80"
3250893,GARIC LTD,Operations and Neighbourhoods,Operations and Neighbourhoods,Workshop Recharges including Misuse & Damage Costs,08-Dec,180
3250893,JOHNSONS APPARELMASTER LTD,Operations and Neighbourhoods,Operations and Neighbourhoods,Protective Clothing,08-Dec,859.8
3250893,LEEDS COMMERCIAL LTD T/A LC VEHICLE HIRE,Operations and Neighbourhoods,Operations and Neighbourhoods,Additional Hire,08-Dec,"7,810.00"
3250893,LEEDS COMMERCIAL LTD T/A LC VEHICLE HIRE,Operations and Neighbourhoods,Operations and Neighbourhoods,Replacement Hire,08-Dec,"3,280.00"
3250893,LEEDS COMMERCIAL LTD T/A LC VEHICLE HIRE,Operations and Neighbourhoods,Operations and Neighbourhoods,Sub-contractor Services,08-Dec,151.09
3250893,LPW EUROPE LTD,Operations and Neighbourhoods,Operations and Neighbourhoods,General Equipment Repair & Maintenance,08-Dec,630
3250893,MULTEVO LIMITED,Operations and Neighbourhoods,Operations and Neighbourhoods,General Materials,08-Dec,551.22
3250893,PARTS PLUS OLDHAM,Operations and Neighbourhoods,Operations and Neighbourhoods,Consumable Materials,08-Dec,-236.11
3250893,PARTS PLUS OLDHAM,Operations and Neighbourhoods,Operations and Neighbourhoods,General Equipment Repair & Maintenance,08-Dec,109.16
3250893,PARTS PLUS OLDHAM,Operations and Neighbourhoods,Operations and Neighbourhoods,General Materials,08-Dec,653.52
3250893,PARTS PLUS OLDHAM,Transport,Director of Place,Debits Goods Received,08-Dec,193.8
3250893,PETER DOUGLASS PLATFORMS,Operations and Neighbourhoods,Operations and Neighbourhoods,Additional Hire,08-Dec,"6,512.00"
3250893,RIVERSIDE TRUCK RENTAL LIMITED,Operations and Neighbourhoods,Operations and Neighbourhoods,Additional Hire,08-Dec,"8,117.00"
3250893,RIVERSIDE TRUCK RENTAL LIMITED,Operations and Neighbourhoods,Operations and Neighbourhoods,Sub-contractor Services,08-Dec,592.33
3250893,TRUCTYRE ATS,Operations and Neighbourhoods,Operations and Neighbourhoods,Tyre Costs,08-Dec,"1,248.30"
3250893,WASTE PARTS UK LTD,Transport,Director of Place,Debits Goods Received,08-Dec,633.76
3250894,A & J MOTORSPARES,Operations and Neighbourhoods,Operations and Neighbourhoods,Consumable Materials,15-Dec,9.4
3250894,A & J MOTORSPARES,Operations and Neighbourhoods,Operations and Neighbourhoods,General Materials,15-Dec,921.31
3250894,AEBI SCHMIDT UK LTD,Operations and Neighbourhoods,Operations and Neighbourhoods,General Materials,15-Dec,551.65
3250894,BB PLANT SERVICES LTD,Operations and Neighbourhoods,Operations and Neighbourhoods,Sub-contractor Services,15-Dec,947.46
3250894,DENNIS EAGLE LTD,Operations and Neighbourhoods,Operations and Neighbourhoods,General Materials,15-Dec,369.42
3250894,DENNIS EAGLE LTD,Operations and Neighbourhoods,Operations and Neighbourhoods,Sub-contractor Services,15-Dec,"8,843.27"
3250894,DENNIS EAGLE LTD,Transport,Director of Place,Debits Goods Received,15-Dec,110.28
3250894,ECON ENGINEERING LTD,Operations and Neighbourhoods,Operations and Neighbourhoods,General Materials,15-Dec,843.9
3250894,ECON ENGINEERING LTD,Operations and Neighbourhoods,Operations and Neighbourhoods,Sub-contractor Services,15-Dec,208.7
3250894,ECON ENGINEERING LTD,Transport,Director of Place,Debits Goods Received,15-Dec,515.1
3250894,G B OILS TA CARLTON FUELS,Transport,Director of Place,Diesel Fuel,15-Dec,"51,134.70"
3250894,G B OILS TA CARLTON FUELS,Transport,Director of Place,Petrol Fuel,15-Dec,"2,832.75"
3250894,MOTUS COMMERCIALS OLDHAM,Operations and Neighbourhoods,Operations and Neighbourhoods,General Materials,15-Dec,"1,361.75"
3250894,PHOENIX HSC (UK) Limited,Operations and Neighbourhoods,Operations and Neighbourhoods,Training Course Costs,15-Dec,790
3250894,Popcorn Rocks Limited t/a Green Motion,Operations and Neighbourhoods,Operations and Neighbourhoods,Additional Hire,15-Dec,"1,020.00"
3250894,Popcorn Rocks Limited t/a Green Motion,Operations and Neighbourhoods,Operations and Neighbourhoods,Workshop Recharges including Misuse & Damage Costs,15-Dec,30
3250894,TERBERG MATEC UK LTD,Transport,Director of Place,Debits Goods Received,15-Dec,"1,218.61"
3250894,TRUCTYRE ATS,Operations and Neighbourhoods,Operations and Neighbourhoods,Tyre Costs,15-Dec,979.71
3250895,A & J MOTORSPARES,Operations and Neighbourhoods,Operations and Neighbourhoods,Consumable Materials,22-Dec,57.3
3250895,A & J MOTORSPARES,Operations and Neighbourhoods,Operations and Neighbourhoods,General Materials,22-Dec,445.73
3250895,A & J MOTORSPARES,Operations and Neighbourhoods,Operations and Neighbourhoods,Protective Clothing,22-Dec,49
3250895,A & J MOTORSPARES,Transport,Director of Place,Debits Goods Received,22-Dec,344.43
3250895,DAWSONGROUP BUS AND COACH,Operations and Neighbourhoods,Operations and Neighbourhoods,Additional Hire,22-Dec,"1,032.00"
3250895,DENNIS EAGLE LTD,Operations and Neighbourhoods,Operations and Neighbourhoods,General Materials,22-Dec,518.7
3250895,DENNIS EAGLE LTD,Operations and Neighbourhoods,Operations and Neighbourhoods,Sub-contractor Services,22-Dec,"10,716.50"
3250895,DENNIS EAGLE LTD,Transport,Director of Place,Debits Goods Received,22-Dec,"2,409.29"
3250895,F. R. SHARROCK LIMITED,Operations and Neighbourhoods,Operations and Neighbourhoods,General Materials,22-Dec,544.66
3250895,F. R. SHARROCK LIMITED,Operations and Neighbourhoods,Operations and Neighbourhoods,Sub-contractor Services,22-Dec,"1,743.42"
3250895,F. R. SHARROCK LIMITED,Transport,Director of Place,Debits Goods Received,22-Dec,"2,086.40"
3250895,G B OILS TA CARLTON FUELS,Transport,Director of Place,Diesel Fuel,22-Dec,"21,373.77"
3250895,JDS TRUCKS LIMITED,Operations and Neighbourhoods,Operations and Neighbourhoods,General Materials,22-Dec,"1,274.80"
3250895,JDS TRUCKS LIMITED,Transport,Director of Place,Debits Goods Received,22-Dec,641.34
3250895,MAN TRUCK AND BUS UK LIMITED,Operations and Neighbourhoods,Operations and Neighbourhoods,General Materials,22-Dec,"3,297.15"
3250895,MOTUS COMMERCIALS OLDHAM,Operations and Neighbourhoods,Operations and Neighbourhoods,General Materials,22-Dec,"2,925.80"
3250895,MOTUS COMMERCIALS OLDHAM,Transport,Director of Place,Debits Goods Received,22-Dec,150.44
3250895,MULTEVO LIMITED,Operations and Neighbourhoods,Operations and Neighbourhoods,General Materials,22-Dec,931.29
3250895,PEAK PARTS,Operations and Neighbourhoods,Operations and Neighbourhoods,Consumable Materials,22-Dec,535.5
5432438,PA MCKEEVER LTD T/A MCKEEVERS CHEMISTS,Population Health,Population Health,Local Enhanced Services,13-Dec,595.42
5446891,Olive Branch Fostering LTD,Childrens Services,Children's Services,Foster Carer Agency Fees,04-Nov,"2,195.00"
5452462,INSPIREDSPACES TAMESIDE LTD,Asset & Investment Partnership Management,Growth,PFI FM Fees and Insurance Costs,06-Oct,"8,915.11"
5452824,PA MCKEEVER LTD T/A MCKEEVERS CHEMISTS,Population Health,Population Health,Local Enhanced Services,13-Dec,"1,159.02"
5454516,Hyde Little Theatre,Adult Social Care,Adults,Voluntary Organisations Fees,11-Nov,"8,500.00"
5456584,GREATER MANCHESTER COMBINED AUTHORITY,Operations and Neighbourhoods,Operations and Neighbourhoods,Passenger Transport Levy,11-Nov,"843,400.00"
5456586,GREATER MANCHESTER COMBINED AUTHORITY,Operations and Neighbourhoods,Operations and Neighbourhoods,Passenger Transport Levy,13-Dec,"843,400.00"
5456592,GREATER MANCHESTER COMBINED AUTHORITY,Operations and Neighbourhoods,Operations and Neighbourhoods,Passenger Transport Levy,12-Oct,"843,400.00"
5456637,GREATER MANCHESTER COMBINED AUTHORITY,Operations and Neighbourhoods,Operations and Neighbourhoods,Passenger Transport Levy,12-Oct,"691,300.00"
5456647,GREATER MANCHESTER COMBINED AUTHORITY,Operations and Neighbourhoods,Operations and Neighbourhoods,Passenger Transport Levy,11-Nov,"691,300.00"
5456650,GREATER MANCHESTER COMBINED AUTHORITY,Operations and Neighbourhoods,Operations and Neighbourhoods,Passenger Transport Levy,13-Dec,"691,300.00"
5456670,GREATER MANCHESTER COMBINED AUTHORITY,Operations and Neighbourhoods,Operations and Neighbourhoods,Waste Levy - Domestic Waste Disposal Costs,18-Oct,"1,271,000.00"
5456671,GREATER MANCHESTER COMBINED AUTHORITY,Operations and Neighbourhoods,Operations and Neighbourhoods,Waste Levy - Domestic Waste Disposal Costs,17-Nov,"1,271,000.00"
5456672,GREATER MANCHESTER COMBINED AUTHORITY,Operations and Neighbourhoods,Operations and Neighbourhoods,Waste Levy - Domestic Waste Disposal Costs,16-Dec,"1,271,000.00"
5457340,ENVIRONMENT AGENCY,Operations and Neighbourhoods,Operations and Neighbourhoods,Land Drainage Levy,23-Dec,"30,698.77"
5458051,BOOSTER CUSHION THEATRE LTD,Operations and Neighbourhoods,Operations and Neighbourhoods,Professional Entertainment Services,03-Oct,660
5459531,UK CONTAINER MAINTENANCE LTD,Operations and Neighbourhoods,Operations and Neighbourhoods,General Materials,04-Nov,"3,726.00"
5459532,UK CONTAINER MAINTENANCE LTD,Operations and Neighbourhoods,Operations and Neighbourhoods,General Materials,04-Nov,"2,520.00"
5461667,Imperative Training Ltd T/A defibshop,Operations and Neighbourhoods,Operations and Neighbourhoods,General Equipment Purchase,13-Dec,693
5462048,Redacted Supplier,Childrens Services,Children's Services,Foster Carer Agency Fees,14-Oct,"4,080.84"
5462058,THE NATIONAL AUTISTIC SOCIETY,Adult Social Care,Adults,Subscriptions,08-Nov,"2,159.30"
5463536,L & R ROADLINES LIMITED,Operations and Neighbourhoods,Operations and Neighbourhoods,Building Repairs,06-Oct,318.46
5463536,L & R ROADLINES LIMITED,Operations and Neighbourhoods,Operations and Neighbourhoods,Engineers Recharge - Risk Management (Internal),06-Oct,126.92
5463536,L & R ROADLINES LIMITED,Place,Growth,Other Accommodation Related Costs,06-Oct,662.8
5463606,BTTLR LIMITED T/A Connecting Hands Healthcare Services,Childrens Services,Children's Services,Childrens Homes Outside Local Authority Fees,02-Nov,"11,300.00"
5464375,BTTLR LIMITED T/A Connecting Hands Healthcare Services,Childrens Services,Children's Services,Childrens Homes Outside Local Authority Fees,02-Nov,"11,300.00"
5464859,DHL Parcel UK Ltd (UK Mail),Exchequer,Governance,Professional Services,22-Dec,"24,438.36"
5465202,CIVICA UK LIMITED,Governance,Governance,Computer Software,28-Nov,"4,139.29"
5465337,BTTLR LIMITED T/A Connecting Hands Healthcare Services,Childrens Services,Children's Services,Childrens Homes Outside Local Authority Fees,02-Nov,"11,300.00"
5465659,Redacted Supplier,Education,Children's Services,Independent School Fees,18-Oct,"25,166.67"
5465765,Next Stage 'A Way Forward' Youth Development LTD,(blank),(blank),Living With Formal Support,11-Nov,"5,025.00"
5466078,BTTLR LIMITED T/A Connecting Hands Healthcare Services,Childrens Services,Children's Services,Childrens Homes Outside Local Authority Fees,02-Nov,"11,300.00"
5468157,CFS CARE LIMITED,(blank),(blank),Living With Formal Support,18-Oct,"2,985.71"
5468157,CFS CARE LIMITED,(blank),(blank),Semi independent - Weekly Living Allowances,18-Oct,244.2
5468662,BTTLR LIMITED T/A Connecting Hands Healthcare Services,Childrens Services,Children's Services,Childrens Homes Outside Local Authority Fees,02-Nov,"11,300.00"
5468664,BTTLR LIMITED T/A Connecting Hands Healthcare Services,Childrens Services,Children's Services,Childrens Homes Outside Local Authority Fees,28-Oct,"11,300.00"
5468665,BTTLR LIMITED T/A Connecting Hands Healthcare Services,Childrens Services,Children's Services,Childrens Homes Outside Local Authority Fees,28-Oct,"11,300.00"
5468785,Pre Paid Financial Services,Exchequer,Governance,Fees,10-Oct,"1,114.50"
5469253,BTTLR LIMITED T/A Connecting Hands Healthcare Services,Childrens Services,Children's Services,Childrens Homes Outside Local Authority Fees,28-Oct,"11,300.00"
5469263,Redacted Supplier,Education,Children's Services,Other Local Authorities Fees,06-Oct,"8,831.45"
5469295,Redacted Supplier,Education,Children's Services,Other Local Authorities Fees,06-Oct,"21,643.96"
5469296,Redacted Supplier,Education,Children's Services,Other Local Authorities Fees,22-Nov,"13,804.13"
5469298,Redacted Supplier,Education,Children's Services,Other Local Authorities Fees,29-Nov,"21,888.58"
5469301,Redacted Supplier,Education,Children's Services,Other Local Authorities Fees,06-Oct,"44,187.10"
5469407,CITY LIFT SERVICES (NW) LTD,Adult Social Care,Adults,General Equipment Repair & Maintenance,05-Oct,500
5469409,CITY LIFT SERVICES (NW) LTD,Adult Social Care,Adults,General Equipment Repair & Maintenance,05-Oct,500
5469494,Next Stage 'A Way Forward' Youth Development LTD,(blank),(blank),Living With Formal Support,10-Nov,"5,192.50"
5469516,Stepping Stone Projects,Childrens Services,Children's Services,Living With Formal Support,21-Oct,586.79
5470208,INSPIREDSPACES TAMESIDE LTD,Place,Growth,Facilities Management Services,06-Oct,937.42
5470208,INSPIREDSPACES TAMESIDE LTD,Place,Growth,Fees,06-Oct,7.5
5470449,Jigsaw Homes Tameside,Childrens Services,Children's Services,Professional Child Services,17-Nov,"65,000.00"
5470653,SUNRISE IMAGING (EMEA) LIMITED,GMPF (FX),GMPF (FX),Computer Hardware Maintenance Costs,07-Oct,"3,250.00"
5470816,Odin Events Limited,(blank),(blank),Professional Entertainment Services,31-Oct,"1,700.00"
5470825,Redacted Supplier,Education,Children's Services,Other Local Authorities Fees,13-Oct,"1,044.91"
5470826,Redacted Supplier,Education,Children's Services,Post 16 FE College Fees,06-Oct,658.62
5470827,Redacted Supplier,Education,Children's Services,Other Local Authorities Fees,18-Oct,"6,595.08"
5470828,Redacted Supplier,Education,Children's Services,Other Local Authorities Fees,13-Oct,"21,888.58"
5470829,Redacted Supplier,Education,Children's Services,Other Local Authorities Fees,18-Oct,"12,647.26"
5470830,Redacted Supplier,Education,Children's Services,Other Local Authorities Fees,06-Oct,"21,643.96"
5470831,Redacted Supplier,Education,Children's Services,Other Local Authorities Fees,18-Oct,"13,729.49"
5470833,Redacted Supplier,Education,Children's Services,Other Local Authorities Fees,06-Oct,"42,490.95"
5470835,Redacted Supplier,Education,Children's Services,Other Local Authorities Fees,06-Oct,"1,007.59"
5470839,Redacted Supplier,Education,Children's Services,Other Local Authorities Fees,29-Nov,"21,888.58"
5470841,Redacted Supplier,Education,Children's Services,Other Local Authorities Fees,07-Oct,"21,643.96"
5470842,Redacted Supplier,Education,Children's Services,Other Local Authorities Fees,18-Oct,"7,898.40"
5470843,Redacted Supplier,Education,Children's Services,Other Local Authorities Fees,18-Oct,"21,888.58"
5470845,Redacted Supplier,Education,Children's Services,Other Local Authorities Fees,06-Oct,"23,098.93"
5470847,Redacted Supplier,Education,Children's Services,Other Local Authorities Fees,06-Oct,"42,490.95"
5470849,Redacted Supplier,Education,Children's Services,Other Local Authorities Fees,29-Nov,"13,804.13"
5470850,Redacted Supplier,Education,Children's Services,Other Local Authorities Fees,06-Oct,"5,963.88"
5471492,Restorative Social Care Services,Childrens Services,Children's Services,Living With Formal Support,24-Nov,"3,277.01"
5471543,Olive Branch Fostering LTD,Childrens Services,Children's Services,Foster Carer Agency Fees,03-Oct,"3,981.33"
5471631,Imail Comms Limited,Education,Children's Services,Postages,10-Nov,611
5471702,Compass Childrens Homes Limited,Childrens Services,Children's Services,Childrens Homes Outside Local Authority Fees,06-Oct,"20,814.33"
5471719,Bloom Procurement Services Limited,Corporate Costs,Corporate Costs,Professional Consultancy Services,23-Dec,"15,126.00"
5471746,INSPIREDSPACES TAMESIDE LTD,Place,Growth,Building Maintenance,24-Oct,"6,182.19"
5471746,INSPIREDSPACES TAMESIDE LTD,Place,Growth,Fees,24-Oct,123.64
5471796,INSPIRE COMMUNITY SERVICES LIMITED,(blank),(blank),Living With Formal Support,21-Nov,"4,426.80"
5471796,INSPIRE COMMUNITY SERVICES LIMITED,(blank),(blank),Semi independent - Weekly Living Allowances,21-Nov,270.32
5471802,GEORGECO MARKETING SERVICES LLP T/A MEDIA PERFORMANCE,Policy and Communications,Governance,"Marketing, Publicity and Recruitment",04-Oct,"2,700.00"
5471837,Bright Opportunities,Adult Social Care,Adults,Day Care Fees,05-Oct,"1,545.00"
5471839,THE CONSERVATION VOLUNTEERS,Operations and Neighbourhoods,Operations and Neighbourhoods,General Materials,24-Nov,"1,825.00"
5471842,Bright Opportunities,Adult Social Care,Adults,Day Care Fees,05-Oct,"1,845.00"
5471954,APS Group,Operations and Neighbourhoods,Operations and Neighbourhoods,Professional Medical Services,05-Oct,"1,262.40"
5471958,YOUNG PEOPLE FIRST LIMITED,Childrens Services,Children's Services,Living With Formal Support,05-Oct,"1,225.00"
5471959,YOUNG PEOPLE FIRST LIMITED,(blank),(blank),Living With Formal Support,05-Oct,"1,625.00"
5471959,YOUNG PEOPLE FIRST LIMITED,(blank),(blank),Semi independent - Weekly Living Allowances,05-Oct,61.05
5471961,YOUNG PEOPLE FIRST LIMITED,(blank),(blank),Living With Formal Support,05-Oct,"2,100.00"
5471965,Supporting Futures LTD,Childrens Services,Children's Services,Childrens Homes Outside Local Authority Fees,06-Oct,"21,102.01"
5472003,THREE CIRCLES FOSTERING LTD,Childrens Services,Children's Services,Foster Carer Agency Fees,05-Oct,"5,546.79"
5472004,THREE CIRCLES FOSTERING LTD,Childrens Services,Children's Services,Foster Carer Agency Fees,05-Oct,"4,113.48"
5472005,THREE CIRCLES FOSTERING LTD,Childrens Services,Children's Services,Foster Carer Agency Fees,05-Oct,"3,658.89"
5472006,THREE CIRCLES FOSTERING LTD,Childrens Services,Children's Services,Foster Carer Agency Fees,05-Oct,"1,979.57"
5472010,THREE CIRCLES FOSTERING LTD,Childrens Services,Children's Services,Foster Carer Agency Fees,05-Oct,"5,301.00"
5472011,THREE CIRCLES FOSTERING LTD,Childrens Services,Children's Services,Foster Carer Agency Fees,05-Oct,"3,975.75"
5472012,THREE CIRCLES FOSTERING LTD,Childrens Services,Children's Services,Foster Carer Agency Fees,05-Oct,"3,534.00"
5472018,LORIMER FOSTERING SERVICES,Childrens Services,Children's Services,Foster Carer Agency Fees,05-Oct,708.13
5472019,LORIMER FOSTERING SERVICES,Childrens Services,Children's Services,Foster Carer Agency Fees,05-Oct,"3,540.64"
5472021,THREE CIRCLES FOSTERING LTD,Childrens Services,Children's Services,Foster Carer Agency Fees,05-Oct,"3,463.32"
5472024,TURNING POINT SERVICES LIMITED,Adult Social Care,Adults,Homecare Fees,05-Oct,"189,967.80"
5472025,THREE CIRCLES FOSTERING LTD,Childrens Services,Children's Services,Foster Carer Agency Fees,05-Oct,"3,896.26"
5472032,ASKEWS  AND HOLTS LIBRARY SERVICES LTD,Operations and Neighbourhoods,Operations and Neighbourhoods,Purchase Books,05-Oct,"2,367.39"
5472034,SEASHELL TRUST,Childrens Services,Children's Services,Residential Home Short Stay Fees,05-Oct,"3,960.00"
5472035,THREE CIRCLES FOSTERING LTD,Childrens Services,Children's Services,Foster Carer Agency Fees,05-Oct,"3,405.17"
5472036,Pre Paid Financial Services,Exchequer,Governance,Fees,10-Oct,"1,055.80"
5472037,THREE CIRCLES FOSTERING LTD,Childrens Services,Children's Services,Foster Carer Agency Fees,05-Oct,"3,794.00"
5472041,THREE CIRCLES FOSTERING LTD,Childrens Services,Children's Services,Foster Carer Agency Fees,05-Oct,"3,604.06"
5472043,THREE CIRCLES FOSTERING LTD,Childrens Services,Children's Services,Foster Carer Agency Fees,05-Oct,"3,975.75"
5472044,THREE CIRCLES FOSTERING LTD,Childrens Services,Children's Services,Foster Carer Agency Fees,05-Oct,"3,677.57"
5472045,THREE CIRCLES FOSTERING LTD,Childrens Services,Children's Services,Foster Carer Agency Fees,05-Oct,"3,717.87"
5472046,NEW BRIDGE HORIZONS,Adult Social Care,Adults,Day Care Fees,05-Oct,"1,634.50"
5472047,NEW BRIDGE HORIZONS,Adult Social Care,Adults,Day Care Fees,05-Oct,889
5472048,THREE CIRCLES FOSTERING LTD,Childrens Services,Children's Services,Foster Carer Agency Fees,05-Oct,"3,794.00"
5472049,NEW BRIDGE HORIZONS,Adult Social Care,Adults,Day Care Fees,05-Oct,"1,530.00"
5472050,THREE CIRCLES FOSTERING LTD,Childrens Services,Children's Services,Foster Carer Agency Fees,05-Oct,"3,509.46"
5472051,NEW BRIDGE HORIZONS,Adult Social Care,Adults,Day Care Fees,05-Oct,"1,381.25"
5472052,THREE CIRCLES FOSTERING LTD,Childrens Services,Children's Services,Foster Carer Agency Fees,05-Oct,"3,794.00"
5472057,Transunion Internal UK Limited,Hosted Services,Hosted Services,Professional Services,05-Oct,"16,800.00"
5472061,LOCAL CARE FORCE,Adult Social Care,Adults,Residential Home Long Stay Fees,05-Oct,"2,554.08"
5472065,DWF LLP SOLICITORS,Place,Growth,Professional Services,03-Oct,"6,476.00"
5472077,Brook,Population Health,Population Health,Contributions,05-Oct,"2,210.20"
5472080,CIPFA BUSINESS LIMITED,Engineers Client,Director of Place,Survey/Surveyors Fees,05-Oct,"1,495.00"
5472081,SafeNet Domestic Abuse Services Ltd,Childrens Services,Children's Services,Living With Formal Support,05-Oct,"1,936.39"
5472093,EQUIFAX LTD,Hosted Services,Hosted Services,Professional Services,26-Oct,"1,021.56"
5472115,PARALLEL PARENTS,Childrens Services,Children's Services,Foster Carer Agency Fees,06-Oct,"3,039.55"
5472117,PARALLEL PARENTS,Childrens Services,Children's Services,Foster Carer Agency Fees,06-Oct,"4,029.69"
5472118,PARALLEL PARENTS,Childrens Services,Children's Services,Foster Carer Agency Fees,06-Oct,"3,615.22"
5472119,PARALLEL PARENTS,Childrens Services,Children's Services,Foster Carer Agency Fees,06-Oct,"2,883.93"
5472122,PARALLEL PARENTS,Childrens Services,Children's Services,Foster Carer Agency Fees,06-Oct,"3,807.42"
5472123,PARALLEL PARENTS,Childrens Services,Children's Services,Foster Carer Agency Fees,06-Oct,"4,030.00"
5472125,PARALLEL PARENTS,Childrens Services,Children's Services,Foster Carer Agency Fees,06-Oct,"3,807.42"
5472126,PARALLEL PARENTS,Childrens Services,Children's Services,Foster Carer Agency Fees,06-Oct,"4,030.00"
5472128,PARALLEL PARENTS,Childrens Services,Children's Services,Foster Carer Agency Fees,06-Oct,"3,145.57"
5472130,PARALLEL PARENTS,Childrens Services,Children's Services,Foster Carer Agency Fees,06-Oct,"3,002.66"
5472132,PARALLEL PARENTS,Childrens Services,Children's Services,Foster Carer Agency Fees,06-Oct,"3,771.27"
5472134,PARALLEL PARENTS,Childrens Services,Children's Services,Foster Carer Agency Fees,06-Oct,"3,419.92"
5472135,RH ENVIRONMENTAL,Operations and Neighbourhoods,Operations and Neighbourhoods,Subscriptions,06-Oct,"1,782.00"
5472136,PARALLEL PARENTS,Childrens Services,Children's Services,Foster Carer Agency Fees,06-Oct,"3,414.34"
5472137,PARALLEL PARENTS,Childrens Services,Children's Services,Foster Carer Agency Fees,06-Oct,"4,030.00"
5472138,PARALLEL PARENTS,Childrens Services,Children's Services,Foster Carer Agency Fees,06-Oct,"3,431.70"
5472139,PARALLEL PARENTS,Childrens Services,Children's Services,Foster Carer Agency Fees,06-Oct,"3,431.70"
5472140,PARALLEL PARENTS,Childrens Services,Children's Services,Foster Carer Agency Fees,06-Oct,"3,483.78"
5472141,PARALLEL PARENTS,Childrens Services,Children's Services,Foster Carer Agency Fees,06-Oct,"4,030.00"
5472142,Holden Knight Healthcare Temp Ltd,Childrens Services,Children's Services,Professional Medical Services,06-Oct,"1,862.00"
5472145,PARALLEL PARENTS,Childrens Services,Children's Services,Foster Carer Agency Fees,06-Oct,"4,339.69"
5472146,SALISBURY SUPPORT 4 AUTISM,Adult Social Care,Adults,Joint Loans Store Fee,06-Oct,"14,592.01"
5472152,Montrose Recruitment Limited TA Montrose Living,Adult Social Care,Adults,Homecare Fees,16-Nov,"5,115.00"
5472158,We Support LTD,Adult Social Care,Adults,Homecare Fees,07-Oct,"5,497.80"
5472159,OVE ARUP & PARTNERS LTD,Place,Growth,Professional Services,06-Oct,"46,000.00"
5472160,OVE ARUP & PARTNERS LTD,Place,Growth,Professional Services,06-Oct,"29,000.00"
5472172,CORE INTEGRATED SOLUTIONS LTD,Digital Tameside,Finance & IT,Network Equipment/Setup,07-Oct,"1,773.38"
5472173,PROFILE SECURITY SERVICES LIMITED,Operations and Neighbourhoods,Operations and Neighbourhoods,General Materials,06-Oct,"6,697.86"
5472175,Redacted Supplier,Corporate Costs,Corporate Costs,Professional Services,06-Oct,"1,019.00"
5472181,Redacted Supplier,Education,Children's Services,Professional Services,06-Oct,"1,100.00"
5472182,Redacted Supplier,Education,Children's Services,Professional Services,06-Oct,"1,100.00"
5472192,The Market Co,Operations and Neighbourhoods,Operations and Neighbourhoods,Professional Entertainment Services,06-Oct,"2,100.00"
5472193,CROMWELL POLYTHENE LTD.,Operations and Neighbourhoods,Operations and Neighbourhoods,Purchase Plastic Sacks,17-Oct,"7,513.60"
5472195,The Mount Guest House Limited,(blank),(blank),Chief/Ground Rent,06-Oct,"9,210.00"
5472199,iCare Solutions,Adult Social Care,Adults,Homecare Fees,06-Oct,"15,491.59"
5472200,Redacted Supplier,(blank),(blank),Professional Entertainment Services,06-Oct,500
5472207,SURECARE TAMESIDE & OLDHAM,Adult Social Care,Adults,Homecare Fees,06-Oct,"4,785.68"
5472218,THE FOSTER CARE CO-OPERATIVE LTD,Childrens Services,Children's Services,Foster Carer Agency Fees,06-Oct,"3,723.07"
5472219,FOSTERING SOLUTIONS LTD,Childrens Services,Children's Services,Foster Carer Agency Fees,06-Oct,"3,557.10"
5472220,FOSTERING SOLUTIONS LTD,Childrens Services,Children's Services,Foster Carer Agency Fees,06-Oct,"3,290.32"
5472221,FOSTERING SOLUTIONS LTD,Childrens Services,Children's Services,Foster Carer Agency Fees,06-Oct,"3,244.16"
5472222,FOSTERING SOLUTIONS LTD,Childrens Services,Children's Services,Foster Carer Agency Fees,06-Oct,"3,244.16"
5472223,FOSTERING SOLUTIONS LTD,Childrens Services,Children's Services,Foster Carer Agency Fees,06-Oct,"2,829.77"
5472224,FOSTERING SOLUTIONS LTD,Childrens Services,Children's Services,Foster Carer Agency Fees,06-Oct,"2,829.77"
5472225,FOSTERING SOLUTIONS LTD,Childrens Services,Children's Services,Foster Carer Agency Fees,06-Oct,"3,236.75"
5472226,FOSTERING SOLUTIONS LTD,Childrens Services,Children's Services,Foster Carer Agency Fees,06-Oct,"3,195.99"
5472230,Layer Surveys Ltd,Place,Growth,Professional Services,06-Oct,"16,330.00"
5472231,Randstad HR Solution Ltd T/A Student Worker Support,Education,Children's Services,Professional Services,06-Oct,680
5472234,DOMAIN CARE NORTH WEST LTD,Adult Social Care,Adults,Day Care Fees,06-Oct,"1,335.32"
5472240,Larkin'About,(blank),(blank),Professional Entertainment Services,07-Oct,800
5472246,N.W.A Housing Ltd,(blank),(blank),Non-Authority Accommodation Rental,07-Oct,"11,620.84"
5472247,Redacted Supplier,Adult Social Care,Adults,Day Care Fees,07-Oct,"2,335.23"
5472250,Redacted Supplier,Education,Children's Services,Other Local Authorities Fees,07-Oct,"8,782.68"
5472276,RIGHT - STEP LIMITED T/A RSL,Childrens Services,Children's Services,Living With Formal Support,04-Oct,"4,342.85"
5472277,RIGHT - STEP LIMITED T/A RSL,Childrens Services,Children's Services,Living With Formal Support,04-Oct,"4,627.85"
5472278,RIGHT - STEP LIMITED T/A RSL,Childrens Services,Children's Services,Living With Formal Support,04-Oct,"3,135.00"
5472281,Redacted Supplier,Adult Social Care,Adults,"Fixtures, Fittings & Furniture Purchase",07-Oct,"1,200.00"
5472311,G2V Recruitment Group Limited t/a Vivid Resourcing,Operations and Neighbourhoods,Operations and Neighbourhoods,Agency Staff,07-Oct,"1,312.50"
5472312,One plus One marriage and partnership research,Childrens Services,Children's Services,"Activity (Materials, Trips)",07-Oct,"4,500.00"
5472317,VISION FOR EDUCATION LIMITED,Education,Children's Services,Professional Services,07-Oct,541.84
5472334,K P DODD CONSTRUCTION LTD,Housing,Director of Place,Minor Works - Building,07-Oct,"1,000.00"
5472335,K P DODD CONSTRUCTION LTD,Housing,Director of Place,Minor Works - Building,07-Oct,500
5472338,K P DODD CONSTRUCTION LTD,Housing,Director of Place,Minor Works - Building,07-Oct,500
5472346,B.E.M Property Management t/a HALA GUEST HOUSE,(blank),(blank),Other Accommodation Related Costs,07-Oct,"8,050.00"
5472351,THE ADOLESCENT & CHILDRENS TRUST,Childrens Services,Children's Services,Foster Carer Agency Fees,07-Oct,"3,082.64"
5472352,THE ADOLESCENT & CHILDRENS TRUST,Childrens Services,Children's Services,Foster Carer Agency Fees,07-Oct,"3,082.64"
5472354,THE ADOLESCENT & CHILDRENS TRUST,Childrens Services,Children's Services,Foster Carer Agency Fees,07-Oct,"2,946.24"
5472355,SWIIS FOSTER CARE LTD,Childrens Services,Children's Services,Foster Carer Agency Fees,07-Oct,"1,694.98"
5472357,SWIIS FOSTER CARE LTD,Childrens Services,Children's Services,Foster Carer Agency Fees,07-Oct,760.48
5472360,Medlock Vale Surgery T/A Hamilton HCP,Population Health,Population Health,Local Enhanced Services,07-Oct,"1,049.10"
5472364,K P DODD CONSTRUCTION LTD,Housing,Director of Place,Minor Works - Building,07-Oct,"1,250.00"
5472367,K P DODD CONSTRUCTION LTD,Housing,Director of Place,Minor Works - Building,07-Oct,"1,500.00"
5472373,K P DODD CONSTRUCTION LTD,Housing,Director of Place,Minor Works - Building,07-Oct,500
5472376,K P DODD CONSTRUCTION LTD,Housing,Director of Place,Minor Works - Building,07-Oct,"1,200.00"
5472377,K P DODD CONSTRUCTION LTD,Housing,Director of Place,Minor Works - Building,07-Oct,"1,000.00"
5472379,Reed Talent Solutions Ltd,Childrens Services,Children's Services,Professional Services,07-Oct,"11,105.00"
5472447,Fairfield Care Services,Adult Social Care,Adults,Day Care Fees,07-Oct,"2,216.48"
5472449,Advantage Healthcare Limited,Adult Social Care,Adults,Homecare Fees,07-Oct,"1,017.50"
5472453,Redacted Supplier,Childrens Services,Children's Services,Training Course Costs,07-Oct,"3,500.00"
5472455,Bullen Conservation LTD,Operations and Neighbourhoods,Operations and Neighbourhoods,Engineers Works,07-Oct,"2,352.00"
5472458,Stepping Stone Projects,Childrens Services,Children's Services,Living With Formal Support,07-Oct,"1,306.07"
5472460,Northumbria Healthcare NHS Foundation Trust,(blank),(blank),Debits,07-Oct,"5,586.80"
5472461,Stepping Stone Projects,Childrens Services,Children's Services,Living With Formal Support,07-Oct,870.72
5472462,Stepping Stone Projects,Childrens Services,Children's Services,Living With Formal Support,07-Oct,"1,104.93"
5472465,The Veterans Food Co,Operations and Neighbourhoods,Operations and Neighbourhoods,Food & Refreshments,07-Oct,595
5472466,CW Advisory Services LLP,Tameside Investment Partnership,Director of Place,Consultancies,07-Oct,720
5472469,N.W.A Housing Ltd,(blank),(blank),Non-Authority Accommodation Rental,07-Oct,"12,154.45"
5472475,Great Minds Together Ltd,Childrens Services,Children's Services,Childrens Homes Outside Local Authority Fees,17-Nov,"94,860.00"
5472476,Optima Health and Social Care Ltd,Childrens Services,Children's Services,Homecare Fees,07-Oct,752.5
5472479,Stepping Stone Projects,Childrens Services,Children's Services,Living With Formal Support,07-Oct,586.79
5472480,Stepping Stone Projects,Childrens Services,Children's Services,Living With Formal Support,07-Oct,586.79
5472481,Redacted Supplier,Education,Children's Services,Independent School Fees,07-Oct,"2,050.00"
5472482,Redacted Supplier,Education,Children's Services,Independent School Fees,07-Oct,930
5472483,STOCKPORT CP  SOCIETY,Adult Social Care,Adults,Day Care Fees,07-Oct,"1,278.40"
5472484,STOCKPORT CP  SOCIETY,Adult Social Care,Adults,Day Care Fees,07-Oct,"1,278.40"
5472485,STOCKPORT CP  SOCIETY,Adult Social Care,Adults,Day Care Fees,07-Oct,"1,316.56"
5472486,Redacted Supplier,Education,Children's Services,Other Local Authorities Fees,07-Oct,"4,843.06"
5472487,WOTMIX LIMITED,Operations and Neighbourhoods,Operations and Neighbourhoods,General Equipment Purchase,07-Oct,505
5472490,K P DODD CONSTRUCTION LTD,Housing,Director of Place,Minor Works - Building,07-Oct,"1,500.00"
5472495,Tradewind Recruitment Ltd,Education,Children's Services,Professional Services,07-Oct,608.95
5472496,Origin Amenity Solutions Ltd,Operations and Neighbourhoods,Operations and Neighbourhoods,General Materials,07-Oct,"1,235.00"
5472497,PARALLEL PARENTS,Childrens Services,Children's Services,Foster Carer Agency Fees,07-Oct,"3,908.48"
5472498,Three Angels Healthcare,Adult Social Care,Adults,Homecare Fees,07-Oct,"7,046.00"
5472499,Redacted Supplier,(blank),(blank),Training Course Costs,07-Oct,"2,422.50"
5472503,Brooks and Brooks Recruitment Ltd,Childrens Services,Children's Services,Childrens Homes Outside Local Authority Fees,07-Oct,"11,760.00"
5472505,Brooks and Brooks Recruitment Ltd,Childrens Services,Children's Services,Childrens Homes Outside Local Authority Fees,07-Oct,"9,240.00"
5472507,Brooks and Brooks Recruitment Ltd,Childrens Services,Children's Services,Childrens Homes Outside Local Authority Fees,07-Oct,"12,600.00"
5472538,Compass Fostering North LTD,Childrens Services,Children's Services,Foster Carer Agency Fees,07-Oct,"3,229.80"
5472540,Compass Fostering North LTD,Childrens Services,Children's Services,Foster Carer Agency Fees,07-Oct,"3,246.90"
5472541,Compass Fostering North LTD,Childrens Services,Children's Services,Foster Carer Agency Fees,07-Oct,"3,071.40"
5472543,Compass Fostering North LTD,Childrens Services,Children's Services,Foster Carer Agency Fees,07-Oct,"3,112.80"
5472544,Compass Fostering North LTD,Childrens Services,Children's Services,Foster Carer Agency Fees,07-Oct,"3,085.50"
5472546,Compass Fostering North LTD,Childrens Services,Children's Services,Foster Carer Agency Fees,07-Oct,"3,008.40"
5472548,Compass Fostering North LTD,Childrens Services,Children's Services,Foster Carer Agency Fees,07-Oct,"3,322.20"
5472550,Compass Fostering North LTD,Childrens Services,Children's Services,Foster Carer Agency Fees,07-Oct,"3,322.20"
5472554,Compass Fostering North LTD,Childrens Services,Children's Services,Foster Carer Agency Fees,07-Oct,"3,156.00"
5472555,Compass Fostering North LTD,Childrens Services,Children's Services,Foster Carer Agency Fees,07-Oct,"3,156.00"
5472557,Compass Fostering North LTD,Childrens Services,Children's Services,Foster Carer Agency Fees,07-Oct,"3,642.90"
5472558,Compass Fostering North LTD,Childrens Services,Children's Services,Foster Carer Agency Fees,07-Oct,"3,642.90"
5472559,ELMAR HOME CARE MANCHESTER LTD,Adult Social Care,Adults,Homecare Fees,07-Oct,"2,322.63"
5472561,ELMAR HOME CARE MANCHESTER LTD,Adult Social Care,Adults,Homecare Fees,07-Oct,"1,959.17"
5472562,ELMAR HOME CARE MANCHESTER LTD,Adult Social Care,Adults,Homecare Fees,07-Oct,"2,260.58"
5472575,CIVICA UK LIMITED,Operations and Neighbourhoods,Operations and Neighbourhoods,Licences,07-Oct,"16,719.00"
5472585,LOCAL CARE FORCE,Adult Social Care,Adults,Residential Home Long Stay Fees,07-Oct,"2,974.32"
5472596,COOLSPIRIT LTD,Digital Tameside,Finance & IT,Computer Hardware Purchase,07-Oct,588
5472606,Truancy Call Limited t/a Contact Group,Education,Children's Services,Professional Services,12-Oct,"19,843.20"
5472633,Valour Private Ltd t/a Valour Healthcare Services,Adult Social Care,Adults,Homecare Fees,07-Oct,"5,750.54"
5472638,Constellia Public Ltd,Place,Growth,Professional Consultancy Services,07-Oct,"7,000.00"
5472639,IOMA CLOTHING COMPANY LTD,Digital Tameside,Finance & IT,Uniforms/Clothing,07-Oct,532.8
5472643,Her Majesty's Prison and Probation Service (National Offenders Management Service),Childrens Services,Children's Services,Other Accommodation Related Costs,07-Oct,"8,903.00"
5472646,Exclusec Security Solutions Ltd,Operations and Neighbourhoods,Operations and Neighbourhoods,Security Services,07-Oct,"22,579.20"
5472650,Brooks and Brooks Recruitment Ltd,Childrens Services,Children's Services,Childrens Homes Outside Local Authority Fees,07-Oct,"12,600.00"
5472651,Brooks and Brooks Recruitment Ltd,Childrens Services,Children's Services,Childrens Homes Outside Local Authority Fees,07-Oct,"6,720.00"
5472652,Brooks and Brooks Recruitment Ltd,Childrens Services,Children's Services,Childrens Homes Outside Local Authority Fees,10-Oct,"2,100.00"
5472653,Brooks and Brooks Recruitment Ltd,Childrens Services,Children's Services,Childrens Homes Outside Local Authority Fees,07-Oct,"12,600.00"
5472654,Brooks and Brooks Recruitment Ltd,Childrens Services,Children's Services,Childrens Homes Outside Local Authority Fees,07-Oct,"2,310.00"
5472655,Brooks and Brooks Recruitment Ltd,Childrens Services,Children's Services,Childrens Homes Outside Local Authority Fees,12-Oct,"12,600.00"
5472657,XMA LIMITED,GMPF (FX),GMPF (FX),IT Equipment,11-Oct,820.41
5472659,ORACLE CARE LTD,Childrens Services,Children's Services,Childrens Homes Outside Local Authority Fees,04-Nov,"19,500.00"
5472670,CREATIVE SUPPORT LTD,Adult Social Care,Adults,Homecare Fees,12-Oct,"11,950.04"
5472671,CREATIVE SUPPORT LTD,Adult Social Care,Adults,Homecare Fees,12-Oct,"11,368.63"
5472672,CREATIVE SUPPORT LTD,Adult Social Care,Adults,Homecare Fees,12-Oct,"11,024.02"
5472674,CREATIVE SUPPORT LTD,Adult Social Care,Adults,Homecare Fees,12-Oct,"11,304.63"
5472677,Redacted Supplier,Childrens Services,Children's Services,Living With Formal Support,12-Oct,"4,169.81"
5472678,Redacted Supplier,Adult Social Care,Adults,Homecare Fees,12-Oct,"4,095.72"
5472679,Redacted Supplier,Childrens Services,Children's Services,Living With Formal Support,12-Oct,"4,139.74"
5472687,Redacted Supplier,Education,Children's Services,Professional Services,12-Oct,550
5472695,GRANART LIMITED,Operations and Neighbourhoods,Operations and Neighbourhoods,Plaques,28-Oct,"1,968.50"
5472696,INSPIREDSPACES TAMESIDE LTD,Place,Growth,Fees,15-Nov,25.68
5472696,INSPIREDSPACES TAMESIDE LTD,Place,Growth,Professional Services,15-Nov,"1,284.00"
5472709,BOOTS UK LTD,Population Health,Population Health,Local Enhanced Services,12-Oct,"1,224.25"
5472730,ALPHA BIOLABS,Childrens Services,Children's Services,Professional Medical Services,12-Oct,517
5472732,ALPHA BIOLABS,Childrens Services,Children's Services,Professional Medical Services,12-Oct,709.5
5472736,YOUNG PEOPLE FIRST LIMITED,(blank),(blank),Living With Formal Support,12-Oct,"2,100.00"
5472740,YOUNG PEOPLE FIRST LIMITED,Childrens Services,Children's Services,Living With Formal Support,12-Oct,"1,225.00"
5472757,Kingfisher Design & Management Ltd,Operations and Neighbourhoods,Operations and Neighbourhoods,Engineers -External,12-Oct,973
5472797,Venture Outdoors Ltd t/a Venture-Out,(blank),(blank),Professional Entertainment Services,12-Oct,500
5472800,INTEGRATED DOCUMENT SOLUTIONS LTD,Digital Tameside,Finance & IT,Computer Software,12-Oct,"4,589.08"
5472804,YOUNG PEOPLE FIRST LIMITED,(blank),(blank),Living With Formal Support,12-Oct,"1,625.00"
5472804,YOUNG PEOPLE FIRST LIMITED,(blank),(blank),Semi independent - Weekly Living Allowances,12-Oct,61.05
5472809,Zeno Ltd,Adult Social Care,Adults,Homecare Fees,12-Oct,"10,800.26"
5472814,ULVERSCROFT LARGE PRINT  BOOKS LTD,Operations and Neighbourhoods,Operations and Neighbourhoods,Purchase Books,12-Oct,"1,326.56"
5472815,PAYPARTNERS LTD (MONTHLY),Childrens Services,Children's Services,Direct Payments,12-Oct,574.91
5472818,ONLINE ERGONOMICS,Adult Social Care,Adults,Purchase General Office Equipment,12-Oct,"1,257.64"
5472821,Flat Cap Brass Band T/A Flat Cap Corporate Entertainment,(blank),(blank),Professional Entertainment Services,12-Oct,900
5472905,Ringway Training Limited,Childrens Services,Children's Services,Training Course Costs,13-Oct,695
5472907,Silktide Ltd,Digital Tameside,Finance & IT,Computer Software,13-Oct,"7,510.00"
5472910,SUTHERLAND TRADING LTD t/a LMS MUSIC SUPPLIES,Education,Children's Services,Musical Instruments,13-Oct,"1,396.50"
5472920,Future Focused Care,Childrens Services,Children's Services,Childrens Homes Outside Local Authority Fees,13-Oct,"19,264.20"
5472926,One plus One marriage and partnership research,Childrens Services,Children's Services,Licences,13-Oct,"4,500.00"
5472929,Redacted Supplier,Operations and Neighbourhoods,Operations and Neighbourhoods,Professional Services,13-Oct,"2,000.00"
5472930,Redacted Supplier,Operations and Neighbourhoods,Operations and Neighbourhoods,Professional Services,13-Oct,"1,500.00"
5472931,Constellia Public Ltd,(blank),(blank),Professional Services,13-Oct,"40,000.00"
5472934,FOUNTAINS & FEATURES LIMITED,Operations and Neighbourhoods,Operations and Neighbourhoods,General Materials,13-Oct,836
5472935,JENOPTIK UK LIMITED,Operations and Neighbourhoods,Operations and Neighbourhoods,Fees,13-Oct,"2,793.00"
5472936,Redacted Supplier,Education,Children's Services,Independent School Fees,13-Oct,990
5472944,TAMESIDE ARTS LTD,Childrens Services,Children's Services,Community Based Activities,13-Oct,672
5472945,SOFTCAT LIMITED,Digital Tameside,Finance & IT,IT Equipment,13-Oct,982.61
5472951,S & M Builders,Operations and Neighbourhoods,Operations and Neighbourhoods,Professional Services,13-Oct,680
5472958,Open Kitchen MCR CIC,Operations and Neighbourhoods,Operations and Neighbourhoods,General Materials,14-Oct,805
5472960,iCare Solutions,Adult Social Care,Adults,Homecare Fees,13-Oct,"16,952.84"
5472968,CITY CARE SOLUTIONS LTD,Adult Social Care,Adults,Homecare Fees,13-Oct,"2,174.88"
5472969,Kids Planet Dukinfield,Childrens Services,Children's Services,Nursery Services,14-Oct,686.3
5472970,Kids Planet Dukinfield,Childrens Services,Children's Services,Nursery Services,14-Oct,686.3
5472971,Kids Planet Dukinfield,Childrens Services,Children's Services,Nursery Services,14-Oct,686.3
5472974,DAISY CORPORATE SERVICES TRADING LIMITED,Digital Tameside,Finance & IT,Telephone Landline Costs,13-Oct,"1,056.98"
5473001,Furniture Resource Centre Ltd,Childrens Services,Children's Services,"Fixtures,Fittings & Furniture Purchase (Service Users)",14-Oct,606.75
5473002,Furniture Resource Centre Ltd,Operations and Neighbourhoods,Operations and Neighbourhoods,"Fixtures, Fittings & Furniture Purchase",14-Oct,842.68
5473006,Furniture Resource Centre Ltd,Operations and Neighbourhoods,Operations and Neighbourhoods,"Fixtures, Fittings & Furniture Purchase",14-Oct,731.18
5473064,YOUNG PEOPLE FIRST LIMITED,(blank),(blank),Living With Formal Support,14-Oct,"2,100.00"
5473080,YOUNG PEOPLE FIRST LIMITED,Childrens Services,Children's Services,Living With Formal Support,14-Oct,"1,225.00"
5473081,YOUNG PEOPLE FIRST LIMITED,(blank),(blank),Living With Formal Support,14-Oct,"1,625.00"
5473081,YOUNG PEOPLE FIRST LIMITED,(blank),(blank),Semi independent - Weekly Living Allowances,14-Oct,61.05
5473085,Advantage Healthcare Limited,Adult Social Care,Adults,Homecare Fees,14-Oct,"1,017.50"
5473089,VISION FOR EDUCATION LIMITED,Education,Children's Services,Professional Services,24-Oct,"1,583.84"
5473090,Redacted Supplier,(blank),(blank),Professional Entertainment Services,14-Oct,"2,071.56"
5473091,Redacted Supplier,(blank),(blank),Professional Entertainment Services,14-Oct,"2,124.57"
5473093,XMA LIMITED,GMPF (FX),GMPF (FX),IT Equipment,14-Oct,"5,534.70"
5473094,CLEAR CHANNEL UK LTD,Policy and Communications,Governance,"Marketing, Publicity and Recruitment",14-Oct,636
5473096,TRANSPORT FOR GREATER MANCHESTER,Engineers Client,Director of Place,Engineers -External,14-Oct,"4,153.64"
5473100,CRAEMER UK LTD,Operations and Neighbourhoods,Operations and Neighbourhoods,Purchase Wheeled Bins,14-Oct,"18,512.00"
5473102,SWIIS FOSTER CARE LTD,Childrens Services,Children's Services,Foster Carer Agency Fees,14-Oct,"1,694.98"
5473103,SWIIS FOSTER CARE LTD,Childrens Services,Children's Services,Foster Carer Agency Fees,14-Oct,760.48
5473107,The Mount Guest House Limited,(blank),(blank),Chief/Ground Rent,14-Oct,"8,925.00"
5473110,Ross Haley Training Services,Operations and Neighbourhoods,Operations and Neighbourhoods,Training Course Costs,14-Oct,"2,290.00"
5473113,TUDOR (UK) LTD T/A TUDOR ENVIRONMENTAL,Operations and Neighbourhoods,Operations and Neighbourhoods,General Equipment Purchase,14-Oct,"2,259.00"
5473115,TURNER GROUNDSCARE,Operations and Neighbourhoods,Operations and Neighbourhoods,General Equipment Repair & Maintenance,14-Oct,605.53
5473118,ACORN CARE & EDUCATION LTD (SALES),Adult Social Care,Adults,Residential Home Short Stay Fees,14-Oct,"18,535.71"
5473119,B.E.M Property Management t/a HALA GUEST HOUSE,(blank),(blank),Other Accommodation Related Costs,14-Oct,"7,895.00"
5473120,Reed Talent Solutions Ltd,Childrens Services,Children's Services,Professional Services,14-Oct,"12,580.00"
5473129,Origin Amenity Solutions Ltd,Operations and Neighbourhoods,Operations and Neighbourhoods,Professional Weedspraying Services,14-Oct,"4,992.00"
5473147,KPMG (UK) LLP,People and Workforce Development,Governance,Audit Fees,12-Oct,"3,500.00"
5473150,Indie 16 Limited,(blank),(blank),Living With Formal Support,14-Oct,"2,807.14"
5473160,TELEFONICA O2 (UK) LTD,Digital Tameside,Finance & IT,Mobile Telephones,14-Oct,"6,120.00"
5473161,Furniture Resource Centre Ltd,Operations and Neighbourhoods,Operations and Neighbourhoods,"Fixtures, Fittings & Furniture Purchase",14-Oct,977
5473166,Kibble Education and Care Centre,Childrens Services,Children's Services,Childrens Homes Outside Local Authority Fees,19-Oct,"30,660.00"
5473169,Furniture Resource Centre Ltd,Operations and Neighbourhoods,Operations and Neighbourhoods,"Fixtures, Fittings & Furniture Purchase",14-Oct,"1,097.00"
5473170,REGENDA LIMITED,Adult Social Care,Adults,Non-Authority Accommodation Rental,14-Oct,"2,152.54"
5473174,REGENDA LIMITED,Adult Social Care,Adults,Non-Authority Accommodation Rental,14-Oct,"16,751.24"
5473184,CREATIVE SUPPORT LTD,Adult Social Care,Adults,Homecare Fees,06-Oct,593.6
5473191,FOSTERING PEOPLE LTD,Childrens Services,Children's Services,Foster Carer Agency Fees,14-Oct,"3,224.34"
5473193,FOSTER CARE ASSOCIATES LTD (FCA),Childrens Services,Children's Services,Foster Carer Agency Fees,14-Oct,"3,788.70"
5473195,FOSTER CARE ASSOCIATES LTD (FCA),Childrens Services,Children's Services,Foster Carer Agency Fees,14-Oct,"3,571.50"
5473196,FOSTER CARE ASSOCIATES LTD (FCA),Childrens Services,Children's Services,Foster Carer Agency Fees,14-Oct,"3,899.70"
5473197,FOSTER CARE ASSOCIATES LTD (FCA),Childrens Services,Children's Services,Foster Carer Agency Fees,14-Oct,"3,788.70"
5473201,FOSTER CARE ASSOCIATES LTD (FCA),Childrens Services,Children's Services,Foster Carer Agency Fees,14-Oct,"5,659.20"
5473202,FOSTER CARE ASSOCIATES LTD (FCA),Childrens Services,Children's Services,Foster Carer Agency Fees,14-Oct,"3,139.27"
5473203,FOSTER CARE ASSOCIATES LTD (FCA),Childrens Services,Children's Services,Foster Carer Agency Fees,14-Oct,"3,618.93"
5473205,FOSTER CARE ASSOCIATES LTD (FCA),Childrens Services,Children's Services,Foster Carer Agency Fees,14-Oct,"3,788.70"
5473229,UK FOSTERING LTD,Childrens Services,Children's Services,Foster Carer Agency Fees,14-Oct,"3,228.34"
5473232,Furniture Resource Centre Ltd,Operations and Neighbourhoods,Operations and Neighbourhoods,"Fixtures, Fittings & Furniture Purchase",14-Oct,"1,221.25"
5473238,Furniture Resource Centre Ltd,Operations and Neighbourhoods,Operations and Neighbourhoods,"Fixtures, Fittings & Furniture Purchase",14-Oct,802.56
5473245,Furniture Resource Centre Ltd,Operations and Neighbourhoods,Operations and Neighbourhoods,"Fixtures, Fittings & Furniture Purchase",14-Oct,"1,076.28"
5473246,Birmingham City University,(blank),(blank),Training Course Costs,14-Oct,"2,160.00"
5473247,BLOOMSBURY PROFESSIONAL,Governance,Governance,Subscriptions,14-Oct,605
5473249,GRANART LIMITED,Operations and Neighbourhoods,Operations and Neighbourhoods,Plaques,14-Oct,990
5473254,UK FOSTERING LTD,Childrens Services,Children's Services,Foster Carer Agency Fees,14-Oct,"3,128.83"
5473301,Larkin'About,(blank),(blank),Professional Entertainment Services,07-Oct,700
5473304,Redacted Supplier,Adult Social Care,Adults,Day Care Fees,14-Oct,"1,008.00"
5473308,National Youth Advocacy Service,Childrens Services,Children's Services,Professional Services,14-Oct,"4,166.33"
5473321,Redacted Supplier,Childrens Services,Children's Services,Childrens Homes Outside Local Authority Fees,14-Oct,"4,340.00"
5473323,Redacted Supplier,Childrens Services,Children's Services,Childrens Homes Outside Local Authority Fees,14-Oct,"3,844.00"
5473325,Furniture Resource Centre Ltd,Operations and Neighbourhoods,Operations and Neighbourhoods,"Fixtures, Fittings & Furniture Purchase",19-Oct,646.46
5473335,Furniture Resource Centre Ltd,Operations and Neighbourhoods,Operations and Neighbourhoods,"Fixtures, Fittings & Furniture Purchase",19-Oct,"1,124.60"
5473337,Redacted Supplier,Operations and Neighbourhoods,Operations and Neighbourhoods,Professional Services,14-Oct,"1,220.00"
5473346,Global Grooves,(blank),(blank),Professional Entertainment Services,14-Oct,"3,000.00"
5473354,Furniture Resource Centre Ltd,Operations and Neighbourhoods,Operations and Neighbourhoods,"Fixtures, Fittings & Furniture Purchase",14-Oct,740.32
5473357,Furniture Resource Centre Ltd,Childrens Services,Children's Services,"Fixtures,Fittings & Furniture Purchase (Service Users)",19-Oct,602.89
5473360,Furniture Resource Centre Ltd,Operations and Neighbourhoods,Operations and Neighbourhoods,"Fixtures, Fittings & Furniture Purchase",19-Oct,895.85
5473363,Optima Health,People and Workforce Development,Governance,Professional Medical Services,14-Oct,"5,307.19"
5473364,Furniture Resource Centre Ltd,Operations and Neighbourhoods,Operations and Neighbourhoods,"Fixtures, Fittings & Furniture Purchase",19-Oct,"1,596.64"
5473371,Furniture Resource Centre Ltd,Operations and Neighbourhoods,Operations and Neighbourhoods,"Fixtures, Fittings & Furniture Purchase",14-Oct,793.49
5473372,Furniture Resource Centre Ltd,Operations and Neighbourhoods,Operations and Neighbourhoods,"Fixtures, Fittings & Furniture Purchase",19-Oct,710.26
5473373,STEP AHEAD RESOURCE SERVICES,(blank),(blank),Living With Formal Support,11-Nov,"1,250.00"
5473374,Furniture Resource Centre Ltd,Operations and Neighbourhoods,Operations and Neighbourhoods,"Fixtures, Fittings & Furniture Purchase",19-Oct,536.3
5473375,STEP AHEAD RESOURCE SERVICES,(blank),(blank),Living With Formal Support,11-Nov,"1,300.00"
5473393,FARRER & CO,Place,Growth,Legal Fees,26-Oct,500
5473401,ABL HEALTH,Childrens Services,Children's Services,Homecare Fees,14-Oct,"1,905.00"
5473403,ABL HEALTH,Childrens Services,Children's Services,Homecare Fees,14-Oct,"5,955.00"
5473404,MOSSCARE HOUSING LTD,Childrens Services,Children's Services,Living With Formal Support,19-Oct,"1,428.48"
5473406,MOSSCARE HOUSING LTD,Childrens Services,Children's Services,Living With Formal Support,19-Oct,"1,523.84"
5473410,ELMAR HOME CARE MANCHESTER LTD,Adult Social Care,Adults,Homecare Fees,14-Oct,"2,328.48"
5473412,Dale Care and Support Ltd t/a Heritage Healthcare Rochdale,Adult Social Care,Adults,Homecare Fees,10-Oct,"4,200.00"
5473416,Whole Education Ltd,Education,Children's Services,Professional Consultancy Services,26-Oct,"11,980.00"
5473417,THE TOGETHER CENTRE - LOXLEY HOUSE CIO,Operations and Neighbourhoods,Operations and Neighbourhoods,General Materials,14-Oct,"1,137.50"
5473418,CITY CARE SOLUTIONS LTD,Adult Social Care,Adults,Homecare Fees,14-Oct,"2,180.79"
5473427,TELEFONICA O2 (UK) LTD,Digital Tameside,Finance & IT,Mobile Telephones,18-Oct,"8,139.55"
5473444,Shield Support Hub Limited,(blank),(blank),Living With Formal Support,20-Oct,"3,314.24"
5473447,Shield Support Hub Limited,(blank),(blank),Living With Formal Support,20-Oct,"6,214.28"
5473447,Shield Support Hub Limited,(blank),(blank),Semi independent - Weekly Living Allowances,20-Oct,244.2
5473448,Avoira Ltd,Digital Tameside,Finance & IT,Telephone Landline Costs,13-Oct,"5,484.94"
5473449,YOUNG PEOPLE FIRST LIMITED,Childrens Services,Children's Services,Living With Formal Support,20-Oct,"1,225.00"
5473450,YOUNG PEOPLE FIRST LIMITED,(blank),(blank),Living With Formal Support,20-Oct,"2,100.00"
5473453,YOUNG PEOPLE FIRST LIMITED,Childrens Services,Children's Services,Living With Formal Support,20-Oct,"1,225.00"
5473456,YOUNG PEOPLE FIRST LIMITED,(blank),(blank),Living With Formal Support,20-Oct,"2,100.00"
5473458,YOUNG PEOPLE FIRST LIMITED,(blank),(blank),Living With Formal Support,21-Oct,"1,625.00"
5473458,YOUNG PEOPLE FIRST LIMITED,(blank),(blank),Semi independent - Weekly Living Allowances,21-Oct,61.05
5473459,YOUNG PEOPLE FIRST LIMITED,(blank),(blank),Living With Formal Support,20-Oct,"1,625.00"
5473459,YOUNG PEOPLE FIRST LIMITED,(blank),(blank),Semi independent - Weekly Living Allowances,20-Oct,61.05
5473467,DAC BEACHCROFT LLP,Tameside Investment Partnership,Director of Place,Consultancies,18-Oct,"34,014.49"
5473471,GRANART LIMITED,Operations and Neighbourhoods,Operations and Neighbourhoods,Plaques,20-Oct,664
5473473,GRANART LIMITED,Operations and Neighbourhoods,Operations and Neighbourhoods,Plaques,20-Oct,"1,423.00"
5473476,I Care GB Ltd,Adult Social Care,Adults,Homecare Fees,20-Oct,"20,039.21"
5473480,CROMWELL POLYTHENE LTD.,Operations and Neighbourhoods,Operations and Neighbourhoods,Purchase Plastic Sacks,20-Oct,"5,635.20"
5473484,BOLTON MBC,Childrens Services,Children's Services,Professional Services,04-Oct,"141,245.13"
5473486,VIP-SYSTEM LIMITED,Operations and Neighbourhoods,Operations and Neighbourhoods,Taxi Lamination Fees,20-Oct,"2,221.97"
5473490,Redacted Supplier,Education,Children's Services,Independent School Fees,20-Oct,"1,875.00"
5473491,COMFORT CALL LIMITED,Adult Social Care,Adults,Homecare Fees,11-Oct,"32,891.76"
5473492,COMFORT CALL LIMITED,Adult Social Care,Adults,Homecare Fees,11-Oct,"32,930.20"
5473493,COMFORT CALL LIMITED,Adult Social Care,Adults,Homecare Fees,11-Oct,"32,766.83"
5473498,CARELINE HOMECARE LTD,Adult Social Care,Adults,Homecare Fees,11-Oct,"32,639.16"
5473499,CARELINE HOMECARE LTD,Adult Social Care,Adults,Homecare Fees,11-Oct,"33,455.67"
5473500,CARELINE HOMECARE LTD,Adult Social Care,Adults,Homecare Fees,11-Oct,"1,010.79"
5473501,CARELINE HOMECARE LTD,Adult Social Care,Adults,Homecare Fees,11-Oct,"33,050.73"
5473502,CARELINE HOMECARE LTD,Adult Social Care,Adults,Homecare Fees,11-Oct,"1,228.02"
5473503,CARELINE HOMECARE LTD,Adult Social Care,Adults,Homecare Fees,11-Oct,"1,365.88"
5473504,NPOWER LIMITED,Adult Social Care,Adults,Electricity,20-Oct,"1,299.19"
5473505,NPOWER LIMITED,Adult Social Care,Adults,Electricity,20-Oct,"1,368.79"
5473506,NPOWER LIMITED,Adult Social Care,Adults,Electricity,20-Oct,"1,259.36"
5473507,NPOWER LIMITED,Adult Social Care,Adults,Electricity,20-Oct,"1,323.87"
5473508,NPOWER LIMITED,Adult Social Care,Adults,Electricity,20-Oct,"1,308.42"
5473509,NPOWER LIMITED,Adult Social Care,Adults,Electricity,20-Oct,"1,321.49"
5473510,NPOWER LIMITED,Adult Social Care,Adults,Electricity,20-Oct,"1,415.05"
5473512,NPOWER LIMITED,Adult Social Care,Adults,Electricity,20-Oct,"1,279.97"
5473513,NPOWER LIMITED,Adult Social Care,Adults,Electricity,20-Oct,"1,444.38"
5473530,Imail Comms Limited,Education,Children's Services,Professional Services,21-Oct,"1,281.11"
5473588,iCare Solutions,Adult Social Care,Adults,Homecare Fees,21-Oct,"17,428.59"
5473589,Sandcastle Care LTD,Childrens Services,Children's Services,Childrens Homes Outside Local Authority Fees,21-Oct,"8,500.00"
5473590,Sandcastle Care LTD,Childrens Services,Children's Services,Childrens Homes Outside Local Authority Fees,21-Oct,"25,692.86"
5473591,N A Brown Ltd,Operations and Neighbourhoods,Operations and Neighbourhoods,General Materials,21-Oct,"2,735.47"
5473598,POSITIVE STEPS OLDHAM,Place,Growth,Professional Services,21-Oct,"36,986.30"
5473604,Social Work Solutions NW Limited,Adult Social Care,Adults,Professional Services,24-Oct,534
5473608,RIGHT - STEP LIMITED T/A RSL,Childrens Services,Children's Services,Living With Formal Support,21-Oct,"4,928.57"
5473610,Advantage Healthcare Limited,Adult Social Care,Adults,Homecare Fees,21-Oct,814
5473617,LOCAL CARE FORCE,Adult Social Care,Adults,Residential Home Long Stay Fees,21-Oct,"2,652.00"
5473621,TREASURED MEMORIES LTD,Operations and Neighbourhoods,Operations and Neighbourhoods,Plaques,21-Oct,571.7
5473623,N.W.A Housing Ltd,(blank),(blank),Non-Authority Accommodation Rental,21-Oct,"12,273.03"
5473635,FRESHWORKS,Digital Tameside,Finance & IT,Computer Software,21-Oct,"2,784.00"
5473637,Reed Talent Solutions Ltd,Childrens Services,Children's Services,Professional Services,21-Oct,"11,490.00"
5473643,Valour Private Ltd t/a Valour Healthcare Services,Adult Social Care,Adults,Homecare Fees,21-Oct,"2,881.13"
5473645,The Mount Guest House Limited,(blank),(blank),Chief/Ground Rent,21-Oct,"9,860.00"
5473646,SWIIS FOSTER CARE LTD,Childrens Services,Children's Services,Foster Carer Agency Fees,21-Oct,"1,694.98"
5473647,B.E.M Property Management t/a HALA GUEST HOUSE,(blank),(blank),Other Accommodation Related Costs,21-Oct,"7,885.00"
5473648,MEDACS HEALTHCARE,Adult Social Care,Adults,Homecare Fees,13-Oct,"28,631.78"
5473649,SWIIS FOSTER CARE LTD,Childrens Services,Children's Services,Foster Carer Agency Fees,21-Oct,760.48
5473650,Cedar Housing Solutions,Operations and Neighbourhoods,Operations and Neighbourhoods,Non-Authority Accommodation Rental,21-Oct,"3,000.00"
5473651,VISION FOR EDUCATION LIMITED,Education,Children's Services,Professional Services,24-Oct,"1,437.96"
5473652,NPOWER LIMITED,Operations and Neighbourhoods,Operations and Neighbourhoods,Electricity,21-Oct,"114,246.19"
5473654,AGE UK TAMESIDE,Adult Social Care,Adults,Professional Services,14-Oct,"44,065.75"
5473655,Foundations Plus,Adult Social Care,Adults,Residential Home Long Stay Fees,21-Oct,"4,985.00"
5473657,Foundations Plus,Adult Social Care,Adults,Residential Home Long Stay Fees,21-Oct,"3,480.00"
5473658,Anglian Water Business (National) t/a Wave Utilities,Place,Growth,Water (Metered and Rates),11-Oct,"17,725.65"
5473659,INSIGHT DIRECT (UK) LIMITED,GMPF (FX),GMPF (FX),Telephone Landline Costs,21-Oct,"18,635.37"
5473660,ROUTES HEALTHCARE (NORTH) LIMITED,Adult Social Care,Adults,Homecare Fees,21-Oct,"5,241.74"
5473661,ROUTES HEALTHCARE (NORTH) LIMITED,Adult Social Care,Adults,Homecare Fees,21-Oct,"5,624.76"
5473662,ROUTES HEALTHCARE (NORTH) LIMITED,Adult Social Care,Adults,Homecare Fees,21-Oct,"5,675.03"
5473663,ROUTES HEALTHCARE (NORTH) LIMITED,Adult Social Care,Adults,Homecare Fees,21-Oct,"5,691.88"
5473664,ROUTES HEALTHCARE (NORTH) LIMITED,Adult Social Care,Adults,Homecare Fees,21-Oct,"5,484.04"
5473665,WICKSTEED LEISURE LIMITED T/A WICKSTEED PLAYGROUNDS,Operations and Neighbourhoods,Operations and Neighbourhoods,General Materials,21-Oct,"1,109.95"
5473668,COMPLETE BACKGROUND SCREENING LTD,People and Workforce Development,Governance,Professional Services,21-Oct,"7,954.50"
5473685,LANCASHIRE COUNTY COUNCIL,Education,Children's Services,Transport Of Ola Pupils,21-Oct,"2,483.33"
5473688,HIGHLAND ORNATE LTD T/A ORNATE HEALTHCARE,Adult Social Care,Adults,Homecare Fees,05-Oct,"28,629.52"
5473689,Imail Comms Limited,Exchequer,Governance,Printing And Stationery,21-Oct,"1,259.38"
5473694,Imail Comms Limited,Exchequer,Governance,Printing And Stationery,21-Oct,"2,335.88"
5473696,iCare Solutions,Adult Social Care,Adults,Homecare Fees,21-Oct,"15,965.87"
5473697,SOFTCAT LIMITED,Digital Tameside,Finance & IT,IT Equipment,21-Oct,"4,070.40"
5473698,ROUTES HEALTHCARE (NORTH) LIMITED,Adult Social Care,Adults,Homecare Fees,21-Oct,"5,169.58"
5473704,Oxford Innovation LTD - ASHTON OLD BATHS,Place,Growth,Professional Services,21-Oct,"18,420.09"
5473709,Redacted Supplier,Education,Children's Services,Independent School Fees,21-Oct,810
5473711,Trace Solutions Limited,Place,Growth,Computer Software,21-Oct,"15,033.16"
5473720,Oticon Ltd,Education,Children's Services,Educational Equipment,21-Oct,"2,590.00"
5473730,Furniture Resource Centre Ltd,Operations and Neighbourhoods,Operations and Neighbourhoods,"Fixtures, Fittings & Furniture Purchase",21-Oct,775.24
5473733,INSPIREDSPACES TAMESIDE LTD,(blank),(blank),Fees,24-Oct,"20,453.54"
5473734,INSPIREDSPACES TAMESIDE LTD,(blank),(blank),Fees,24-Oct,"2,081.77"
5473735,CITY LIFT SERVICES (NW) LTD,Adult Social Care,Adults,General Equipment Repair & Maintenance,21-Oct,"2,530.00"
5473736,INSPIREDSPACES TAMESIDE LTD,(blank),(blank),Fees,24-Oct,"3,254.85"
5473738,CITY LIFT SERVICES (NW) LTD,Adult Social Care,Adults,General Equipment Repair & Maintenance,21-Oct,"2,725.00"
5473742,SEDGEMOOR DISTRICT COUNCIL,Hosted Services,Hosted Services,Professional Consultancy Services,06-Oct,"2,218.00"
5473747,K P DODD CONSTRUCTION LTD,Housing,Director of Place,Minor Works - Building,21-Oct,500
5473749,Conservation Contracts North West Limited,Hosted Services,Hosted Services,Professional Services,13-Oct,"4,868.63"
5473751,REDACTIVE PUBLISHING LIMITED,Finance,Finance & IT,"Marketing, Publicity and Recruitment",20-Oct,500
5473753,Furniture Resource Centre Ltd,Operations and Neighbourhoods,Operations and Neighbourhoods,"Fixtures, Fittings & Furniture Purchase",21-Oct,620.8
5473756,Furniture Resource Centre Ltd,Operations and Neighbourhoods,Operations and Neighbourhoods,"Fixtures, Fittings & Furniture Purchase",21-Oct,794.72
5473759,Furniture Resource Centre Ltd,Operations and Neighbourhoods,Operations and Neighbourhoods,"Fixtures, Fittings & Furniture Purchase",21-Oct,776.82
5473766,Furniture Resource Centre Ltd,Operations and Neighbourhoods,Operations and Neighbourhoods,"Fixtures, Fittings & Furniture Purchase",21-Oct,543.97
5473769,Furniture Resource Centre Ltd,Operations and Neighbourhoods,Operations and Neighbourhoods,"Fixtures, Fittings & Furniture Purchase",21-Oct,673.15
5473771,Dale Care and Support Ltd t/a Heritage Healthcare Rochdale,Adult Social Care,Adults,Residential Home Long Stay Fees,13-Oct,700
5473773,Footsteps A Path To Change 08 Ltd,Childrens Services,Children's Services,Childrens Homes Outside Local Authority Fees,26-Oct,"18,644.95"
5473778,KB Extruders Ltd,Operations and Neighbourhoods,Operations and Neighbourhoods,General Materials,21-Oct,"2,354.40"
5473785,Furniture Resource Centre Ltd,Operations and Neighbourhoods,Operations and Neighbourhoods,"Fixtures, Fittings & Furniture Purchase",21-Oct,881.87
5473793,Newsquest Ltd T/A LOCALiQ,Childrens Services,Children's Services,"Marketing, Publicity and Recruitment",21-Oct,"1,750.00"
5473794,CITY CARE SOLUTIONS LTD,Adult Social Care,Adults,Homecare Fees,21-Oct,"2,176.37"
5473796,APOLLO HOME HEALTHCARE LTD,Childrens Services,Children's Services,Homecare Fees,07-Oct,507.12
5473829,QUEST MEDIA NETWORK LTD,Policy and Communications,Governance,"Marketing, Publicity and Recruitment",06-Oct,550
5473846,Redacted Supplier,Education,Children's Services,Professional Services,25-Oct,"6,600.00"
5473848,Upwards Care Solutions,(blank),(blank),Living With Formal Support,26-Oct,"4,526.85"
5473851,Access UK Ltd,Adult Social Care,Adults,Computer Software Maintenance Costs,13-Oct,"3,041.36"
5473853,LOCAL CARE FORCE,Adult Social Care,Adults,Residential Home Long Stay Fees,21-Oct,"2,827.44"
5473855,Beacon Counselling,People and Workforce Development,Governance,Legal Fees,21-Oct,"2,720.00"
5473860,Redacted Supplier,Education,Children's Services,Independent School Fees,21-Oct,"12,391.60"
5473868,Sure Steps Support Services Limited,Childrens Services,Children's Services,Childrens Homes Outside Local Authority Fees,02-Nov,"9,498.04"
5473879,DEKKO WINDOW SYSTEMS LTD,Place,Growth,Gas,21-Oct,588.77
5473892,PLATINUM MANAGEMENT SOLUTIONS LTD t/a Platinum Training Services,Operations and Neighbourhoods,Operations and Neighbourhoods,Training Course Costs,13-Oct,720
5473893,Constellia Public Ltd,Place,Growth,Professional Services,21-Oct,"19,289.25"
5473899,Home Instead Senior Care,Adult Social Care,Adults,Homecare Fees,15-Nov,"1,789.10"
5473902,DEKKO WINDOW SYSTEMS LTD,Place,Growth,Gas,21-Oct,641.79
5473903,TAMESIDE LINK,Adult Social Care,Adults,Homecare Fees,03-Oct,"23,442.72"
5473905,Redacted Supplier,Education,Children's Services,Independent School Fees,21-Oct,"2,564.10"
5473907,Redacted Supplier,Education,Children's Services,Independent School Fees,21-Oct,"30,769.20"
5473909,Redacted Supplier,Education,Children's Services,Independent School Fees,21-Oct,"29,999.97"
5473914,HEXAGON CARE SERVICES LTD,Childrens Services,Children's Services,Childrens Homes Outside Local Authority Fees,21-Oct,"19,221.43"
5473916,HEXAGON CARE SERVICES LTD,Childrens Services,Children's Services,Childrens Homes Outside Local Authority Fees,21-Oct,"10,960.20"
5473917,PROFILE SECURITY SERVICES LIMITED,Operations and Neighbourhoods,Operations and Neighbourhoods,Security Services,21-Oct,"3,792.24"
5473918,PROFILE SECURITY SERVICES LIMITED,Operations and Neighbourhoods,Operations and Neighbourhoods,Security Services,21-Oct,"4,108.26"
5473919,PROFILE SECURITY SERVICES LIMITED,Operations and Neighbourhoods,Operations and Neighbourhoods,Security Services,21-Oct,"4,108.26"
5473920,Home Instead Senior Care,Adult Social Care,Adults,Homecare Fees,21-Oct,"1,650.00"
5473922,Redacted Supplier,Education,Children's Services,Independent School Fees,21-Oct,"2,625.00"
5473926,Redacted Supplier,Education,Children's Services,Post 16 FE College Fees,25-Oct,"7,850.00"
5473927,BTTLR LIMITED T/A Connecting Hands Healthcare Services,Childrens Services,Children's Services,Childrens Homes Outside Local Authority Fees,28-Oct,"11,300.00"
5473932,XMA LIMITED,Digital Tameside,Finance & IT,IT Equipment,24-Oct,981.38
5473933,CIVICA UK LIMITED,Operations and Neighbourhoods,Operations and Neighbourhoods,Computer Software,28-Oct,"19,500.00"
5473935,Redacted Supplier,Education,Children's Services,Professional Services,25-Oct,"1,100.00"
5473936,Redacted Supplier,Education,Children's Services,Professional Services,25-Oct,550
5473937,NLA Media Access Limited,Policy and Communications,Governance,"Marketing, Publicity and Recruitment",21-Oct,"3,742.00"
5473939,2 BOARDS AND A PASSION C.I.C.,(blank),(blank),Professional Services,03-Oct,500
5473941,CAPACITY GRID,Exchequer,Governance,Professional Consultancy Services,21-Oct,"17,959.41"
5473942,Redacted Supplier,Education,Children's Services,Independent School Fees,21-Oct,"18,835.33"
5473943,CRAEMER UK LTD,Operations and Neighbourhoods,Operations and Neighbourhoods,Purchase Wheeled Bins,21-Oct,"12,567.00"
5474000,Indie 16 Limited,(blank),(blank),Living With Formal Support,26-Oct,"2,807.14"
5474003,ZURICH INSURANCE PLC,Finance,Finance & IT,Miscellaneous Insurance,26-Oct,932.02
5474005,Furniture Resource Centre Ltd,Operations and Neighbourhoods,Operations and Neighbourhoods,"Fixtures, Fittings & Furniture Purchase",26-Oct,577.86
5474006,NEW BRIDGE HORIZONS,Adult Social Care,Adults,Day Care Fees,26-Oct,"1,984.75"
5474010,Zeno Ltd,Adult Social Care,Adults,Homecare Fees,26-Oct,"10,800.26"
5474012,Furniture Resource Centre Ltd,Operations and Neighbourhoods,Operations and Neighbourhoods,"Fixtures, Fittings & Furniture Purchase",26-Oct,609.76
5474014,ELMAR HOME CARE MANCHESTER LTD,Adult Social Care,Adults,Homecare Fees,26-Oct,"2,363.94"
5474021,Valour Private Ltd t/a Valour Healthcare Services,Adult Social Care,Adults,Homecare Fees,26-Oct,"2,839.81"
5474023,ASKEWS  AND HOLTS LIBRARY SERVICES LTD,Operations and Neighbourhoods,Operations and Neighbourhoods,Purchase Books,26-Oct,"1,222.22"
5474024,Anglian Water Business (National) t/a Wave Utilities,Place,Growth,Water (Metered and Rates),26-Oct,"23,864.35"
5474026,KEYS PCE LTD,Childrens Services,Children's Services,Childrens Homes Outside Local Authority Fees,26-Oct,"18,112.86"
5474028,AUTISM INITIATIVES (UK),Adult Social Care,Adults,Homecare Fees,26-Oct,"3,074.56"
5474029,TEAM VIEWER,Digital Tameside,Finance & IT,Computer Software,26-Oct,"4,255.80"
5474030,AUTISM INITIATIVES (UK),Adult Social Care,Adults,Homecare Fees,26-Oct,"3,074.56"
5474032,AUTISM INITIATIVES (UK),Adult Social Care,Adults,Homecare Fees,26-Oct,"1,076.80"
5474033,FORBES SOLICITORS,Finance,Finance & IT,Professional Services,26-Oct,"1,054.05"
5474035,BEDSPACE RESOURCE LTD,Adult Social Care,Adults,Residential Home Long Stay Fees,26-Oct,"2,800.00"
5474041,BARNARDO'S,Childrens Services,Children's Services,Foster Carer Agency Fees,26-Oct,"7,285.71"
5474048,K P DODD CONSTRUCTION LTD,Housing,Director of Place,Mandatory Adaptations Grant (DFG),26-Oct,"31,710.00"
5474049,NEW BRIDGE HORIZONS,Adult Social Care,Adults,Day Care Fees,26-Oct,"1,016.00"
5474050,CITY LIFT SERVICES (NW) LTD,Adult Social Care,Adults,General Equipment Repair & Maintenance,26-Oct,750
5474051,NEW BRIDGE HORIZONS,Adult Social Care,Adults,Day Care Fees,26-Oct,"1,868.00"
5474053,CITY LIFT SERVICES (NW) LTD,Adult Social Care,Adults,General Equipment Repair & Maintenance,26-Oct,"1,770.00"
5474054,NEW BRIDGE HORIZONS,Adult Social Care,Adults,Day Care Fees,26-Oct,"2,335.00"
5474056,NEW BRIDGE HORIZONS,Adult Social Care,Adults,Day Care Fees,26-Oct,"1,625.00"
5474062,CRAEMER UK LTD,Operations and Neighbourhoods,Operations and Neighbourhoods,Purchase Wheeled Bins,26-Oct,"17,998.50"
5474081,NEW BRIDGE HORIZONS,Adult Social Care,Adults,Day Care Fees,26-Oct,"1,800.00"
5474092,STEP AHEAD RESOURCE SERVICES,(blank),(blank),Living With Formal Support,11-Nov,"1,250.00"
5474094,STEP AHEAD RESOURCE SERVICES,(blank),(blank),Living With Formal Support,11-Nov,"1,300.00"
5474096,Social Work Solutions NW Limited,Adult Social Care,Adults,Professional Services,06-Oct,827.25
5474098,BEN HALL TREE SURGEONS t/a ACER SPADES,Operations and Neighbourhoods,Operations and Neighbourhoods,General Materials,06-Oct,"1,960.00"
5474100,Furniture Resource Centre Ltd,Operations and Neighbourhoods,Operations and Neighbourhoods,"Fixtures, Fittings & Furniture Purchase",21-Oct,649.55
5474101,Redacted Supplier,Education,Children's Services,Independent School Fees,26-Oct,"13,544.78"
5474102,Redacted Supplier,Education,Children's Services,Independent School Fees,26-Oct,"13,544.78"
5474103,Redacted Supplier,Education,Children's Services,Independent School Fees,26-Oct,"13,544.78"
5474108,TAMESIDE SPORTS TRUST,(blank),(blank),Community Based Activities,06-Oct,"333,116.66"
5474110,ROSS AUTO ENGINEERING LIMITED TRADING AS ROSS CARE,Adult Social Care,Adults,Joint Loans Store Fee,26-Oct,"15,816.45"
5474111,ROSS AUTO ENGINEERING LIMITED TRADING AS ROSS CARE,Adult Social Care,Adults,Joint Loans Store Fee,26-Oct,"145,701.55"
5474126,D.A. LANGUAGES LTD,Childrens Services,Children's Services,Professional Interpreter Services,27-Oct,"1,455.00"
5474129,ACTION TOGETHER CIO,Operations and Neighbourhoods,Operations and Neighbourhoods,Project Costs,24-Oct,"14,609.00"
5474131,Northern Community Pathways Limited,Childrens Services,Children's Services,Living With Formal Support,28-Oct,"1,947.08"
5474132,Northern Community Pathways Limited,Childrens Services,Children's Services,Living With Formal Support,28-Oct,"2,385.56"
5474133,Northern Community Pathways Limited,Childrens Services,Children's Services,Living With Formal Support,28-Oct,"2,034.80"
5474135,Northern Community Pathways Limited,(blank),(blank),Living With Formal Support,28-Oct,"3,244.00"
5474135,Northern Community Pathways Limited,(blank),(blank),Semi independent - Weekly Living Allowances,28-Oct,244.2
5474136,Northern Community Pathways Limited,(blank),(blank),Living With Formal Support,28-Oct,"4,088.00"
5474136,Northern Community Pathways Limited,(blank),(blank),Semi independent - Weekly Living Allowances,28-Oct,244.2
5474140,Northern Community Pathways Limited,(blank),(blank),Living With Formal Support,22-Dec,"3,598.00"
5474140,Northern Community Pathways Limited,(blank),(blank),Semi independent - Weekly Living Allowances,22-Dec,78.49
5474142,Northern Community Pathways Limited,Childrens Services,Children's Services,Living With Formal Support,28-Oct,"2,404.00"
5474146,Sams Helping Hands Limited,Adult Social Care,Adults,Homecare Fees,03-Oct,"5,763.67"
5474153,Cathmor,Childrens Services,Children's Services,Living With Formal Support,27-Oct,"3,963.66"
5474155,Cathmor,Childrens Services,Children's Services,Living With Formal Support,27-Oct,"3,835.80"
5474159,Constellia Public Ltd,Place,Growth,Professional Services,27-Oct,"3,509.79"
5474161,XMA LIMITED,Digital Tameside,Finance & IT,IT Equipment,27-Oct,955.56
5474162,Constellia Public Ltd,Place,Growth,Professional Services,27-Oct,"3,241.34"
5474164,PRO VENTURE CONSULTING,Finance,Finance & IT,"Marketing, Publicity and Recruitment",27-Oct,"12,000.00"
5474165,PROFILE SECURITY SERVICES LIMITED,Operations and Neighbourhoods,Operations and Neighbourhoods,Security Services,27-Oct,"3,907.93"
5474168,DIRECT CARE (TAMESIDE) LTD,Adult Social Care,Adults,Homecare Fees,07-Oct,"42,519.18"
5474170,Complex Care Professionals Ltd,Adult Social Care,Adults,Homecare Fees,18-Oct,"1,715.00"
5474172,Complex Care Professionals Ltd,Adult Social Care,Adults,Homecare Fees,18-Oct,"1,715.00"
5474174,Cathmor,Childrens Services,Children's Services,Living With Formal Support,27-Oct,"5,485.80"
5474176,Complex Care Professionals Ltd,Adult Social Care,Adults,Homecare Fees,18-Oct,"1,715.00"
5474179,Cathmor,Childrens Services,Children's Services,Living With Formal Support,27-Oct,"3,835.80"
5474180,Complex Care Professionals Ltd,Adult Social Care,Adults,Homecare Fees,18-Oct,"1,715.00"
5474182,MIDA SIGN SERVICES UK,Policy and Communications,Governance,Printing And Stationery,07-Oct,"4,420.00"
5474183,Cathmor,Childrens Services,Children's Services,Living With Formal Support,27-Oct,"3,835.80"
5474184,CARELINE HOMECARE LTD,Adult Social Care,Adults,Homecare Fees,18-Oct,"32,275.52"
5474185,CARELINE HOMECARE LTD,Adult Social Care,Adults,Homecare Fees,18-Oct,"1,372.89"
5474186,APS Group,Operations and Neighbourhoods,Operations and Neighbourhoods,Professional Medical Services,27-Oct,867.9
5474192,TAMESIDE AND GLOSSOP INTEGRATED CARE NHS FOUNDATION TRUST,Adult Social Care,Adults,External Secondments,05-Oct,"2,902.00"
5474193,TAMESIDE AND GLOSSOP INTEGRATED CARE NHS FOUNDATION TRUST,Contingency,Contingency,Professional Services,07-Oct,"12,338.96"
5474194,I Care GB Ltd,Adult Social Care,Adults,Homecare Fees,21-Oct,"20,039.21"
5474196,Finning Power Rental Limited,GMPF (FX),GMPF (FX),Computer Hardware Maintenance Costs,16-Nov,"1,000.00"
5474197,Redacted Supplier,Education,Children's Services,Professional Consultancy Services,27-Oct,"6,000.00"
5474198,National Youth Advocacy Service,Childrens Services,Children's Services,Professional Services,28-Oct,"4,166.33"
5474200,SpeechWise 2 Ltd,Education,Children's Services,Other Local Authorities Fees,02-Nov,544.05
5474202,FOUNTAINS & FEATURES LIMITED,Operations and Neighbourhoods,Operations and Neighbourhoods,General Materials,27-Oct,830
5474203,Pitney Bowes Pre Pay,Exchequer,Governance,Postages,18-Oct,"5,524.23"
5474204,Strategy for Change,Population Health,Population Health,Professional Services,27-Oct,"3,030.20"
5474205,COMFORT CALL LIMITED,Adult Social Care,Adults,Homecare Fees,18-Oct,"34,027.47"
5474207,LIVERPOOL CITY COUNCIL,Education,Children's Services,Other Local Authorities Fees,11-Oct,"3,619.68"
5474209,Redacted Supplier,Education,Children's Services,Professional Services,27-Oct,"1,100.00"
5474210,SURECARE TAMESIDE & OLDHAM,Adult Social Care,Adults,Homecare Fees,27-Oct,"4,705.84"
5474212,SURECARE TAMESIDE & OLDHAM,Adult Social Care,Adults,Homecare Fees,27-Oct,"4,590.59"
5474217,Tynetec a group brand of Legrand Electric Ltd,Adult Social Care,Adults,IT Equipment,27-Oct,"9,861.50"
5474218,Complex Care Professionals Ltd,Adult Social Care,Adults,Homecare Fees,18-Oct,"1,715.00"
5474221,B.E.M Property Management t/a HALA GUEST HOUSE,(blank),(blank),Other Accommodation Related Costs,28-Oct,"6,560.00"
5474222,Westheads Florist,Corporate Costs,Corporate Costs,General Equipment Purchase,07-Oct,513.24
5474225,CGL Services,Population Health,Population Health,Professional Services,27-Oct,"255,750.00"
5474227,Complete Care & Enablement Services LTD,Adult Social Care,Adults,Residential Home Long Stay Fees,28-Oct,"5,916.35"
5474229,Complete Care & Enablement Services LTD,Adult Social Care,Adults,Residential Home Long Stay Fees,28-Oct,"5,916.35"
5474230,Complete Care & Enablement Services LTD,Adult Social Care,Adults,Residential Home Long Stay Fees,28-Oct,"5,916.35"
5474231,Social Work Solutions NW Limited,Adult Social Care,Adults,Professional Services,07-Oct,529.5
5474234,ARCO LIMITED,Operations and Neighbourhoods,Operations and Neighbourhoods,General Equipment Purchase,28-Oct,"2,204.23"
5474252,Hyde Accessible Transport Limited,Education,Children's Services,Transport Of Pupils,07-Oct,"2,375.00"
5474277,Hyde Accessible Transport Limited,Operations and Neighbourhoods,Operations and Neighbourhoods,Hired Transport,04-Oct,"2,625.00"
5474279,Hyde Accessible Transport Limited,Operations and Neighbourhoods,Operations and Neighbourhoods,Hired Transport,04-Oct,"1,167.50"
5474311,Hyde Accessible Transport Limited,Education,Children's Services,Transport Of Pupils,03-Oct,"2,375.00"
5474317,Hyde Accessible Transport Limited,Operations and Neighbourhoods,Operations and Neighbourhoods,Hired Transport,04-Oct,"1,330.00"
5474320,Hyde Accessible Transport Limited,Operations and Neighbourhoods,Operations and Neighbourhoods,Hired Transport,04-Oct,"3,230.00"
5474334,CARETECH COMMUNITY SERVICES LIMITED,Adult Social Care,Adults,Residential Home Long Stay Fees,28-Oct,"4,065.34"
5474335,CARETECH COMMUNITY SERVICES LIMITED,Adult Social Care,Adults,Residential Home Long Stay Fees,28-Oct,"14,668.58"
5474337,CARETECH COMMUNITY SERVICES LIMITED,Adult Social Care,Adults,Residential Home Long Stay Fees,28-Oct,"5,916.35"
5474338,CARETECH COMMUNITY SERVICES LIMITED,Adult Social Care,Adults,Residential Home Long Stay Fees,28-Oct,"3,227.10"
5474339,CARETECH COMMUNITY SERVICES LIMITED,Adult Social Care,Adults,Residential Home Long Stay Fees,28-Oct,"3,227.10"
5474340,CARETECH COMMUNITY SERVICES LIMITED,Adult Social Care,Adults,Residential Home Long Stay Fees,28-Oct,"6,992.05"
5474341,CARETECH COMMUNITY SERVICES LIMITED,Adult Social Care,Adults,Residential Home Long Stay Fees,28-Oct,"4,302.80"
5474342,CARETECH COMMUNITY SERVICES LIMITED,Adult Social Care,Adults,Residential Home Long Stay Fees,28-Oct,"7,529.90"
5474343,CARETECH COMMUNITY SERVICES LIMITED,Adult Social Care,Adults,Residential Home Long Stay Fees,28-Oct,"7,529.90"
5474345,CARETECH COMMUNITY SERVICES LIMITED,Adult Social Care,Adults,Residential Home Long Stay Fees,28-Oct,"6,992.05"
5474347,CARETECH COMMUNITY SERVICES LIMITED,Adult Social Care,Adults,Residential Home Long Stay Fees,28-Oct,"6,268.51"
5474348,ORANGE PSYCHOLOGY LTD,Education,Children's Services,Professional Services,28-Oct,"2,475.00"
5474349,J H Pickup & Co Ltd,(blank),(blank),Fees,28-Oct,"3,021.00"
5474350,CARETECH COMMUNITY SERVICES LIMITED,Adult Social Care,Adults,Residential Home Long Stay Fees,28-Oct,"4,787.02"
5474351,CARETECH COMMUNITY SERVICES LIMITED,Adult Social Care,Adults,Residential Home Long Stay Fees,28-Oct,"5,916.35"
5474353,CARETECH COMMUNITY SERVICES LIMITED,Adult Social Care,Adults,Residential Home Long Stay Fees,28-Oct,"2,393.51"
5474354,CARETECH COMMUNITY SERVICES LIMITED,Adult Social Care,Adults,Residential Home Long Stay Fees,28-Oct,"10,165.52"
5474355,CARETECH COMMUNITY SERVICES LIMITED,Adult Social Care,Adults,Residential Home Long Stay Fees,28-Oct,"4,787.02"
5474356,CARETECH COMMUNITY SERVICES LIMITED,Adult Social Care,Adults,Residential Home Long Stay Fees,28-Oct,"5,423.45"
5474357,CARETECH COMMUNITY SERVICES LIMITED,Adult Social Care,Adults,Residential Home Long Stay Fees,28-Oct,"5,862.72"
5474359,CARETECH COMMUNITY SERVICES LIMITED,Adult Social Care,Adults,Residential Home Long Stay Fees,28-Oct,"4,610.01"
5474361,CARETECH COMMUNITY SERVICES LIMITED,Adult Social Care,Adults,Residential Home Long Stay Fees,28-Oct,"5,147.86"
5474384,Redacted Supplier,Education,Children's Services,Non-Maintained School Fees,28-Oct,"9,900.00"
5474389,BRANAS ISAF LTD,Childrens Services,Children's Services,Childrens Homes Outside Local Authority Fees,28-Oct,"21,921.43"
5474393,Redacted Supplier,(blank),(blank),"Activity (Materials, Trips)",28-Oct,"1,500.00"
5474396,CARELINE HOMECARE LTD,Adult Social Care,Adults,Homecare Fees,19-Oct,"25,312.09"
5474402,CITY LIFT SERVICES (NW) LTD,Adult Social Care,Adults,General Equipment Repair & Maintenance,28-Oct,700
5474404,WILDE CONSULTING ENGINEERS,District Assemblies,"Community,Environmental,Adult and Health Services",Specialist Works,05-Oct,"1,541.16"
5474404,WILDE CONSULTING ENGINEERS,Engineers Client,Director of Place,Specialist Works,05-Oct,"1,178.10"
5474404,WILDE CONSULTING ENGINEERS,Operations and Neighbourhoods,Operations and Neighbourhoods,Specialist Works,05-Oct,661.5
5474404,WILDE CONSULTING ENGINEERS,(blank),(blank),Specialist Works,05-Oct,156.78
5474409,Redacted Supplier,Education,Children's Services,Independent School Fees,28-Oct,"9,941.75"
5474410,Redacted Supplier,Education,Children's Services,Independent School Fees,28-Oct,"6,000.00"
5474411,Brook,Population Health,Population Health,Contributions,28-Oct,"1,000.00"
5474414,Imail Comms Limited,Exchequer,Governance,Printing And Stationery,28-Oct,"5,516.91"
5474415,STEPPING STONES CHILDRENS HOMES LTD,Childrens Services,Children's Services,Childrens Homes Outside Local Authority Fees,10-Oct,"20,000.00"
5474416,STEPPING STONES CHILDRENS HOMES LTD,Childrens Services,Children's Services,Childrens Homes Outside Local Authority Fees,10-Oct,"17,596.00"
5474421,Redacted Supplier,Childrens Services,Children's Services,Childrens Homes Outside Local Authority Fees,09-Nov,"19,285.80"
5474423,Redacted Supplier,Childrens Services,Children's Services,Childrens Homes Outside Local Authority Fees,28-Oct,"19,285.80"
5474424,STEPPING STONES CHILDRENS HOMES LTD,Childrens Services,Children's Services,Childrens Homes Outside Local Authority Fees,10-Oct,"28,000.00"
5474425,Redacted Supplier,Childrens Services,Children's Services,Childrens Homes Outside Local Authority Fees,28-Oct,"19,285.80"
5474426,STEPPING STONES CHILDRENS HOMES LTD,Childrens Services,Children's Services,Childrens Homes Outside Local Authority Fees,10-Oct,"17,596.00"
5474427,STEPPING STONES CHILDRENS HOMES LTD,Childrens Services,Children's Services,Childrens Homes Outside Local Authority Fees,10-Oct,"20,000.00"
5474428,Redacted Supplier,Childrens Services,Children's Services,Living With Formal Support,28-Oct,"1,883.14"
5474429,INSPIREDSPACES TAMESIDE LTD,Place,Growth,Facilities Management Services,11-Oct,"3,293.72"
5474429,INSPIREDSPACES TAMESIDE LTD,Place,Growth,Fees,11-Oct,65.88
5474432,Redacted Supplier,Adult Social Care,Adults,Homecare Fees,28-Oct,"3,963.60"
5474434,Redacted Supplier,Childrens Services,Children's Services,Living With Formal Support,28-Oct,"4,006.20"
5474435,Redacted Supplier,Childrens Services,Children's Services,Childrens Homes Outside Local Authority Fees,28-Oct,"15,660.54"
5474436,Northern Community Pathways Limited,Adult Social Care,Adults,Homecare Fees,28-Oct,"4,392.00"
5474437,Redacted Supplier,Childrens Services,Children's Services,Childrens Homes Outside Local Authority Fees,28-Oct,"31,442.99"
5474438,Tradewind Recruitment Ltd,Education,Children's Services,Agency Staff,28-Oct,"1,064.30"
5474440,Redacted Supplier,Childrens Services,Children's Services,Childrens Homes Outside Local Authority Fees,28-Oct,"17,692.01"
5474444,Redacted Supplier,Childrens Services,Children's Services,Childrens Homes Outside Local Authority Fees,28-Oct,"17,692.01"
5474445,Redacted Supplier,Childrens Services,Children's Services,Childrens Homes Outside Local Authority Fees,28-Oct,"33,480.00"
5474449,Smartway Health and Social Care Limited,Adult Social Care,Adults,Homecare Fees,07-Oct,"4,897.91"
5474451,SWIIS FOSTER CARE LTD,Childrens Services,Children's Services,Foster Carer Agency Fees,28-Oct,"1,694.98"
5474452,SWIIS FOSTER CARE LTD,Childrens Services,Children's Services,Foster Carer Agency Fees,28-Oct,760.48
5474454,Headsets4Business Limited,Digital Tameside,Finance & IT,IT Equipment,07-Oct,"4,400.00"
5474456,ALPHA BIOLABS,Childrens Services,Children's Services,Professional Medical Services,28-Oct,"1,456.40"
5474457,CENTRE FOR GOVERNANCE AND SCRUTINY,Policy and Communications,Governance,Training Course Costs,28-Oct,"1,740.00"
5474459,SAAIL,Childrens Services,Children's Services,Living With Formal Support,28-Oct,"4,431.30"
5474462,Tynetec a group brand of Legrand Electric Ltd,Adult Social Care,Adults,IT Equipment,28-Oct,"14,489.40"
5474464,ROUTES HEALTHCARE (NORTH) LIMITED,Adult Social Care,Adults,Homecare Fees,28-Oct,"5,307.60"
5474465,Bloom Procurement Services Limited,Place,Growth,Professional Services,12-Oct,"48,378.94"
5474467,Advantage Healthcare Limited,Adult Social Care,Adults,Homecare Fees,28-Oct,814
5474468,QA LIMITED,Digital Tameside,Finance & IT,Training Course Costs,28-Oct,"1,370.40"
5474469,Reed Talent Solutions Ltd,Childrens Services,Children's Services,Professional Services,31-Oct,"13,415.00"
5474471,Redacted Supplier,(blank),(blank),Professional Entertainment Services,28-Oct,960
5474478,UK Military Mentors Ltd,Operations and Neighbourhoods,Operations and Neighbourhoods,Project Costs,07-Oct,"15,000.00"
5474493,HOMES FOR LIFE LTD,Adult Social Care,Adults,Non-Authority Accommodation Rental,07-Oct,977.44
5474494,HUGH MASON PROPERTIES LIMITED,Adult Social Care,Adults,Non-Authority Accommodation Rental,07-Oct,"3,103.57"
5474495,HOMES FOR LIFE LTD,Adult Social Care,Adults,Non-Authority Accommodation Rental,07-Oct,949.13
5474497,STAMFORD PROPERTIES,Adult Social Care,Adults,Non-Authority Accommodation Rental,07-Oct,"1,060.40"
5474498,WESLEY PROPERTIES (NORTHERN) LTD,Adult Social Care,Adults,Non-Authority Accommodation Rental,28-Oct,"1,426.52"
5474500,CROFT INVESTMENTS LTD,Adult Social Care,Adults,Non-Authority Accommodation Rental,28-Oct,"2,108.22"
5474501,HUGH MASON PROPERTIES LIMITED,Adult Social Care,Adults,Non-Authority Accommodation Rental,07-Oct,"2,616.32"
5474502,NORTHERN PROPERTIES LTD,Adult Social Care,Adults,Non-Authority Accommodation Rental,07-Oct,"2,077.54"
5474503,HOMES FOR LIFE LTD,Adult Social Care,Adults,Non-Authority Accommodation Rental,07-Oct,943.95
5474504,HOMES FOR LIFE LTD,Adult Social Care,Adults,Non-Authority Accommodation Rental,07-Oct,943.95
5474505,HOMES FOR LIFE LTD,Adult Social Care,Adults,Non-Authority Accommodation Rental,07-Oct,856.68
5474506,HUGH MASON PROPERTIES LIMITED,Adult Social Care,Adults,Non-Authority Accommodation Rental,07-Oct,"2,624.44"
5474507,INSPIREDSPACES TAMESIDE LTD,(blank),(blank),Asbestos Removal,11-Oct,603
5474508,INSPIREDSPACES TAMESIDE LTD,Tameside Investment Partnership,Director of Place,Other Works,24-Oct,785.81
5474509,D.A. LANGUAGES LTD,Childrens Services,Children's Services,Professional Interpreter Services,28-Oct,552
5474522,Holden Knight Healthcare Temp Ltd,Childrens Services,Children's Services,Professional Medical Services,28-Oct,"9,329.00"
5474525,Park Lane Minibuses LTD,Education,Children's Services,Transport Of Pupils,07-Oct,"1,918.00"
5474526,Great Minds Together Ltd,Childrens Services,Children's Services,Childrens Homes Outside Local Authority Fees,28-Oct,"105,200.00"
5474527,Park Lane Minibuses LTD,Education,Children's Services,Transport Of Pupils,17-Oct,"3,025.18"
5474528,Park Lane Minibuses LTD,Education,Children's Services,Transport Of Pupils,07-Oct,"2,842.40"
5474529,Park Lane Minibuses LTD,Education,Children's Services,Transport Of Ola Pupils,07-Oct,"3,040.00"
5474530,Park Lane Minibuses LTD,Education,Children's Services,Transport Of Pupils,17-Oct,"2,546.00"
5474531,Park Lane Minibuses LTD,Education,Children's Services,Transport Of Post 16 Pupils,07-Oct,"2,006.00"
5474532,Park Lane Minibuses LTD,Education,Children's Services,Transport Of Pupils,07-Oct,631.1
5474533,Park Lane Minibuses LTD,Education,Children's Services,Transport Of Pupils,07-Oct,"2,660.00"
5474534,THE SUNFLOWER CHILDRENS CENTRE,Childrens Services,Children's Services,Training Course Costs,07-Oct,560
5474535,Park Lane Minibuses LTD,Education,Children's Services,Transport Of Pupils,07-Oct,"3,021.00"
5474538,M G DOMESTIC,Adult Social Care,Adults,"Fixtures, Fittings & Furniture Purchase",07-Oct,620
5474541,THE FAMILY UNIT LTD,Childrens Services,Children's Services,Living With Formal Support,10-Oct,"4,000.00"
5474542,CHILD ACTION NORTHWEST,Adult Social Care,Adults,Professional Services,28-Oct,"1,507.54"
5474544,Randstad Solutions Ltd,Education,Children's Services,Agency Staff,28-Oct,636.5
5474548,T KIRK FORESTRY,Operations and Neighbourhoods,Operations and Neighbourhoods,Training Course Costs,28-Oct,881.95
5474550,Randstad Solutions Ltd,Education,Children's Services,Agency Staff,28-Oct,607.7
5474552,Randstad Solutions Ltd,Education,Children's Services,Agency Staff,28-Oct,636.5
5474554,Randstad Solutions Ltd,Education,Children's Services,Agency Staff,28-Oct,509.2
5474558,N.W.A Housing Ltd,(blank),(blank),Non-Authority Accommodation Rental,28-Oct,"11,680.13"
5474559,RHOMBUS CARE GROUP LIMITED,Adult Social Care,Adults,Homecare Fees,28-Oct,"35,756.95"
5474560,Synectics Security Limited,Operations and Neighbourhoods,Operations and Neighbourhoods,Security Equipment,28-Oct,"1,280.00"
5474561,SECOND CHANCE HOUSING,Adult Social Care,Adults,Professional Bailiff Services,28-Oct,"1,263.25"
5474563,Excel Fostering Limited,Childrens Services,Children's Services,Foster Carer Agency Fees,31-Oct,"6,598.66"
5474564,RHOMBUS CARE GROUP LIMITED,Adult Social Care,Adults,Homecare Fees,28-Oct,"12,094.34"
5474565,Excel Fostering Limited,Childrens Services,Children's Services,Foster Carer Agency Fees,31-Oct,"6,598.66"
5474566,Excel Fostering Limited,Childrens Services,Children's Services,Foster Carer Agency Fees,31-Oct,"6,598.66"
5474567,The Market Co,Operations and Neighbourhoods,Operations and Neighbourhoods,Professional Entertainment Services,28-Oct,"2,100.00"
5474572,Redacted Supplier,(blank),(blank),Community Based Activities,03-Oct,"1,120.00"
5474573,FACULTY OF PUBLIC HEALTH,Hosted Services,Hosted Services,Professional Services,01-Nov,"18,620.00"
5474587,Northern Community Pathways Limited,Adult Social Care,Adults,Homecare Fees,28-Oct,"2,315.40"
5474594,Olive Branch Fostering LTD,Childrens Services,Children's Services,Foster Carer Agency Fees,25-Nov,642.15
5474595,Olive Branch Fostering LTD,Childrens Services,Children's Services,Foster Carer Agency Fees,25-Nov,"3,050.21"
5474598,Safe Hands Care & Support Services,(blank),(blank),Living With Formal Support,28-Oct,"7,115.43"
5474600,APOLLO HOME HEALTHCARE LTD,Childrens Services,Children's Services,Homecare Fees,07-Oct,555.82
5474601,M NELSON & SON,Operations and Neighbourhoods,Operations and Neighbourhoods,Engineers -External,28-Oct,"4,800.00"
5474602,M NELSON & SON,Operations and Neighbourhoods,Operations and Neighbourhoods,Engineers -External,28-Oct,"3,760.00"
5474607,SURECARE TAMESIDE & OLDHAM,Adult Social Care,Adults,Homecare Fees,28-Oct,"4,750.22"
5474611,J & R TAXIS LTD,Education,Children's Services,Transport Of Ola Pupils,10-Oct,540
5474612,CREATIVE SUPPORT LTD,Adult Social Care,Adults,Independent Sector Care Fees,20-Oct,"47,877.80"
5474613,CREATIVE SUPPORT LTD,Adult Social Care,Adults,Homecare Fees,28-Oct,"20,268.57"
5474614,CREATIVE SUPPORT LTD,Adult Social Care,Adults,Age Concern Fees,20-Oct,"36,618.17"
5474615,CREATIVE SUPPORT LTD,Adult Social Care,Adults,Homecare Fees,20-Oct,"168,417.70"
5474616,CREATIVE SUPPORT LTD,Adult Social Care,Adults,Homecare Fees,20-Oct,"190,515.43"
5474617,CREATIVE SUPPORT LTD,Adult Social Care,Adults,Homecare Fees,20-Oct,"15,128.71"
5474623,Upwards Care Solutions,(blank),(blank),Living With Formal Support,28-Oct,"9,053.70"
5474624,CORE INTEGRATED SOLUTIONS LTD,Digital Tameside,Finance & IT,Network Equipment/Setup,03-Oct,"1,672.11"
5474626,PLANTATION INVESTMENTS LIMITED,Place,Growth,Building & Contents Insurance,04-Oct,"35,937.00"
5474627,Redacted Supplier,Education,Children's Services,Independent School Fees,28-Oct,"25,833.34"
5474628,Redacted Supplier,Education,Children's Services,Independent School Fees,28-Oct,"25,833.34"
5474629,The Networking People (TNP) Ltd,Digital Tameside,Finance & IT,Network Equipment/Setup,28-Oct,"18,791.37"
5474630,Oxford Innovation LTD - ASHTON OLD BATHS,Place,Growth,Professional Services,28-Oct,"34,539.95"
5474633,BRAKE BROS LTD,Operations and Neighbourhoods,Operations and Neighbourhoods,General Materials,28-Oct,521.26
5474636,Inspired Spaces (ProjectCo1) LTD,Asset & Investment Partnership Management,Growth,PFI FM Fees and Insurance Costs,03-Oct,"7,284.85"
5474637,Inspired Spaces (ProjectCo1) LTD,Asset & Investment Partnership Management,Growth,PFI FM Fees and Insurance Costs,03-Oct,"5,950.00"
5474641,INSPIREDSPACES TAMESIDE (PROJECTCO2) LTD,Asset & Investment Partnership Management,Growth,PFI FM Fees and Insurance Costs,03-Oct,"8,546.33"
5474642,INSPIREDSPACES TAMESIDE (PROJECTCO2) LTD,Asset & Investment Partnership Management,Growth,PFI FM Fees and Insurance Costs,03-Oct,"10,760.00"
5474643,INSPIREDSPACES TAMESIDE (PROJECTCO2) LTD,Asset & Investment Partnership Management,Growth,PFI FM Fees and Insurance Costs,03-Oct,"11,068.00"
5474644,INSPIREDSPACES TAMESIDE (PROJECTCO2) LTD,Asset & Investment Partnership Management,Growth,PFI FM Fees and Insurance Costs,03-Oct,"1,208.15"
5474645,INSPIREDSPACES TAMESIDE (PROJECTCO2) LTD,Asset & Investment Partnership Management,Growth,PFI FM Fees and Insurance Costs,03-Oct,"13,494.33"
5474646,INSPIREDSPACES TAMESIDE (PROJECTCO2) LTD,Asset & Investment Partnership Management,Growth,PFI FM Fees and Insurance Costs,03-Oct,"1,397.98"
5474647,INSPIREDSPACES TAMESIDE (PROJECTCO2) LTD,Asset & Investment Partnership Management,Growth,PFI FM Fees and Insurance Costs,03-Oct,"15,100.98"
5474648,INSPIREDSPACES TAMESIDE (PROJECTCO2) LTD,Asset & Investment Partnership Management,Growth,Adult Meals Expenses,03-Oct,"1,456.00"
5474648,INSPIREDSPACES TAMESIDE (PROJECTCO2) LTD,Asset & Investment Partnership Management,Growth,Free School Meal Costs,03-Oct,"22,821.30"
5474649,INSPIREDSPACES TAMESIDE (PROJECTCO2) LTD,Asset & Investment Partnership Management,Growth,PFI FM Fees and Insurance Costs,03-Oct,"2,490.00"
5474651,INSPIREDSPACES TAMESIDE (PROJECTCO2) LTD,Asset & Investment Partnership Management,Growth,PFI FM Fees and Insurance Costs,03-Oct,"3,309.00"
5474652,INSPIREDSPACES TAMESIDE (PROJECTCO2) LTD,Asset & Investment Partnership Management,Growth,PFI FM Fees and Insurance Costs,03-Oct,"3,370.00"
5474653,INSPIREDSPACES TAMESIDE (PROJECTCO2) LTD,Asset & Investment Partnership Management,Growth,PFI FM Fees and Insurance Costs,03-Oct,"3,772.00"
5474654,INSPIREDSPACES TAMESIDE (PROJECTCO2) LTD,Asset & Investment Partnership Management,Growth,PFI FM Fees and Insurance Costs,03-Oct,"4,197.94"
5474656,INSPIREDSPACES TAMESIDE (PROJECTCO2) LTD,Asset & Investment Partnership Management,Growth,PFI FM Fees and Insurance Costs,03-Oct,"4,314.28"
5474657,INSPIREDSPACES TAMESIDE (PROJECTCO2) LTD,Asset & Investment Partnership Management,Growth,PFI FM Fees and Insurance Costs,03-Oct,"5,765.84"
5474658,INSPIREDSPACES TAMESIDE (PROJECTCO2) LTD,Asset & Investment Partnership Management,Growth,PFI FM Fees and Insurance Costs,03-Oct,"6,435.00"
5474668,STAMFORD CARS UK LTD,Education,Children's Services,Transport Of Ola Pupils,11-Oct,"2,565.00"
5474669,STAMFORD CARS UK LTD,Education,Children's Services,Transport Of Pupils,11-Oct,"2,280.00"
5474670,STAMFORD CARS UK LTD,Education,Children's Services,Transport Of Ola Pupils,11-Oct,"2,280.00"
5474671,STAMFORD CARS UK LTD,Education,Children's Services,Transport Of Ola Pupils,11-Oct,"2,470.00"
5474672,STAMFORD CARS UK LTD,Education,Children's Services,Transport Of Ola Pupils,11-Oct,"2,375.00"
5474673,STAMFORD CARS UK LTD,Education,Children's Services,Transport Of Ola Pupils,11-Oct,"2,090.00"
5474674,STAMFORD CARS UK LTD,Education,Children's Services,Transport Of Ola Pupils,11-Oct,"2,470.00"
5474675,STAMFORD CARS UK LTD,Education,Children's Services,Transport Of Ola Pupils,11-Oct,625
5474676,STAMFORD CARS UK LTD,Education,Children's Services,Transport Of Ola Pupils,11-Oct,"2,340.00"
5474677,STAMFORD CARS UK LTD,Education,Children's Services,Transport Of Ola Pupils,11-Oct,"2,375.00"
5474678,STAMFORD CARS UK LTD,Education,Children's Services,Transport Of Post 16 Pupils,11-Oct,"1,995.00"
5474679,STAMFORD CARS UK LTD,Education,Children's Services,Transport Of Post 16 Pupils,11-Oct,"1,520.00"
5474680,STAMFORD CARS UK LTD,Education,Children's Services,Transport Of Post 16 Pupils,11-Oct,"1,995.00"
5474681,STAMFORD CARS UK LTD,Education,Children's Services,Transport Of Pupils,11-Oct,"2,160.00"
5474682,STAMFORD CARS UK LTD,Education,Children's Services,Transport Of Pupils,11-Oct,"1,235.00"
5474683,STAMFORD CARS UK LTD,Education,Children's Services,Transport Of Ola Pupils,11-Oct,"1,980.00"
5474684,STAMFORD CARS UK LTD,Operations and Neighbourhoods,Operations and Neighbourhoods,Hired Transport,11-Oct,910
5474685,STAMFORD CARS UK LTD,Education,Children's Services,Transport Of Post 16 Pupils,11-Oct,"1,235.00"
5474686,STAMFORD CARS UK LTD,Education,Children's Services,Transport Of Pupils,11-Oct,"2,090.00"
5474687,STAMFORD CARS UK LTD,Education,Children's Services,Transport Of Pupils,11-Oct,"2,280.00"
5474688,STAMFORD CARS UK LTD,Education,Children's Services,Transport Of Pupils,11-Oct,"1,995.00"
5474689,STAMFORD CARS UK LTD,Education,Children's Services,Transport Of Pupils,11-Oct,"2,280.00"
5474690,STAMFORD CARS UK LTD,Education,Children's Services,Transport Of Ola Pupils,11-Oct,"3,135.00"
5474691,STAMFORD CARS UK LTD,Operations and Neighbourhoods,Operations and Neighbourhoods,Transport Of Pupils,11-Oct,"1,620.00"
5474692,STAMFORD CARS UK LTD,Education,Children's Services,Transport Of Ola Pupils,11-Oct,"2,375.00"
5474693,STAMFORD CARS UK LTD,Education,Children's Services,Transport Of Ola Pupils,11-Oct,"2,470.00"
5474694,STAMFORD CARS UK LTD,Operations and Neighbourhoods,Operations and Neighbourhoods,Hired Transport,11-Oct,"1,520.00"
5474695,STAMFORD CARS UK LTD,Operations and Neighbourhoods,Operations and Neighbourhoods,Hired Transport,11-Oct,616
5474696,STAMFORD CARS UK LTD,Operations and Neighbourhoods,Operations and Neighbourhoods,Hired Transport,11-Oct,525
5474697,STAMFORD CARS UK LTD,Operations and Neighbourhoods,Operations and Neighbourhoods,Hired Transport,11-Oct,"1,095.00"
5474698,Inspire Care (UK) Limited,Childrens Services,Children's Services,Childrens Homes Outside Local Authority Fees,03-Oct,"27,380.00"
5474699,TPR Care Services Ltd,(blank),(blank),Living With Formal Support,04-Oct,"1,544.20"
5474703,TPR Care Services Ltd,(blank),(blank),Living With Formal Support,04-Oct,"1,544.20"
5474706,Exclusive Secure Care Services,Childrens Services,Children's Services,Professional Services,05-Oct,937.5
5474707,TPR Care Services Ltd,(blank),(blank),Living With Formal Support,04-Oct,"1,544.20"
5474709,TPR Care Services Ltd,(blank),(blank),Living With Formal Support,04-Oct,"1,294.20"
5474710,TPR Care Services Ltd,(blank),(blank),Living With Formal Support,05-Oct,"1,544.20"
5474712,NSL LIMITED,Operations and Neighbourhoods,Operations and Neighbourhoods,NSL Fees,06-Oct,"52,199.80"
5474713,Sams Helping Hands Limited,Childrens Services,Children's Services,Homecare Fees,06-Oct,"4,916.00"
5474714,Sams Helping Hands Limited,Childrens Services,Children's Services,Homecare Fees,04-Oct,720
5474715,Sams Helping Hands Limited,Childrens Services,Children's Services,Homecare Fees,10-Oct,744
5474717,TPR Care Services Ltd,(blank),(blank),Living With Formal Support,04-Oct,"1,544.20"
5474719,TPR Care Services Ltd,(blank),(blank),Living With Formal Support,04-Oct,"1,544.20"
5474720,Hyde Accessible Transport Limited,Education,Children's Services,Transport Of Pupils,05-Oct,"2,375.00"
5474721,Hyde Accessible Transport Limited,Education,Children's Services,Transport Of Pupils,05-Oct,"2,375.00"
5474722,Hyde Accessible Transport Limited,Operations and Neighbourhoods,Operations and Neighbourhoods,Hired Transport,05-Oct,"1,485.00"
5474745,Redacted Supplier,Operations and Neighbourhoods,Operations and Neighbourhoods,Hired Transport,11-Oct,"2,322.00"
5474748,STAMFORD CARS UK LTD,Operations and Neighbourhoods,Operations and Neighbourhoods,Hired Transport,11-Oct,540
5474752,STAMFORD CARS UK LTD,Operations and Neighbourhoods,Operations and Neighbourhoods,Hired Transport,11-Oct,"1,520.00"
5474753,STAMFORD CARS UK LTD,Operations and Neighbourhoods,Operations and Neighbourhoods,Transport Of Pupils,11-Oct,"1,120.00"
5474755,STAMFORD CARS UK LTD,Operations and Neighbourhoods,Operations and Neighbourhoods,Hired Transport,11-Oct,945
5474756,STAMFORD CARS UK LTD,Operations and Neighbourhoods,Operations and Neighbourhoods,Hired Transport,11-Oct,600
5474759,STAMFORD CARS UK LTD,Operations and Neighbourhoods,Operations and Neighbourhoods,Hired Transport,11-Oct,"1,360.00"
5474765,STAMFORD CARS UK LTD,Operations and Neighbourhoods,Operations and Neighbourhoods,Hired Transport,11-Oct,"1,050.00"
5474766,STAMFORD CARS UK LTD,Operations and Neighbourhoods,Operations and Neighbourhoods,Hired Transport,11-Oct,"1,045.00"
5474768,STAMFORD CARS UK LTD,Operations and Neighbourhoods,Operations and Neighbourhoods,Hired Transport,11-Oct,520
5474769,CAPSTONE FOSTER CARE,Childrens Services,Children's Services,Foster Carer Agency Fees,31-Oct,"4,072.78"
5474770,CAPSTONE FOSTER CARE,Childrens Services,Children's Services,Foster Carer Agency Fees,31-Oct,"4,177.56"
5474771,STAMFORD CARS UK LTD,Education,Children's Services,Transport Of Pupils,11-Oct,835
5474772,CAPSTONE FOSTER CARE,Childrens Services,Children's Services,Foster Carer Agency Fees,31-Oct,"3,595.03"
5474773,STAMFORD CARS UK LTD,Education,Children's Services,Transport Of Ola Pupils,11-Oct,"2,115.00"
5474774,CAPSTONE FOSTER CARE,Childrens Services,Children's Services,Foster Carer Agency Fees,31-Oct,"3,631.34"
5474775,STAMFORD CARS UK LTD,Operations and Neighbourhoods,Operations and Neighbourhoods,Hired Transport,11-Oct,"1,890.00"
5474776,CAPSTONE FOSTER CARE,Childrens Services,Children's Services,Foster Carer Agency Fees,31-Oct,"3,631.34"
5474777,STAMFORD CARS UK LTD,Operations and Neighbourhoods,Operations and Neighbourhoods,Hired Transport,11-Oct,"1,800.00"
5474778,CAPSTONE FOSTER CARE,Childrens Services,Children's Services,Foster Carer Agency Fees,31-Oct,"6,773.59"
5474779,CAPSTONE FOSTER CARE,Childrens Services,Children's Services,Foster Carer Agency Fees,31-Oct,"3,914.51"
5474780,STAMFORD CARS UK LTD,Operations and Neighbourhoods,Operations and Neighbourhoods,Hired Transport,11-Oct,500
5474781,CAPSTONE FOSTER CARE,Childrens Services,Children's Services,Foster Carer Agency Fees,31-Oct,"6,773.59"
5474783,CAPSTONE FOSTER CARE,Childrens Services,Children's Services,Foster Carer Agency Fees,31-Oct,"3,631.34"
5474784,STAMFORD CARS UK LTD,Education,Children's Services,Transport Of Pupils,11-Oct,"1,900.00"
5474786,STAMFORD CARS UK LTD,Education,Children's Services,Transport Of Ola Pupils,11-Oct,"2,375.00"
5474788,STAMFORD CARS UK LTD,Education,Children's Services,Transport Of Ola Pupils,11-Oct,"2,470.00"
5474789,STAMFORD CARS UK LTD,Education,Children's Services,Transport Of Pupils,11-Oct,"1,520.00"
5474790,STAMFORD CARS UK LTD,Education,Children's Services,Transport Of Pupils,11-Oct,"1,710.00"
5474791,STAMFORD CARS UK LTD,Education,Children's Services,Transport Of Ola Pupils,11-Oct,500
5474793,STAMFORD CARS UK LTD,Education,Children's Services,Transport Of Post 16 Pupils,11-Oct,"1,725.00"
5474794,STAMFORD CARS UK LTD,Education,Children's Services,Transport Of Pupils,11-Oct,"1,900.00"
5474795,STAMFORD CARS UK LTD,Education,Children's Services,Transport Of Pupils,11-Oct,"2,565.00"
5474796,STAMFORD CARS UK LTD,Education,Children's Services,Transport Of Pupils,11-Oct,"2,375.00"
5474797,STAMFORD CARS UK LTD,Education,Children's Services,Transport Of Pupils,11-Oct,"2,375.00"
5474799,Inicio Group Ltd,Childrens Services,Children's Services,Living With Formal Support,31-Oct,"3,520.70"
5474800,STAMFORD CARS UK LTD,Education,Children's Services,Transport Of Post 16 Pupils,11-Oct,925
5474801,Inicio Group Ltd,Childrens Services,Children's Services,Living With Formal Support,31-Oct,"4,406.43"
5474802,STAMFORD CARS UK LTD,Education,Children's Services,Transport Of Pupils,11-Oct,"2,160.00"
5474803,STAMFORD CARS UK LTD,Education,Children's Services,Transport Of Pupils,11-Oct,"2,160.00"
5474804,STAMFORD CARS UK LTD,Education,Children's Services,Transport Of Pupils,11-Oct,"1,045.00"
5474805,STAMFORD CARS UK LTD,Education,Children's Services,Transport Of Ola Pupils,11-Oct,780
5474806,Adlard Transport LTD,Education,Children's Services,Transport Of Pupils,11-Oct,"2,280.00"
5474807,Adlard Transport LTD,Education,Children's Services,Transport Of Pupils,11-Oct,"2,280.00"
5474809,Inicio Group Ltd,(blank),(blank),Living With Formal Support,31-Oct,"5,292.13"
5474810,Arrow Cabs LTD,Education,Children's Services,Transport Of Ola Pupils,10-Oct,"1,560.00"
5474811,Arrow Cabs LTD,Education,Children's Services,Transport Of Ola Pupils,10-Oct,"3,700.00"
5474815,INSPIRE COMMUNITY SERVICES LIMITED,(blank),(blank),Living With Formal Support,28-Oct,"4,284.00"
5474815,INSPIRE COMMUNITY SERVICES LIMITED,(blank),(blank),Semi independent - Weekly Living Allowances,28-Oct,261.6
5474817,NEW HORIZONS (STOCKPORT) LTD,Childrens Services,Children's Services,Childrens Homes Outside Local Authority Fees,28-Oct,"14,928.54"
5474818,PERSON CENTRED CARE SERVICES LIMITED,Adult Social Care,Adults,Homecare Fees,07-Oct,"7,133.63"
5474819,NEW HORIZONS (STOCKPORT) LTD,Childrens Services,Children's Services,Childrens Homes Outside Local Authority Fees,28-Oct,"14,928.54"
5474820,NEW HORIZONS (STOCKPORT) LTD,Childrens Services,Children's Services,Childrens Homes Outside Local Authority Fees,31-Oct,"21,035.67"
5474821,Aaban Partnership Limited,Childrens Services,Children's Services,Childrens Homes Outside Local Authority Fees,28-Oct,"50,748.56"
5474822,NEW HORIZONS (STOCKPORT) LTD,Childrens Services,Children's Services,Childrens Homes Outside Local Authority Fees,28-Oct,"14,928.54"
5474823,Joes Travel LTD,Education,Children's Services,Transport Of Pupils,10-Oct,"2,280.00"
5474824,NEW HORIZONS (STOCKPORT) LTD,Childrens Services,Children's Services,Childrens Homes Outside Local Authority Fees,18-Nov,"21,035.67"
5474825,Joes Travel LTD,Education,Children's Services,Transport Of Pupils,10-Oct,"2,280.00"
5474826,Joes Travel LTD,Education,Children's Services,Transport Of Pupils,10-Oct,"1,900.00"
5474828,Joes Travel LTD,Education,Children's Services,Transport Of Pupils,10-Oct,"1,900.00"
5474829,Joes Travel LTD,Education,Children's Services,Transport Of Pupils,10-Oct,"1,805.00"
5474830,Redacted Supplier,Education,Children's Services,Transport Of Pupils,10-Oct,"2,470.00"
5474831,Joes Travel LTD,Education,Children's Services,Transport Of Pupils,10-Oct,"2,200.00"
5474832,Joes Travel LTD,Education,Children's Services,Transport Of Pupils,10-Oct,"1,210.00"
5474833,Redacted Supplier,Education,Children's Services,Transport Of Pupils,10-Oct,"2,470.00"
5474834,Joes Travel LTD,Education,Children's Services,Transport Of Pupils,10-Oct,"1,690.00"
5474835,Redacted Supplier,Education,Children's Services,Transport Of Ola Pupils,10-Oct,"2,470.00"
5474836,Joes Travel LTD,Education,Children's Services,Transport Of Pupils,10-Oct,"1,940.00"
5474847,Vernon House T/A Kedleston (WoodGrove Childcare) Limited,Childrens Services,Children's Services,Childrens Homes Outside Local Authority Fees,28-Oct,"9,000.00"
5474848,Vernon House T/A Kedleston (WoodGrove Childcare) Limited,Childrens Services,Children's Services,Childrens Homes Outside Local Authority Fees,28-Oct,"17,492.86"
5474849,The Fabularium LTD,Operations and Neighbourhoods,Operations and Neighbourhoods,Professional Entertainment Services,28-Oct,"1,080.00"
5474850,The Fabularium LTD,Operations and Neighbourhoods,Operations and Neighbourhoods,Professional Entertainment Services,28-Oct,"1,080.00"
5474856,Redacted Supplier,Childrens Services,Children's Services,Childrens Homes Outside Local Authority Fees,31-Oct,"13,371.42"
5474857,Redacted Supplier,Childrens Services,Children's Services,Childrens Homes Outside Local Authority Fees,31-Oct,"12,724.28"
5474858,Redacted Supplier,Childrens Services,Children's Services,Childrens Homes Outside Local Authority Fees,31-Oct,"13,371.42"
5474859,Foster Careline Ltd,Childrens Services,Children's Services,Foster Carer Agency Fees,28-Oct,"3,186.00"
5474860,Foster Careline Ltd,Childrens Services,Children's Services,Foster Carer Agency Fees,11-Nov,"3,366.17"
5474865,KAYAN SOCIAL CARE LIMITED,Adult Social Care,Adults,Professional Services,31-Oct,"1,431.70"
5474866,KAYAN SOCIAL CARE LIMITED,Adult Social Care,Adults,Professional Services,31-Oct,"1,437.85"
5474875,iCare Solutions,Adult Social Care,Adults,Homecare Fees,28-Oct,"17,916.17"
5474876,OCTAGON CARE LTD,Childrens Services,Children's Services,Childrens Homes Outside Local Authority Fees,28-Oct,"22,285.71"
5474877,Kibble Education and Care Centre,Childrens Services,Children's Services,Childrens Homes Outside Local Authority Fees,28-Oct,"35,610.00"
5474878,Care 4 Every Child Ltd,Childrens Services,Children's Services,Childrens Homes Outside Local Authority Fees,31-Oct,"24,308.40"
5474879,Peterborough City Council,Childrens Services,Children's Services,Childrens Homes Outside Local Authority Fees,28-Oct,"45,000.00"
5474880,Andrea Stanley Social care Training,Quality and Safeguarding,Quality and Safeguarding,Training Course Costs,01-Nov,600
5474881,SAPPHIRE PARTNERSHIP,Adult Social Care,Adults,Day Care Fees,02-Nov,585
5474882,Redacted Supplier,(blank),(blank),Professional Entertainment Services,02-Nov,500
5474884,Futures Hfd Ltd,(blank),(blank),Living With Formal Support,28-Oct,"6,428.57"
5474884,Futures Hfd Ltd,(blank),(blank),Semi independent - Weekly Living Allowances,28-Oct,236.8
5474885,CITY CARE SOLUTIONS LTD,Adult Social Care,Adults,Homecare Fees,28-Oct,"2,180.79"
5474886,Inspire Care (UK) Limited,Childrens Services,Children's Services,Childrens Homes Outside Local Authority Fees,28-Oct,"27,380.00"
5474888,VISION FOR EDUCATION LIMITED,Education,Children's Services,Professional Services,28-Oct,"1,437.96"
5474889,M G DOMESTIC,Childrens Services,Children's Services,"Fixtures,Fittings & Furniture Purchase (Service Users)",10-Oct,569.98
5474890,M G DOMESTIC,Adult Social Care,Adults,"Fixtures, Fittings & Furniture Purchase",10-Oct,664
5474897,INSPIREDSPACES TAMESIDE LTD,Place,Growth,Facilities Management Services,05-Oct,"3,713.90"
5474903,Inspired Spaces (ProjectCo1) LTD,Asset & Investment Partnership Management,Growth,PFI Benchmarking,24-Oct,"-6,488.72"
5474903,Inspired Spaces (ProjectCo1) LTD,Asset & Investment Partnership Management,Growth,PFI FM Fees and Insurance Costs,24-Oct,"2,225.96"
5474903,Inspired Spaces (ProjectCo1) LTD,Asset & Investment Partnership Management,Growth,PFI Performance Deductions,24-Oct,-35.86
5474903,Inspired Spaces (ProjectCo1) LTD,Asset & Investment Partnership Management,Growth,Unitary Charge Payments,24-Oct,"554,165.15"
5474903,Inspired Spaces (ProjectCo1) LTD,Asset & Investment Partnership Management,Growth,Utilities,24-Oct,"37,534.43"
5474904,INSPIREDSPACES TAMESIDE (PROJECTCO2) LTD,Asset & Investment Partnership Management,Growth,PFI Benchmarking,24-Oct,"-3,993.05"
5474904,INSPIREDSPACES TAMESIDE (PROJECTCO2) LTD,Asset & Investment Partnership Management,Growth,PFI FM Fees and Insurance Costs,24-Oct,"6,252.17"
5474904,INSPIREDSPACES TAMESIDE (PROJECTCO2) LTD,Asset & Investment Partnership Management,Growth,Unitary Charge Payments,24-Oct,"702,390.22"
5474904,INSPIREDSPACES TAMESIDE (PROJECTCO2) LTD,Asset & Investment Partnership Management,Growth,Utilities,24-Oct,"57,306.32"
5474910,LINK CARE SOLUTIONS LTD,Adult Social Care,Adults,Homecare Fees,05-Oct,682.61
5474913,Randstad HR Solution Ltd T/A Student Worker Support,Education,Children's Services,Professional Services,02-Nov,640
5474914,CFS CARE LIMITED,(blank),(blank),Living With Formal Support,02-Nov,"5,502.86"
5474915,CFS CARE LIMITED,(blank),(blank),Living With Formal Support,02-Nov,"5,142.86"
5474915,CFS CARE LIMITED,(blank),(blank),Semi independent - Weekly Living Allowances,02-Nov,244.2
5474916,CFS CARE LIMITED,(blank),(blank),Living With Formal Support,02-Nov,"4,928.57"
5474916,CFS CARE LIMITED,(blank),(blank),Semi independent - Weekly Living Allowances,02-Nov,244.2
5474917,CFS CARE LIMITED,(blank),(blank),Living With Formal Support,10-Nov,"4,928.57"
5474917,CFS CARE LIMITED,(blank),(blank),Semi independent - Weekly Living Allowances,10-Nov,244.2
5474918,CFS CARE LIMITED,Childrens Services,Children's Services,Living With Formal Support,02-Nov,"5,142.86"
5474919,CFS CARE LIMITED,(blank),(blank),Living With Formal Support,02-Nov,"5,502.86"
5474921,CFS CARE LIMITED,(blank),(blank),Living With Formal Support,02-Nov,"4,218.86"
5474924,CFS CARE LIMITED,Childrens Services,Children's Services,Living With Formal Support,02-Nov,"5,502.86"
5474926,Jungle Junction Denton,Childrens Services,Children's Services,Nursery Services,13-Oct,762.66
5474928,Safe Hands Care & Support Services,(blank),(blank),Living With Formal Support,28-Oct,"3,675.71"
5474929,Viva Minibus LTD,Childrens Services,Children's Services,"Activity (Materials, Trips)",13-Oct,780
5474931,Quest Software International Limited,Digital Tameside,Finance & IT,Computer Software,31-Oct,"5,038.42"
5474933,INSPIREDSPACES TAMESIDE LTD,Asset & Investment Partnership Management,Growth,PFI FM Fees and Insurance Costs,11-Oct,"1,055.60"
5474934,N.W.A Housing Ltd,(blank),(blank),Non-Authority Accommodation Rental,02-Nov,"10,612.91"
5474936,THE COPYRIGHT LICENSING AGENCY LTD,Corporate Costs,Corporate Costs,Licences,02-Nov,"12,743.61"
5474942,BEN HALL TREE SURGEONS t/a ACER SPADES,Operations and Neighbourhoods,Operations and Neighbourhoods,General Materials,13-Oct,"1,400.00"
5474944,Xoom X Ltd,Education,Children's Services,Transport Of Ola Pupils,13-Oct,"1,900.00"
5474945,Xoom X Ltd,Education,Children's Services,Transport Of Ola Pupils,13-Oct,880
5474947,Xoom X Ltd,Education,Children's Services,Transport Of Ola Pupils,13-Oct,"1,218.00"
5474948,Xoom X Ltd,Education,Children's Services,Transport Of Pupils,13-Oct,888
5474949,Xoom X Ltd,Education,Children's Services,Transport Of Ola Pupils,13-Oct,744
5474950,Xoom X Ltd,Education,Children's Services,Transport Of Ola Pupils,13-Oct,"1,145.50"
5474951,Xoom X Ltd,Education,Children's Services,Transport Of Ola Pupils,13-Oct,"1,050.00"
5474953,Xoom X Ltd,Operations and Neighbourhoods,Operations and Neighbourhoods,Hired Transport,13-Oct,"1,065.00"
5474955,Xoom X Ltd,Operations and Neighbourhoods,Operations and Neighbourhoods,Transport Of Pupils,13-Oct,540
5474956,Xoom X Ltd,Education,Children's Services,Transport Of Ola Pupils,13-Oct,610
